Ref No,Fund Type,Dept,Cost Centre Description    ,Description    ,Creditor Name    ,GL Code Net Amount,Payment date        
2,Revenue,CCHD,Bed purchasing - Under 65s PWLD - North,Residential Homes,.,6873.04, 10-Jul-2012
3,Revenue,CCHD,Bed purchasing - Phys Dis - North,Nursing Homes,26 Severn Road,7692.28, 10-Jul-2012
4,Revenue,CCHD,Home Care - Elderly - North,Other Small Contracts,3 Trees Community Support Ltd,47.28, 03-Jul-2012
5,Revenue,CCHD,Day Care - North,Private & Voluntary Day Care,3 Trees Community Support Ltd,78.8, 03-Jul-2012
6,Revenue,CCHD,Home Care - LD Under 65 - South,Private & Voluntary Home Care,3 Trees Community Support Ltd,114.26, 03-Jul-2012
7,Revenue,CCHD,PWLD Home Care - Under 65 - KH,Private & Voluntary Home Care,3 Trees Community Support Ltd,267.92, 03-Jul-2012
8,Revenue,CCHD,Home Care - Elderly - North,Other Small Contracts,3 Trees Community Support Ltd,47.28, 26-Jul-2012
9,Revenue,CCHD,Day Care - North,Private & Voluntary Day Care,3 Trees Community Support Ltd,90.62, 26-Jul-2012
10,Revenue,CCHD,Home Care - LD Under 65 - South,Private & Voluntary Home Care,3 Trees Community Support Ltd,106.38, 26-Jul-2012
11,Revenue,CCHD,PWLD Home Care - Under 65 - KH,Private & Voluntary Home Care,3 Trees Community Support Ltd,267.92, 26-Jul-2012
12,Revenue,CCHD,Supported Living - PS,Private & Voluntary Home Care,3 Trees Community Support Ltd,632.81, 02-Jul-2012
13,Revenue,CCHD,Supported Living - PS,Private & Voluntary Home Care,3 Trees Community Support Ltd,1451.13, 18-Jul-2012
14,Revenue,CCHD,Supported Living - PS,Private & Voluntary Home Care,3 Trees Community Support Ltd,1928.94, 09-Jul-2012
15,Revenue,CCHD,Purchase of Non-Res Care - PS,Private & Voluntary Day Care,3 Trees Community Support Ltd,660.4, 02-Jul-2012
16,Revenue,CCHD,Purchase of Non-Res Care - PS,Private & Voluntary Day Care,3 Trees Community Support Ltd,3021.87, 13-Jul-2012
17,Revenue,CCHD,Supported Living - PS,Private & Voluntary Home Care,3 Trees Community Support Ltd,772.14, 24-Jul-2012
18,Revenue,CCHD,Purchase of Non-Res Care - KD,Private & Voluntary Day Care,3 Trees Community Support Ltd,5033.75, 19-Jul-2012
19,Revenue,CCHD,Supported Living - KD,Private & Voluntary Home Care,3 Trees Community Support Ltd,2086.78, 19-Jul-2012
20,Revenue,CCHD,Purchase of Non-Res Care - PS,Private & Voluntary Day Care,3 Trees Community Support Ltd,710.03, 24-Jul-2012
21,Revenue,CCHD,Purchase of Non-Res Care - KD,Private & Voluntary Day Care,3 Trees Community Support Ltd,2020.27, 19-Jul-2012
22,Revenue,CCHD,Purchase of Non-Res Care - KD,Private & Voluntary Day Care,3 Trees Community Support Ltd,2111.7, 19-Jul-2012
23,Revenue,CCHD,Purchase of Non-Res Care - KD,Private & Voluntary Day Care,3 Trees Community Support Ltd,4920.97, 19-Jul-2012
24,Revenue,CCHD,Purchase of Non-Res Care - PS,Private & Voluntary Day Care,3 Trees Community Support Ltd,3765.98, 24-Jul-2012
25,Revenue,CCHD,Supported Living - KD,Private & Voluntary Home Care,3 Trees Community Support Ltd,9980.06, 19-Jul-2012
26,Revenue,CCHD,Bed Purchasing - Elderly S117- North,Residential Homes,3Rd Floor Westbury House,1716, 10-Jul-2012
27,Revenue,CCHD,Direct Payments - Phys Dis - North,Grants to Voluntary Bodies,A4E Management Limited,22857.93, 16-Jul-2012
28,Revenue,CCHD,Bed Purchasing - Elderly - North,Residential Homes,Aabletone Nursing Home,1112.01, 10-Jul-2012
29,Revenue,CCHD,Tenancy Start Up Scheme,Other Supplies & Services,Acorn Property Sales Ltd,950, 13-Jul-2012
30,Revenue,CCHD,Day Care - North,Private & Voluntary Day Care,Action on Hearing Loss,699.36, 27-Jul-2012
31,Revenue,CCHD,Finance,Other Supplies & Services,ADASS,450, 11-Jul-2012
32,Revenue,CCHD,Alexandra Way,Furniture & Fittings Loose,Advanced Aerials,700, 03-Jul-2012
33,Revenue,CCHD,Day Care - North,Private & Voluntary Day Care,Age UK South Gloucestershire,1533.24, 23-Jul-2012
34,Revenue,CCHD,Day Care - North,Private & Voluntary Day Care,Age UK South Gloucestershire,1230.72, 19-Jul-2012
35,Revenue,CCHD,Day Care - South,Private & Voluntary Day Care,Age UK South Gloucestershire,681.44, 24-Jul-2012
36,Revenue,CCHD,Elderly MH Day Care South,Private & Voluntary Day Care,Age UK South Gloucestershire,511.08, 18-Jul-2012
37,Revenue,CCHD,Elderly MH Day Care North,Private & Voluntary Day Care,Age UK South Gloucestershire,1056.24, 18-Jul-2012
38,Revenue,CCHD,Day Care - South,Private & Voluntary Day Care,Age UK South Gloucestershire,1768.6, 24-Jul-2012
39,Revenue,CCHD,Elderly MH Day Care North,Private & Voluntary Day Care,Age UK South Gloucestershire,638.85, 18-Jul-2012
40,Revenue,CCHD,Elderly MH Day Care South,Private & Voluntary Day Care,Age UK South Gloucestershire,340.72, 18-Jul-2012
41,Revenue,CCHD,Home Care - Elderly - South,Other Small Contracts,Agincare Chippenham,1575.09, 19-Jul-2012
42,Revenue,CCHD,Home Care - Elderly - South,Other Small Contracts,Agincare Chippenham,1215.18, 02-Jul-2012
43,Revenue,CCHD,Home Care - Elderly - South,Other Small Contracts,Agincare Chippenham,1141.65, 02-Jul-2012
44,Revenue,CCHD,Home Care - Elderly - South,Other Small Contracts,Agincare Chippenham,1501.56, 19-Jul-2012
45,Revenue,CCHD,Home Care - Elderly - South,Other Small Contracts,Agincare Chippenham,804.96, 02-Jul-2012
46,Revenue,CCHD,Home Care - Elderly - South,Other Small Contracts,Agincare Chippenham,1133.91, 02-Jul-2012
47,Revenue,CCHD,Home Care - Elderly - South,Other Small Contracts,Agincare UK Limited,878.49, 19-Jul-2012
48,Revenue,CCHD,Home Care - Elderly - North,Other Small Contracts,Agincare UK Limited,54.18, 19-Jul-2012
49,Revenue,CCHD,Day Care - South,Private & Voluntary Day Care,Agincare UK Limited,255.42, 19-Jul-2012
50,Revenue,CCHD,Elderly MH Day Care North,Private & Voluntary Day Care,Agincare UK Limited,108.36, 19-Jul-2012
51,Revenue,CCHD,Home Care - Elderly - South,Other Small Contracts,Agincare UK Limited,808.83, 19-Jul-2012
52,Revenue,CCHD,Home Care - Elderly - North,Other Small Contracts,Agincare UK Limited,61.92, 19-Jul-2012
53,Revenue,CCHD,Day Care - South,Private & Voluntary Day Care,Agincare UK Limited,174.15, 19-Jul-2012
54,Revenue,CCHD,Elderly MH Day Care North,Private & Voluntary Day Care,Agincare UK Limited,100.62, 19-Jul-2012
55,Revenue,CCHD,Home Care - Elderly - South,Other Small Contracts,Agincare UK Limited,843.66, 19-Jul-2012
56,Revenue,CCHD,Home Care - Elderly - North,Other Small Contracts,Agincare UK Limited,61.92, 19-Jul-2012
57,Revenue,CCHD,Day Care - South,Private & Voluntary Day Care,Agincare UK Limited,232.2, 19-Jul-2012
58,Revenue,CCHD,Elderly MH Day Care North,Private & Voluntary Day Care,Agincare UK Limited,85.14, 19-Jul-2012
59,Revenue,CCHD,Home Care - Elderly - South,Other Small Contracts,Agincare UK Limited,928.8, 19-Jul-2012
60,Revenue,CCHD,Home Care - Elderly - North,Other Small Contracts,Agincare UK Limited,65.79, 19-Jul-2012
61,Revenue,CCHD,Day Care - South,Private & Voluntary Day Care,Agincare UK Limited,251.55, 19-Jul-2012
62,Revenue,CCHD,Elderly MH Day Care North,Private & Voluntary Day Care,Agincare UK Limited,104.49, 19-Jul-2012
63,Revenue,CCHD,Home Care - Elderly - North,Other Small Contracts,Agincare UK Limited,1036.8, 23-Jul-2012
64,Revenue,CCHD,Home Care - Elderly - North,Other Small Contracts,Agincare UK Limited,5572.8, 23-Jul-2012
65,Revenue,CCHD,S117 Placements PCT,Residential Homes,Alexandra House,6810.28, 10-Jul-2012
66,Revenue,CCHD,Home Care - Elderly - South,Other Small Contracts,Allied Healthcare Group,426.72, 19-Jul-2012
67,Revenue,CCHD,Home Care - Elderly - North,Other Small Contracts,Allied Healthcare Group,1843.6, 19-Jul-2012
68,Revenue,CCHD,Day Care - North,Private & Voluntary Day Care,Allied Healthcare Group,22.86, 19-Jul-2012
69,Revenue,CCHD,Elderly MH Day Care South,Private & Voluntary Day Care,Alzheimer`s Society Bristol,1001.28, 06-Jul-2012
70,Revenue,CCHD,Day Care - North,Private & Voluntary Day Care,Alzheimer`s Society Bristol,929.76, 06-Jul-2012
71,Revenue,CCHD,Elderly MH Day Care South,Private & Voluntary Day Care,Alzheimer`s Society Bristol,715.2, 03-Jul-2012
72,Revenue,CCHD,Bed Purchasing - Elderly S117- North,Private & Voluntary Day Care,Alzheimer`s Society Bristol,643.68, 06-Jul-2012
73,Revenue,CCHD,Elderly MH Day Care North,Private & Voluntary Day Care,Alzheimer`s Society Bristol,572.16, 30-Jul-2012
74,Revenue,CCHD,Elderly MH Day Care North,Private & Voluntary Day Care,Alzheimer`s Society Bristol,858.24, 30-Jul-2012
75,Revenue,CCHD,Elderly MH Day Care South,Private & Voluntary Day Care,Alzheimer`s Society Bristol,858.24, 30-Jul-2012
76,Revenue,CCHD,Elderly MH Day Care North,Private & Voluntary Day Care,Alzheimer`s Society Bristol,715.2, 30-Jul-2012
77,Revenue,CCHD,Elderly MH Day Care South,Private & Voluntary Day Care,Alzheimer`s Society Bristol,500.64, 30-Jul-2012
78,Revenue,CCHD,Bed Purchasing - Elderly S117- North,Private & Voluntary Day Care,Alzheimer`s Society Bristol,643.68, 30-Jul-2012
79,Revenue,CCHD,Frenchay Hospital Purchasing,Residential Homes,Anbridge Care Home,828.88, 10-Jul-2012
80,Revenue,CCHD,Tenancy Start Up Scheme,Other Supplies & Services,Another Agent Ltd,1300, 04-Jul-2012
81,Revenue,CCHD,Bed purchasing - Under 65s PWLD - North,Residential Homes,Ark Care Homes Ltd,10505.24, 10-Jul-2012
82,Revenue,CCHD,Bed and Breakfast,Bed & Breakfast,Ashley Guest Houses Ltd,672, 23-Jul-2012
83,Revenue,CCHD,Bed and Breakfast,Bed & Breakfast,Ashley Guest Houses Ltd,912, 27-Jul-2012
84,Revenue,CCHD,Bed and Breakfast,Bed & Breakfast,Ashley Guest Houses Ltd,1200, 17-Jul-2012
85,Revenue,CCHD,Bed and Breakfast,Bed & Breakfast,Ashley Guest Houses Ltd,720, 17-Jul-2012
86,Revenue,CCHD,Bed Purchasing - S28A - Over 65- North,Residential Homes,Aspects &  Milestones Trust,3882.32, 10-Jul-2012
87,Revenue,CCHD,Bed Purchasing - Elderly - South,Residential Homes,Aspects &  Milestones Trust,1398.4, 10-Jul-2012
88,Revenue,CCHD,Bed Purchasing - Under 65s PWLD - South,Residential Homes,Aspects &  Milestones Trust,37629.11, 10-Jul-2012
89,Revenue,CCHD,Bed Purchasing - Elderly S117- North,Residential Homes,Aspects &  Milestones Trust,1325.92, 10-Jul-2012
90,Revenue,CCHD,Bed Purchasing - Elderly S117- North,Nursing Homes,Aspects &  Milestones Trust,1944.08, 10-Jul-2012
91,Revenue,CCHD,Bed purchasing - Elderly MH - North,Nursing Homes,Aspects &  Milestones Trust,2318.24, 10-Jul-2012
92,Revenue,CCHD,Bed Purchasing - Elderly - South,Residential Homes,Aspects &  Milestones Trust,1229.58, 10-Jul-2012
93,Revenue,CCHD,Bed purchasing - Elderly PWLD - North,Residential Homes,Aspects &  Milestones Trust,3554.88, 10-Jul-2012
94,Revenue,CCHD,Bed Purchasing - Under 65s PWLD - South,Residential Homes,Aspects &  Milestones Trust,5227.12, 10-Jul-2012
95,Revenue,CCHD,Bed Purchasing - Under 65s PWLD - South,Residential Homes,Aspects &  Milestones Trust,5683.72, 10-Jul-2012
96,Revenue,CCHD,Bed Purchasing - Under 65s PWLD - South,Nursing Homes,Aspects &  Milestones Trust,2766.32, 10-Jul-2012
97,Revenue,CCHD,Bed Purchasing - Elderly S117- North,Nursing Homes,Aspects &  Milestones Trust,1944, 10-Jul-2012
98,Revenue,CCHD,Bed purchasing - Elderly MH - North,Nursing Homes,Aspects &  Milestones Trust,1430.08, 10-Jul-2012
99,Revenue,CCHD,Bed purchasing - Elderly MH - North,Nursing Homes,Aspects &  Milestones Trust,1475.2, 10-Jul-2012
100,Revenue,CCHD,Bed purchasing - Elderly PWLD - South,Residential Homes,Aspects &  Milestones Trust,3199.56, 10-Jul-2012
101,Revenue,CCHD,Bed Purchasing - Elderly S117- North,Residential Homes,Aspects &  Milestones Trust,1716, 10-Jul-2012
102,Revenue,CCHD,Bed purchasing - Elderly PWLD - South,Residential Homes,Aspects &  Milestones Trust,4357.8, 10-Jul-2012
103,Revenue,CCHD,Bed purchasing -S28A  Under 65 - North,Nursing Homes,Aspects &  Milestones Trust,5800.72, 10-Jul-2012
104,Revenue,CCHD,Bed purchasing -S28A  Under 65 - North,Residential Homes,Aspects &  Milestones Trust,5183.96, 10-Jul-2012
105,Revenue,CCHD,Bed purchasing - S28A Under 65 - South,Residential Homes,Aspects &  Milestones Trust,5327.8, 10-Jul-2012
106,Revenue,CCHD,Bed Purchasing - Under 65s PWLD - South,Residential Homes,Aspects &  Milestones Trust,5721.6, 10-Jul-2012
107,Revenue,CCHD,Bed purchasing - Under 65s PWLD - North,Residential Homes,Aspects &  Milestones Trust,3843.72, 10-Jul-2012
108,Revenue,CCHD,Bed purchasing - S28A Under 65 - South,Nursing Homes,Aspects &  Milestones Trust,7576.08, 10-Jul-2012
109,Revenue,CCHD,MH Purchasing - Younger,Residential Homes,Aspects &  Milestones Trust,847.2, 10-Jul-2012
110,Revenue,CCHD,Bed purchasing - Elderly PWLD - South,Residential Homes,Aspects &  Milestones Trust,5276.32, 10-Jul-2012
111,Revenue,CCHD,Elderly PWLD - KH,Residential Homes,Aspects &  Milestones Trust,3791.92, 10-Jul-2012
112,Revenue,CCHD,Bed purchasing - Elderly PWLD - North,Residential Homes,Aspects &  Milestones Trust,4732.52, 10-Jul-2012
113,Revenue,CCHD,Bed purchasing -S28A  Under 65 - North,Residential Homes,Aspects &  Milestones Trust,5268.68, 10-Jul-2012
114,Revenue,CCHD,Bed purchasing -S28A  Under 65 - North,Residential Homes,Aspects &  Milestones Trust,6125.96, 10-Jul-2012
115,Revenue,CCHD,Bed purchasing -S28A  Under 65 - North,Nursing Homes,Aspects &  Milestones Trust,6213.88, 10-Jul-2012
116,Revenue,CCHD,Bed Purchasing - Under 65s PWLD - South,Residential Homes,Aspects &  Milestones Trust,3699.6, 10-Jul-2012
117,Revenue,CCHD,Bed purchasing -S28A  Under 65 - North,Residential Homes,Aspects &  Milestones Trust,6125.96, 10-Jul-2012
118,Revenue,CCHD,Bed purchasing - S28A Under 65 - South,Residential Homes,Aspects &  Milestones Trust,4856.92, 10-Jul-2012
119,Revenue,CCHD,Bed Purchasing - S28A - Over 65- North,Residential Homes,Aspects &  Milestones Trust,4732.76, 10-Jul-2012
120,Revenue,CCHD,Bed Purchasing - LD S28A- Over 65- South,Residential Homes,Aspects &  Milestones Trust,4015.52, 10-Jul-2012
121,Revenue,CCHD,Bed purchasing -S28A  Under 65 - North,Residential Homes,Aspects &  Milestones Trust,6125.96, 10-Jul-2012
122,Revenue,CCHD,Bed Purchasing - S28A - Over 65- North,Residential Homes,Aspects &  Milestones Trust,4239.2, 10-Jul-2012
123,Revenue,CCHD,Bed purchasing -S28A  Under 65 - North,Residential Homes,Aspects &  Milestones Trust,6125.96, 10-Jul-2012
124,Revenue,CCHD,Bed Purchasing - LD S28A- Over 65- South,Residential Homes,Aspects &  Milestones Trust,3905.44, 10-Jul-2012
125,Revenue,CCHD,Bed purchasing - S28A Under 65 - South,Residential Homes,Aspects &  Milestones Trust,5052.2, 10-Jul-2012
126,Revenue,CCHD,Bed purchasing - S28A Under 65 - South,Residential Homes,Aspects &  Milestones Trust,6626.28, 10-Jul-2012
127,Revenue,CCHD,Bed purchasing - S28A Under 65 - South,Residential Homes,Aspects &  Milestones Trust,4047.8, 10-Jul-2012
128,Revenue,CCHD,Bed Purchasing - LD S28A- Over 65- South,Residential Homes,Aspects &  Milestones Trust,5824.28, 10-Jul-2012
129,Revenue,CCHD,Bed Purchasing - S28A - Over 65- North,Residential Homes,Aspects &  Milestones Trust,3397.72, 10-Jul-2012
130,Revenue,CCHD,Bed Purchasing - LD S28A- Over 65- South,Residential Homes,Aspects &  Milestones Trust,4760.52, 10-Jul-2012
131,Revenue,CCHD,Bed Purchasing - LD S28A- Over 65- South,Residential Homes,Aspects &  Milestones Trust,4908.2, 10-Jul-2012
132,Revenue,CCHD,Bed Purchasing - LD S28A- Over 65- South,Residential Homes,Aspects &  Milestones Trust,4622.6, 10-Jul-2012
133,Revenue,CCHD,Bed Purchasing - LD S28A- Over 65- South,Residential Homes,Aspects &  Milestones Trust,5383.48, 10-Jul-2012
134,Revenue,CCHD,Bed purchasing -S28A  Under 65 - North,Residential Homes,Aspects &  Milestones Trust,7309.52, 10-Jul-2012
135,Revenue,CCHD,Bed purchasing -S28A  Under 65 - North,Nursing Homes,Aspects &  Milestones Trust,6296.44, 10-Jul-2012
136,Revenue,CCHD,Bed Purchasing - LD S28A- Over 65- South,Residential Homes,Aspects &  Milestones Trust,3492.92, 10-Jul-2012
137,Revenue,CCHD,Bed Purchasing - LD S28A- Over 65- South,Residential Homes,Aspects &  Milestones Trust,3251.48, 10-Jul-2012
138,Revenue,CCHD,Bed Purchasing - S28A - Over 65- North,Residential Homes,Aspects &  Milestones Trust,3308.72, 10-Jul-2012
139,Revenue,CCHD,Bed Purchasing - LD S28A- Over 65- South,Residential Homes,Aspects &  Milestones Trust,4720.44, 10-Jul-2012
140,Revenue,CCHD,Section 117 Placements MH Younger,Residential Homes,Aspects &  Milestones Trust,1324, 10-Jul-2012
141,Revenue,CCHD,Bed purchasing - Elderly MH - North,Residential Homes,Aspects &  Milestones Trust,849.48, 10-Jul-2012
142,Revenue,CCHD,Bed purchasing - S28A Under 65 - South,Residential Homes,Aspects &  Milestones Trust,4790.96, 10-Jul-2012
143,Revenue,CCHD,Bed purchasing - Elderly PWLD - North,Residential Homes,Aspects &  Milestones Trust,5424.04, 10-Jul-2012
144,Revenue,CCHD,Bed purchasing - Under 65s PWLD - North,Residential Homes,Aspects &  Milestones Trust,5511.12, 10-Jul-2012
145,Revenue,CCHD,Bed purchasing - Elderly MH - North,Nursing Homes,Aspects &  Milestones Trust,1096.68, 10-Jul-2012
146,Revenue,CCHD,Bed purchasing -S28A  Under 65 - North,Residential Homes,Aspects &  Milestones Trust,5771.6, 10-Jul-2012
147,Revenue,CCHD,Bed Purchasing - S28A - Over 65- North,Residential Homes,Aspects &  Milestones Trust,3271.48, 10-Jul-2012
148,Revenue,CCHD,MH Purchasing - Younger,Residential Homes,Aspects &  Milestones Trust,1012.6, 10-Jul-2012
149,Revenue,CCHD,Bed Purchasing - S28A - Over 65- North,Residential Homes,Aspects &  Milestones Trust,3511.28, 10-Jul-2012
150,Revenue,CCHD,Bed purchasing - S28A Under 65 - South,Residential Homes,Aspects &  Milestones Trust,5052.2, 10-Jul-2012
151,Revenue,CCHD,Bed purchasing - S28A Under 65 - South,Residential Homes,Aspects &  Milestones Trust,6024.64, 10-Jul-2012
152,Revenue,CCHD,Bed Purchasing - LD S28A- Over 65- South,Residential Homes,Aspects &  Milestones Trust,5898.16, 10-Jul-2012
153,Revenue,CCHD,Bed Purchasing - LD S28A- Over 65- South,Residential Homes,Aspects &  Milestones Trust,4164.96, 10-Jul-2012
154,Revenue,CCHD,Bed Purchasing - LD S28A- Over 65- South,Residential Homes,Aspects &  Milestones Trust,4720.44, 10-Jul-2012
155,Revenue,CCHD,Bed Purchasing - S28A - Over 65- North,Residential Homes,Aspects &  Milestones Trust,4762.64, 10-Jul-2012
156,Revenue,CCHD,Bed Purchasing - LD S28A- Over 65- South,Residential Homes,Aspects &  Milestones Trust,5607.6, 10-Jul-2012
157,Revenue,CCHD,Bed purchasing - S28A Under 65 - South,Residential Homes,Aspects &  Milestones Trust,7738.32, 10-Jul-2012
158,Revenue,CCHD,Bed Purchasing - LD S28A- Over 65- South,Residential Homes,Aspects &  Milestones Trust,4902.32, 10-Jul-2012
159,Revenue,CCHD,Bed purchasing -S28A  Under 65 - North,Residential Homes,Aspects &  Milestones Trust,4743.92, 10-Jul-2012
160,Revenue,CCHD,Bed Purchasing - S28A - Over 65- North,Residential Homes,Aspects &  Milestones Trust,4885.4, 10-Jul-2012
161,Revenue,CCHD,Bed Purchasing - S28A - Over 65- North,Residential Homes,Aspects &  Milestones Trust,5473.64, 10-Jul-2012
162,Revenue,CCHD,Bed purchasing - S28A Under 65 - South,Residential Homes,Aspects &  Milestones Trust,4611.44, 10-Jul-2012
163,Revenue,CCHD,Bed Purchasing - S28A - Over 65- North,Residential Homes,Aspects &  Milestones Trust,4885.4, 10-Jul-2012
164,Revenue,CCHD,Bed Purchasing - S28A - Over 65- North,Residential Homes,Aspects &  Milestones Trust,5277.28, 10-Jul-2012
165,Revenue,CCHD,Bed Purchasing - LD S28A- Over 65- South,Residential Homes,Aspects &  Milestones Trust,4908.2, 10-Jul-2012
166,Revenue,CCHD,Bed purchasing - S28A Under 65 - South,Residential Homes,Aspects &  Milestones Trust,4734.4, 10-Jul-2012
167,Revenue,CCHD,Bed purchasing -S28A  Under 65 - North,Residential Homes,Aspects &  Milestones Trust,6125.96, 10-Jul-2012
168,Revenue,CCHD,Bed Purchasing - S28A - Over 65- North,Residential Homes,Aspects &  Milestones Trust,5621.68, 10-Jul-2012
169,Revenue,CCHD,Bed purchasing -S28A  Under 65 - North,Residential Homes,Aspects &  Milestones Trust,3468.84, 10-Jul-2012
170,Revenue,CCHD,Bed Purchasing - S28A - Over 65- North,Residential Homes,Aspects &  Milestones Trust,3275.16, 10-Jul-2012
171,Revenue,CCHD,Bed Purchasing - S28A - Over 65- North,Residential Homes,Aspects &  Milestones Trust,3412.88, 10-Jul-2012
172,Revenue,CCHD,Bed Purchasing - LD S28A- Over 65- South,Residential Homes,Aspects &  Milestones Trust,3204.2, 10-Jul-2012
173,Revenue,CCHD,Bed Purchasing - Under 65s PWLD - South,Residential Homes,Aspects &  Milestones Trust,7097.28, 10-Jul-2012
174,Revenue,CCHD,Bed purchasing - Elderly S117 - South,Residential Homes,Aspects &  Milestones Trust,3890.32, 10-Jul-2012
175,Revenue,CCHD,Bed purchasing - Elderly MH - North,Nursing Homes,Aspects &  Milestones Trust,1337.2, 10-Jul-2012
176,Revenue,CCHD,Bed purchasing - Under 65s PWLD - North,Residential Homes,Aspects &  Milestones Trust,6125.96, 10-Jul-2012
177,Revenue,CCHD,MH Purchasing - Younger,Residential Homes,Aspects &  Milestones Trust,1012.6, 10-Jul-2012
178,Revenue,CCHD,Elderly PWLD - KH,Residential Homes,Aspects &  Milestones Trust,3399.76, 10-Jul-2012
179,Revenue,CCHD,Bed purchasing - S28A Under 65 - South,Residential Homes,Aspects &  Milestones Trust,7168.2, 10-Jul-2012
180,Revenue,CCHD,Bed purchasing - S28A Under 65 - South,Residential Homes,Aspects &  Milestones Trust,4866.72, 10-Jul-2012
181,Revenue,CCHD,Bed Purchasing - LD S28A- Over 65- South,Residential Homes,Aspects &  Milestones Trust,4628.68, 10-Jul-2012
182,Revenue,CCHD,Bed Purchasing - Under 65s PWLD - South,Residential Homes,Aspects &  Milestones Trust,4173.08, 10-Jul-2012
183,Revenue,CCHD,Bed Purchasing - LD S28A- Over 65- South,Residential Homes,Aspects &  Milestones Trust,3801.96, 10-Jul-2012
184,Revenue,CCHD,Bed Purchasing - LD S28A- Over 65- South,Residential Homes,Aspects &  Milestones Trust,5898.16, 10-Jul-2012
185,Revenue,CCHD,Bed Purchasing - S28A - Over 65- North,Residential Homes,Aspects &  Milestones Trust,4473.28, 10-Jul-2012
186,Revenue,CCHD,Bed Purchasing - LD S28A- Over 65- South,Residential Homes,Aspects &  Milestones Trust,3973.08, 10-Jul-2012
187,Revenue,CCHD,Bed Purchasing - LD S28A- Over 65- South,Residential Homes,Aspects &  Milestones Trust,4406.8, 10-Jul-2012
188,Revenue,CCHD,Bed Purchasing - LD S28A- Over 65- South,Residential Homes,Aspects &  Milestones Trust,5155.88, 10-Jul-2012
189,Revenue,CCHD,Bed Purchasing - Elderly MH - South,Residential Homes,Aspects &  Milestones Trust,1206.56, 10-Jul-2012
190,Revenue,CCHD,Bed Purchasing - S28A - Over 65- North,Residential Homes,Aspects &  Milestones Trust,4762.64, 10-Jul-2012
191,Revenue,CCHD,Bed Purchasing - Elderly S117- North,Nursing Homes,Aspects &  Milestones Trust,3888, 10-Jul-2012
192,Revenue,CCHD,Bed Purchasing - Elderly S117- North,Nursing Homes,Aspects &  Milestones Trust,1944, 10-Jul-2012
193,Revenue,CCHD,Bed Purchasing - Elderly S117- North,Residential Homes,Aspects &  Milestones Trust,1324, 10-Jul-2012
194,Revenue,CCHD,Bed purchasing - Under 65s PWLD - North,Residential Homes,Aspects & Milestones Trust,8841.64, 10-Jul-2012
195,Revenue,CCHD,Purchase of Non-Res Care - PS,Private & Voluntary Day Care,Aspirations Support Bristol Limited,2475.72, 24-Jul-2012
196,Revenue,CCHD,Finance,Other Supplies & Services,Assoc of Directors of Adult Social Services,1535, 13-Jul-2012
197,Revenue,CCHD,Bed Purchasing - Under 65s PWLD - South,Residential Homes,Autism Specialised Care Homes,5515.04, 10-Jul-2012
198,Revenue,CCHD,Purchase of Non-Res Care - KD,Private & Voluntary Day Care,Avon Autistic Foundation Limited,3345.92, 19-Jul-2012
199,Revenue,CCHD,Purchase of Non-Res Care - KD,Private & Voluntary Day Care,Avon Autistic Foundation Limited,2279.76, 19-Jul-2012
200,Revenue,CCHD,Better Support for Older People,Other Supplies & Services,Barberry,525, 18-Jul-2012
201,Revenue,CCHD,Management & Support costs,Other Supplies & Services,Bath & North East Somerset Dist Council,3781.2, 23-Jul-2012
202,Revenue,CCHD,Learning Difficulties Development Fund,"Provisions (Food, etc)",Bawa Healthcare & Leisure,1191.66, 19-Jul-2012
203,Revenue,CCHD,Frenchay Hospital Purchasing,Residential Homes,Beaufort House,661.44, 10-Jul-2012
204,Revenue,CCHD,Bed purchasing - Elderly MH - North,Residential Homes,Beaufort House,1418.36, 10-Jul-2012
205,Revenue,CCHD,Frenchay Hospital Purchasing,Residential Homes,Beaufort House,1276.24, 10-Jul-2012
206,Revenue,CCHD,Bed purchasing - Elderly MH - North,Residential Homes,Beaufort House,1318.88, 10-Jul-2012
207,Revenue,CCHD,Bed Purchasing - Elderly - North,Residential Homes,Beaufort House,1697.4, 10-Jul-2012
208,Revenue,CCHD,Bed purchasing - Elderly MH - North,Residential Homes,Beaufort House,875.84, 10-Jul-2012
209,Revenue,CCHD,Bed purchasing - Elderly MH - North,Residential Homes,Beaufort House,1011.32, 10-Jul-2012
210,Revenue,CCHD,Bed purchasing - Elderly MH - North,Residential Homes,Beaufort House,1672.68, 10-Jul-2012
211,Revenue,CCHD,Bed purchasing - Elderly PWLD - South,Residential Homes,Bedrock Lodge,5717.2, 10-Jul-2012
212,Revenue,CCHD,Section 117 Placements MH Younger,Residential Homes,Bedrock Lodge,3640.4, 10-Jul-2012
213,Revenue,CCHD,Bed Purchasing - Elderly - North,Nursing Homes,Beech House,674.83, 10-Jul-2012
214,Revenue,CCHD,Bed Purchasing - Elderly - North,Nursing Homes,Beech House,787.3, 10-Jul-2012
215,Revenue,CCHD,Frenchay Hospital Purchasing,Nursing Homes,Beech House,1589.36, 10-Jul-2012
216,Revenue,CCHD,Bed Purchasing - Elderly - North,Nursing Homes,Beech House,1948.96, 10-Jul-2012
217,Revenue,CCHD,Bed Purchasing - Elderly - North,Nursing Homes,Beech House,1185.2, 10-Jul-2012
218,Revenue,CCHD,Swift Dump Code,Residential Homes,Belvedere Lodge,2356, 17-Jul-2012
219,Revenue,CCHD,South Glos Users in South Glos Homes,Nursing Homes,Blossom Field,1319.93, 10-Jul-2012
220,Revenue,CCHD,South Glos Users in South Glos Homes,Nursing Homes,Blossom Field,1071.47, 10-Jul-2012
221,Revenue,CCHD,South Glos Users in South Glos Homes,Nursing Homes,Blossom Field,3493.93, 10-Jul-2012
222,Revenue,CCHD,South Glos Users in South Glos Homes,Nursing Homes,Blossom Field,962.77, 10-Jul-2012
223,Revenue,CCHD,South Glos Users in South Glos Homes,Nursing Homes,Blossom Field,1475.21, 10-Jul-2012
224,Revenue,CCHD,South Glos Users in South Glos Homes,Nursing Homes,Blossom Field,1319.93, 10-Jul-2012
225,Revenue,CCHD,South Glos Users in South Glos Homes,Nursing Homes,Blossom Field,869.6, 10-Jul-2012
226,Revenue,CCHD,South Glos Users in South Glos Homes,Nursing Homes,Blossom Field,1319.93, 10-Jul-2012
227,Revenue,CCHD,South Glos Users in South Glos Homes,Nursing Homes,Blossom Field,729.84, 10-Jul-2012
228,Revenue,CCHD,South Glos Users in South Glos Homes,Nursing Homes,Blossom Field,1040.41, 10-Jul-2012
229,Revenue,CCHD,Bed Purchasing - Elderly - North,Nursing Homes,Blossom Field,2083.44, 10-Jul-2012
230,Revenue,CCHD,Bed purchasing - Elderly MH - North,Nursing Homes,Blossom Field,1391.16, 10-Jul-2012
231,Revenue,CCHD,Bed Purchasing - Elderly - North,Nursing Homes,Blossom Field,3233.17, 10-Jul-2012
232,Revenue,CCHD,Bed Purchasing - Elderly - North,Nursing Homes,Blossom Field,1219.07, 10-Jul-2012
233,Revenue,CCHD,South Glos Users in South Glos Homes,Nursing Homes,Blossom Field,1319.93, 10-Jul-2012
234,Revenue,CCHD,South Glos Users in South Glos Homes,Nursing Homes,Blossom Field,667.73, 10-Jul-2012
235,Revenue,CCHD,Bed Purchasing - Elderly - South,Nursing Homes,Blossom Fields,2961.76, 05-Jul-2012
236,Revenue,CCHD,Bed Purchasing - Elderly - North,Nursing Homes,Blossom Fields,7451.09, 05-Jul-2012
237,Revenue,CCHD,South Glos Users in South Glos Homes,Nursing Homes,Blossom Fields,869.6, 05-Jul-2012
238,Revenue,CCHD,Bed purchasing - Elderly MH - North,Nursing Homes,Blossom Fields,1536.23, 05-Jul-2012
239,Revenue,CCHD,Bed Purchasing - Elderly - South,Nursing Homes,Blossom Fields,2961.76, 05-Jul-2012
240,Revenue,CCHD,Bed Purchasing - Elderly - North,Nursing Homes,Blossom Fields,7451.09, 05-Jul-2012
241,Revenue,CCHD,South Glos Users in South Glos Homes,Nursing Homes,Blossom Fields,869.6, 05-Jul-2012
242,Revenue,CCHD,Bed purchasing - Elderly MH - North,Nursing Homes,Blossom Fields,1536.23, 05-Jul-2012
243,Revenue,CCHD,Information Systems - Software,Other Supplies & Services,Blueprint Management Systems Ltd,1242.39, 27-Jul-2012
244,Revenue,CCHD,Training - Adult Services,Training Expenses,Bob Dawson,750, 19-Jul-2012
245,Revenue,CCHD,Training - Adult Services,Training Expenses,Bob Dawson,1025, 17-Jul-2012
246,Revenue,CCHD,Frenchay Hospital Purchasing,Nursing Homes,Bradbury House,1366.76, 10-Jul-2012
247,Revenue,CCHD,Home Care - Elderly - South,Other Small Contracts,Bradley House Home Care Services,125.1, 19-Jul-2012
248,Revenue,CCHD,Home Care - Elderly - North,Other Small Contracts,Bradley House Home Care Services,1735.67, 19-Jul-2012
249,Revenue,CCHD,Day Care - South,Private & Voluntary Day Care,Bradley House Home Care Services,50.04, 19-Jul-2012
250,Revenue,CCHD,Day Care - North,Private & Voluntary Day Care,Bradley House Home Care Services,136.8, 19-Jul-2012
251,Revenue,CCHD,Home Care - Elderly - South,Other Small Contracts,Bradley House Home Care Services,150.12, 19-Jul-2012
252,Revenue,CCHD,Home Care - Elderly - North,Other Small Contracts,Bradley House Home Care Services,1754.38, 19-Jul-2012
253,Revenue,CCHD,Day Care - North,Private & Voluntary Day Care,Bradley House Home Care Services,132.63, 19-Jul-2012
254,Revenue,CCHD,Home Care - Elderly - South,Other Small Contracts,Bradley House Home Care Services,141.78, 24-Jul-2012
255,Revenue,CCHD,Home Care - Elderly - North,Other Small Contracts,Bradley House Home Care Services,1747.23, 24-Jul-2012
256,Revenue,CCHD,Day Care - South,Private & Voluntary Day Care,Bradley House Home Care Services,41.7, 24-Jul-2012
257,Revenue,CCHD,Day Care - North,Private & Voluntary Day Care,Bradley House Home Care Services,129.27, 24-Jul-2012
258,Revenue,CCHD,Home Care - Elderly - South,Other Small Contracts,Bradley House Home Care Services,145.95, 19-Jul-2012
259,Revenue,CCHD,Home Care - Elderly - North,Other Small Contracts,Bradley House Home Care Services,1735.88, 19-Jul-2012
260,Revenue,CCHD,Day Care - South,Private & Voluntary Day Care,Bradley House Home Care Services,41.7, 19-Jul-2012
261,Revenue,CCHD,Day Care - North,Private & Voluntary Day Care,Bradley House Home Care Services,180.99, 19-Jul-2012
262,Revenue,CCHD,Woodleaze,"Provisions (Food, etc)",Brake Bros,930.77, 06-Jul-2012
263,Revenue,CCHD,Woodleaze,"Provisions (Food, etc)",Brake Bros,1038.81, 06-Jul-2012
264,Revenue,CCHD,Woodleaze,"Provisions (Food, etc)",Brake Bros,547.41, 16-Jul-2012
265,Revenue,CCHD,Alexandra Way,"Provisions (Food, etc)",Brake Bros,545.47, 10-Jul-2012
266,Revenue,CCHD,Swift Dump Code,Residential Homes,Bridge House Care Home,24319.99, 13-Jul-2012
267,Revenue,CCHD,Bed Purchasing - Elderly MH - South,Residential Homes,Brightbow,2529, 10-Jul-2012
268,Revenue,CCHD,MH Purchasing - Younger,Residential Homes,Brightbow,922.36, 10-Jul-2012
269,Revenue,CCHD,Training - Adult Services,Training Expenses,Bristol & District Retirement Council,900, 13-Jul-2012
270,Revenue,CCHD,Supporting People Programme,Grants to Voluntary Bodies,Bristol Care & Repair,9780.82, 26-Jul-2012
271,Revenue,CCHD,Supporting People Programme,Grants to Voluntary Bodies,Bristol Care & Repair,9780.82, 26-Jul-2012
272,Revenue,CCHD,Supporting People Programme,Grants to Voluntary Bodies,Bristol Care & Repair,9780.82, 26-Jul-2012
273,Revenue,CCHD,Supporting People Programme,Grants to Voluntary Bodies,Bristol Care & Repair,9780.82, 26-Jul-2012
274,Revenue,CCHD,Supporting People Programme,Grants to Voluntary Bodies,Bristol Care & Repair,9780.82, 26-Jul-2012
275,Revenue,CCHD,Supporting People Programme,Grants to Voluntary Bodies,Bristol Care & Repair,7684.93, 26-Jul-2012
276,Revenue,CCHD,Supported Living - KD,Private & Voluntary Home Care,Bristol Houses UK Ltd,1225.16, 16-Jul-2012
277,Revenue,CCHD,Supported Living - KD,Private & Voluntary Home Care,Bristol Houses UK Ltd,1046.4, 16-Jul-2012
278,Revenue,CCHD,Supported Living - KD,Private & Voluntary Home Care,Bristol Houses UK Ltd,1212.08, 16-Jul-2012
279,Revenue,CCHD,Day Care - North,Private & Voluntary Day Care,Bristol Houses UK Ltd,1473.68, 06-Jul-2012
280,Revenue,CCHD,Supported Living - KD,Private & Voluntary Home Care,Bristol Houses UK Ltd,810.96, 16-Jul-2012
281,Revenue,CCHD,Supported Living - KD,Private & Voluntary Home Care,Bristol Houses UK Ltd,960, 16-Jul-2012
282,Revenue,CCHD,Younger MH non-res purchasing,Private & Voluntary Day Care,Bristol Houses UK Ltd,1008.75, 06-Jul-2012
283,Revenue,CCHD,Supported Living - KD,Private & Voluntary Home Care,Bristol Houses UK Ltd,585, 16-Jul-2012
284,Revenue,CCHD,Supported Living - KD,Private & Voluntary Home Care,Bristol Houses UK Ltd,600, 16-Jul-2012
285,Revenue,CCHD,Day Care - North,Private & Voluntary Day Care,Bristol Houses UK Ltd,2232.32, 06-Jul-2012
286,Revenue,CCHD,Supported Living - KD,Private & Voluntary Home Care,Bristol Houses UK Ltd,599.97, 16-Jul-2012
287,Revenue,CCHD,Bed and Breakfast,Bed & Breakfast,Bristol Housing & Support Limited,616, 17-Jul-2012
288,Revenue,CCHD,Bed and Breakfast,Bed & Breakfast,Bristol Housing & Support Limited,616, 17-Jul-2012
289,Revenue,CCHD,Bed and Breakfast,Bed & Breakfast,Bristol Housing & Support Limited,616, 23-Jul-2012
290,Revenue,CCHD,Bed and Breakfast,Bed & Breakfast,Bristol Housing & Support Limited,448, 23-Jul-2012
291,Revenue,CCHD,Bed Purchasing - Elderly S117- North,Residential Homes,Brockley Court Care Home,1818.04, 10-Jul-2012
292,Revenue,CCHD,Bed Purchasing - Elderly - North,Residential Homes,Brook Lane Residential Home,877.36, 10-Jul-2012
293,Revenue,CCHD,Bed Purchasing - Elderly - South,Nursing Homes,Brunel Care,713.44, 10-Jul-2012
294,Revenue,CCHD,Southmead Hospital Purchasing,Residential Homes,Brunel Care,1239.36, 10-Jul-2012
295,Revenue,CCHD,Bed Purchasing - Elderly MH - South,Nursing Homes,Brunel Care,2029.8, 10-Jul-2012
296,Revenue,CCHD,South Glos Users in South Glos Homes,Nursing Homes,Brunel Care,1319.93, 10-Jul-2012
297,Revenue,CCHD,Southmead Hospital Purchasing,Nursing Homes,Brunel Care,1267.64, 10-Jul-2012
298,Revenue,CCHD,South Glos Users in South Glos Homes,Nursing Homes,Brunel Care,1009.36, 10-Jul-2012
299,Revenue,CCHD,Bed Purchasing - Elderly - South,Residential Homes,Brunel Care,5008.85, 10-Jul-2012
300,Revenue,CCHD,Bed Purchasing - Elderly - South,Residential Homes,Brunel Care,1269.4, 10-Jul-2012
301,Revenue,CCHD,Southmead Hospital Purchasing,Residential Homes,Brunel Care,1316.4, 10-Jul-2012
302,Revenue,CCHD,Home Care - Elderly - North,Private & Voluntary Home Care,Brunelcare,6720, 02-Jul-2012
303,Revenue,CCHD,Home Care - Elderly - North,Private & Voluntary Home Care,Brunelcare,6720, 09-Jul-2012
304,Revenue,CCHD,Home Care - Elderly - North,Private & Voluntary Home Care,Brunelcare,6720, 16-Jul-2012
305,Revenue,CCHD,Home Care - Elderly - North,Private & Voluntary Home Care,Brunelcare,6720, 23-Jul-2012
306,Revenue,CCHD,Home Care - Elderly - North,Private & Voluntary Home Care,Brunelcare,6720, 30-Jul-2012
307,Revenue,CCHD,Bed Purchasing - Elderly - South,Nursing Homes,Brunelcare,10098.63, 24-Jul-2012
308,Revenue,CCHD,Bed Purchasing - Elderly - North,Nursing Homes,Brunelcare,3228.48, 24-Jul-2012
309,Revenue,CCHD,Frenchay Hospital Purchasing,Nursing Homes,Brunelcare,3244.56, 24-Jul-2012
310,Revenue,CCHD,Southmead Hospital Purchasing,Nursing Homes,Brunelcare,6191.3, 24-Jul-2012
311,Revenue,CCHD,South Glos Users in South Glos Homes,Nursing Homes,Brunelcare,9146.33, 24-Jul-2012
312,Revenue,CCHD,Bed Purchasing - Elderly MH - South,Nursing Homes,Brunelcare,8504.49, 24-Jul-2012
313,Revenue,CCHD,Bed purchasing - Elderly S117 - South,Nursing Homes,Brunelcare,5266.18, 24-Jul-2012
314,Revenue,CCHD,Bed purchasing - Elderly MH - North,Nursing Homes,Brunelcare,1614.24, 24-Jul-2012
315,Revenue,CCHD,Bed Purchasing - Elderly S117- North,Nursing Homes,Brunelcare,2368.79, 24-Jul-2012
316,Revenue,CCHD,Bed Purchasing - Elderly - South,Nursing Homes,Brunelcare,9626.15, 24-Jul-2012
317,Revenue,CCHD,Bed Purchasing - Elderly - North,Nursing Homes,Brunelcare,3076.28, 24-Jul-2012
318,Revenue,CCHD,Frenchay Hospital Purchasing,Nursing Homes,Brunelcare,3089.29, 24-Jul-2012
319,Revenue,CCHD,Southmead Hospital Purchasing,Nursing Homes,Brunelcare,4776.33, 24-Jul-2012
320,Revenue,CCHD,South Glos Users in South Glos Homes,Nursing Homes,Brunelcare,8851.29, 24-Jul-2012
321,Revenue,CCHD,Bed Purchasing - Elderly MH - South,Nursing Homes,Brunelcare,8097.24, 24-Jul-2012
322,Revenue,CCHD,Bed purchasing - Elderly S117 - South,Nursing Homes,Brunelcare,5738.5, 24-Jul-2012
323,Revenue,CCHD,Bed purchasing - Elderly MH - North,Nursing Homes,Brunelcare,1538.14, 24-Jul-2012
324,Revenue,CCHD,Bed Purchasing - Elderly S117- North,Nursing Homes,Brunelcare,2265.79, 24-Jul-2012
325,Revenue,CCHD,Elderly MH Day Care South,Private & Voluntary Day Care,Brunelcare,724.36, 06-Jul-2012
326,Revenue,CCHD,Home Care - Elderly - South,Other Small Contracts,Brunelcare,2650.96, 09-Jul-2012
327,Revenue,CCHD,Home Care - Elderly - North,Other Small Contracts,Brunelcare,4395.52, 09-Jul-2012
328,Revenue,CCHD,Day Care - South,Private & Voluntary Day Care,Brunelcare,88.88, 09-Jul-2012
329,Revenue,CCHD,Day Care - North,Private & Voluntary Day Care,Brunelcare,173.72, 09-Jul-2012
330,Revenue,CCHD,Under 65s -MH  Home Care Purch,Other Small Contracts,Brunelcare,197.96, 09-Jul-2012
331,Revenue,CCHD,Home care - Elderly MH - North,Other Small Contracts,Brunelcare,311.08, 09-Jul-2012
332,Revenue,CCHD,Elderly MH Day Care North,Private & Voluntary Day Care,Brunelcare,363.6, 09-Jul-2012
333,Revenue,CCHD,Home Care - Elderly - South,Other Small Contracts,Brunelcare,2739.84, 09-Jul-2012
334,Revenue,CCHD,Home Care - Elderly - North,Other Small Contracts,Brunelcare,4351.08, 09-Jul-2012
335,Revenue,CCHD,Day Care - South,Private & Voluntary Day Care,Brunelcare,137.36, 09-Jul-2012
336,Revenue,CCHD,Day Care - North,Private & Voluntary Day Care,Brunelcare,189.88, 09-Jul-2012
337,Revenue,CCHD,Under 65s -MH  Home Care Purch,Other Small Contracts,Brunelcare,181.8, 09-Jul-2012
338,Revenue,CCHD,Home care - Elderly MH - North,Other Small Contracts,Brunelcare,218.16, 09-Jul-2012
339,Revenue,CCHD,Elderly MH Day Care North,Private & Voluntary Day Care,Brunelcare,339.36, 09-Jul-2012
340,Revenue,CCHD,Home Care - Elderly - South,Other Small Contracts,Brunelcare,2481.28, 09-Jul-2012
341,Revenue,CCHD,Home Care - Elderly - North,Other Small Contracts,Brunelcare,4585.4, 09-Jul-2012
342,Revenue,CCHD,Day Care - South,Private & Voluntary Day Care,Brunelcare,137.36, 09-Jul-2012
343,Revenue,CCHD,Day Care - North,Private & Voluntary Day Care,Brunelcare,161.6, 09-Jul-2012
344,Revenue,CCHD,Carer`s Grant - North,Carers Breaks & Services,Brunelcare,16.16, 09-Jul-2012
345,Revenue,CCHD,Under 65s -MH  Home Care Purch,Other Small Contracts,Brunelcare,185.84, 09-Jul-2012
346,Revenue,CCHD,Home care - Elderly MH - North,Other Small Contracts,Brunelcare,545.4, 09-Jul-2012
347,Revenue,CCHD,Elderly MH Day Care North,Private & Voluntary Day Care,Brunelcare,375.72, 09-Jul-2012
348,Revenue,CCHD,Information Systems - Software,Computer Equipment - Purchase,BT Global Services Solutions,759.31, 25-Jul-2012
349,Revenue,CCHD,Woodleaze,Cleaning & Domestic Supplies,Bunzl Cleaning & Hygiene Supplies,811.59, 19-Jul-2012
350,Revenue,CCHD,Woodleaze,Equipment Maintenance,Bunzl Cleaning & Hygiene Supplies,3.37, 19-Jul-2012
351,Revenue,CCHD,Bed purchasing - Phys Dis - North,Nursing Homes,Bupa Care Services  Bridge House,5795.92, 10-Jul-2012
352,Revenue,CCHD,South Glos Users in all other LA Homes,Nursing Homes,Bupa Care Services  Bridge House,598.4, 10-Jul-2012
353,Revenue,CCHD,Alexandra Way,Maintenance by Contractor,C B Decorators,1940, 26-Jul-2012
354,Revenue,CCHD,Alexandra Way,Maintenance by Contractor,C B Decorators,775, 26-Jul-2012
355,Revenue,CCHD,Woodleaze,Maintenance by Contractor,C B Decorators,760, 26-Jul-2012
356,Revenue,CCHD,Supported Living - PS,Private & Voluntary Home Care,Camphill Communities Thornbury Limited,1736.4, 03-Jul-2012
357,Revenue,CCHD,Supported Living - KD,Private & Voluntary Home Care,Camphill Communities Thornbury Limited,2112.64, 02-Jul-2012
358,Revenue,CCHD,Supported Living - KD,Private & Voluntary Home Care,Camphill Communities Thornbury Limited,1034.3, 02-Jul-2012
359,Revenue,CCHD,Supported Living - KD,Private & Voluntary Home Care,Camphill Communities Thornbury Limited,1997.32, 02-Jul-2012
360,Revenue,CCHD,Supported Living - KD,Private & Voluntary Home Care,Camphill Communities Thornbury Limited,2216.04, 02-Jul-2012
361,Revenue,CCHD,Supported Living - KD,Private & Voluntary Home Care,Camphill Communities Thornbury Limited,1775.92, 19-Jul-2012
362,Revenue,CCHD,Supported Living - KD,Private & Voluntary Home Care,Camphill Communities Thornbury Limited,664.91, 23-Jul-2012
363,Revenue,CCHD,Supported Living - PS,Private & Voluntary Home Care,Camphill Communities Thornbury Limited,1736.4, 13-Jul-2012
364,Revenue,CCHD,Supported Living - KD,Private & Voluntary Home Care,Camphill Communities Thornbury Limited,2475, 16-Jul-2012
365,Revenue,CCHD,Supported Living - KD,Private & Voluntary Home Care,Camphill Communities Thornbury Limited,2269.12, 20-Jul-2012
366,Revenue,CCHD,Supported Living - KD,Private & Voluntary Home Care,Camphill Communities Thornbury Limited,2030.28, 20-Jul-2012
367,Revenue,CCHD,Supported Living - KD,Private & Voluntary Home Care,Camphill Communities Thornbury Limited,2248.52, 20-Jul-2012
368,Revenue,CCHD,Supported Living - KD,Private & Voluntary Home Care,Camphill Communities Thornbury Limited,1997.32, 20-Jul-2012
369,Revenue,CCHD,Supported Living - KD,Private & Voluntary Home Care,Camphill Communities Thornbury Limited,2112.64, 27-Jul-2012
370,Revenue,CCHD,Supported Living - KD,Private & Voluntary Home Care,Camphill Communities Thornbury Limited,1997.32, 30-Jul-2012
371,Revenue,CCHD,Supported Living - KD,Private & Voluntary Home Care,Camphill Communities Thornbury Limited,2216.04, 30-Jul-2012
372,Revenue,CCHD,Bed purchasing - Under 65s PWLD - North,Residential Homes,Camphill Devon Community,3185.24, 10-Jul-2012
373,Revenue,CCHD,Bed purchasing - Under 65s PWLD - North,Residential Homes,Camphill Devon Community,2234.08, 10-Jul-2012
374,Revenue,CCHD,Supported Living - PS,Private & Voluntary Home Care,Camphill Village Trust,1449.11, 27-Jul-2012
375,Revenue,CCHD,Home Care - Elderly - South,Other Small Contracts,Care 1st Homecare,3499.71, 19-Jul-2012
376,Revenue,CCHD,Home Care - Elderly - North,Other Small Contracts,Care 1st Homecare,4362.05, 19-Jul-2012
377,Revenue,CCHD,Day Care - South,Private & Voluntary Day Care,Care 1st Homecare,97.14, 19-Jul-2012
378,Revenue,CCHD,Day Care - North,Private & Voluntary Day Care,Care 1st Homecare,530.24, 19-Jul-2012
379,Revenue,CCHD,Home care - Elderly MH - North,Other Small Contracts,Care 1st Homecare,218.45, 19-Jul-2012
380,Revenue,CCHD,Home Care - LD Under 65 - South,Private & Voluntary Home Care,Care 1st Homecare,16.19, 19-Jul-2012
381,Revenue,CCHD,PWLD Home Care - Under 65 - KH,Private & Voluntary Home Care,Care 1st Homecare,141.66, 19-Jul-2012
382,Revenue,CCHD,Home Care - Elderly - South,Other Small Contracts,Care 1st Homecare,3450.41, 19-Jul-2012
383,Revenue,CCHD,Home Care - Elderly - North,Other Small Contracts,Care 1st Homecare,4450.95, 19-Jul-2012
384,Revenue,CCHD,Day Care - South,Private & Voluntary Day Care,Care 1st Homecare,161.96, 19-Jul-2012
385,Revenue,CCHD,Day Care - North,Private & Voluntary Day Care,Care 1st Homecare,607.5, 19-Jul-2012
386,Revenue,CCHD,Home care - Elderly MH - North,Other Small Contracts,Care 1st Homecare,218.7, 19-Jul-2012
387,Revenue,CCHD,Home Care - LD Under 65 - South,Private & Voluntary Home Care,Care 1st Homecare,28.35, 19-Jul-2012
388,Revenue,CCHD,PWLD Home Care - Under 65 - KH,Private & Voluntary Home Care,Care 1st Homecare,137.7, 19-Jul-2012
389,Revenue,CCHD,Home Care - Elderly - South,Other Small Contracts,Care 1st Homecare,2972.7, 19-Jul-2012
390,Revenue,CCHD,Home Care - Elderly - North,Other Small Contracts,Care 1st Homecare,4361.85, 19-Jul-2012
391,Revenue,CCHD,Day Care - South,Private & Voluntary Day Care,Care 1st Homecare,166.05, 19-Jul-2012
392,Revenue,CCHD,Day Care - North,Private & Voluntary Day Care,Care 1st Homecare,579.15, 19-Jul-2012
393,Revenue,CCHD,Home care - Elderly MH - North,Other Small Contracts,Care 1st Homecare,247.05, 19-Jul-2012
394,Revenue,CCHD,PWLD Home Care - Under 65 - KH,Private & Voluntary Home Care,Care 1st Homecare,137.7, 19-Jul-2012
395,Revenue,CCHD,Home Care - Elderly - South,Other Small Contracts,Care 1st Homecare,3227.85, 19-Jul-2012
396,Revenue,CCHD,Home Care - Elderly - North,Other Small Contracts,Care 1st Homecare,4629.15, 19-Jul-2012
397,Revenue,CCHD,Day Care - South,Private & Voluntary Day Care,Care 1st Homecare,206.55, 19-Jul-2012
398,Revenue,CCHD,Day Care - North,Private & Voluntary Day Care,Care 1st Homecare,465.75, 19-Jul-2012
399,Revenue,CCHD,Home care - Elderly MH - North,Other Small Contracts,Care 1st Homecare,230.85, 19-Jul-2012
400,Revenue,CCHD,Home Care - LD Under 65 - South,Private & Voluntary Home Care,Care 1st Homecare,16.2, 19-Jul-2012
401,Revenue,CCHD,PWLD Home Care - Under 65 - KH,Private & Voluntary Home Care,Care 1st Homecare,97.2, 19-Jul-2012
402,Revenue,CCHD,Home Care - Elderly - South,Other Small Contracts,Care 1st Homecare,2948.4, 19-Jul-2012
403,Revenue,CCHD,Home Care - Elderly - North,Other Small Contracts,Care 1st Homecare,4207.95, 19-Jul-2012
404,Revenue,CCHD,Day Care - South,Private & Voluntary Day Care,Care 1st Homecare,210.6, 19-Jul-2012
405,Revenue,CCHD,Day Care - North,Private & Voluntary Day Care,Care 1st Homecare,417.15, 19-Jul-2012
406,Revenue,CCHD,Home care - Elderly MH - North,Other Small Contracts,Care 1st Homecare,222.75, 19-Jul-2012
407,Revenue,CCHD,Home Care - LD Under 65 - South,Private & Voluntary Home Care,Care 1st Homecare,64.8, 19-Jul-2012
408,Revenue,CCHD,PWLD Home Care - Under 65 - KH,Private & Voluntary Home Care,Care 1st Homecare,170.1, 19-Jul-2012
409,Revenue,CCHD,Home Care - Elderly - South,Other Small Contracts,Care 1st Homecare,2555.55, 19-Jul-2012
410,Revenue,CCHD,Home Care - Elderly - North,Other Small Contracts,Care 1st Homecare,3904.2, 19-Jul-2012
411,Revenue,CCHD,Day Care - South,Private & Voluntary Day Care,Care 1st Homecare,162, 19-Jul-2012
412,Revenue,CCHD,Day Care - North,Private & Voluntary Day Care,Care 1st Homecare,356.4, 19-Jul-2012
413,Revenue,CCHD,Home care - Elderly MH - North,Other Small Contracts,Care 1st Homecare,218.7, 19-Jul-2012
414,Revenue,CCHD,Home Care - LD Under 65 - South,Private & Voluntary Home Care,Care 1st Homecare,64.8, 19-Jul-2012
415,Revenue,CCHD,PWLD Home Care - Under 65 - KH,Private & Voluntary Home Care,Care 1st Homecare,72.9, 19-Jul-2012
416,Revenue,CCHD,Bed Purchasing - PWLD S 117 Placements,Residential Homes,Care Community Ltd,7464.72, 10-Jul-2012
417,Revenue,CCHD,Supported Living - PS,Private & Voluntary Home Care,Care Horizons Limited,1821.16, 13-Jul-2012
418,Revenue,CCHD,Supported Living - PS,Private & Voluntary Home Care,Care Horizons Limited,516.22, 09-Jul-2012
419,Revenue,CCHD,Supported Living - KD,Private & Voluntary Home Care,Care Horizons Limited,5322.68, 05-Jul-2012
420,Revenue,CCHD,Day Care - South,Private & Voluntary Day Care,Care Horizons Limited,783.81, 06-Jul-2012
421,Revenue,CCHD,Supported Living - KD,Private & Voluntary Home Care,Care Horizons Limited,5412.55, 19-Jul-2012
422,Revenue,CCHD,Supported Living - PS,Private & Voluntary Home Care,Care Horizons Limited,1721.21, 25-Jul-2012
423,Revenue,CCHD,Purchase of Non-Res Care - KD,Private & Voluntary Day Care,Care Horizons Limited,1165.18, 19-Jul-2012
424,Revenue,CCHD,Purchase of Non-Res Care - KD,Private & Voluntary Day Care,Care Horizons Limited,1242.17, 19-Jul-2012
425,Revenue,CCHD,Purchase of Non-Res Care - KD,Private & Voluntary Day Care,Care Horizons Limited,1698.1, 18-Jul-2012
426,Revenue,CCHD,Purchase of Non-Res Care - KD,Private & Voluntary Day Care,Care Horizons Limited,993.12, 18-Jul-2012
427,Revenue,CCHD,Supported Living - KD,Private & Voluntary Home Care,Care Horizons Limited,5322.68, 27-Jul-2012
428,Revenue,CCHD,Electronic Home Care Monitoring,Other Supplies & Services,Care Monitoring 2000 Limited,5481.7, 18-Jul-2012
429,Revenue,CCHD,Home Care - General,Other Supplies & Services,Care Monitoring 2000 Limited,6947.9, 18-Jul-2012
430,Revenue,CCHD,Home Care - Elderly - South,Other Small Contracts,Care UK,7475.77, 19-Jul-2012
431,Revenue,CCHD,Home Care - Elderly - North,Other Small Contracts,Care UK,4721.66, 19-Jul-2012
432,Revenue,CCHD,Day Care - South,Private & Voluntary Day Care,Care UK,346.94, 19-Jul-2012
433,Revenue,CCHD,Day Care - North,Private & Voluntary Day Care,Care UK,991.16, 19-Jul-2012
434,Revenue,CCHD,Home care - Elderly MH - North,Other Small Contracts,Care UK,717.01, 19-Jul-2012
435,Revenue,CCHD,Elderly MH Day Care North,Private & Voluntary Day Care,Care UK,276.75, 19-Jul-2012
436,Revenue,CCHD,Home Care - Elderly - South,Other Small Contracts,Care UK,7693.24, 19-Jul-2012
437,Revenue,CCHD,Home Care - Elderly - North,Other Small Contracts,Care UK,4572.92, 19-Jul-2012
438,Revenue,CCHD,Day Care - South,Private & Voluntary Day Care,Care UK,388.19, 19-Jul-2012
439,Revenue,CCHD,Day Care - North,Private & Voluntary Day Care,Care UK,728.83, 19-Jul-2012
440,Revenue,CCHD,Home care - Elderly MH - North,Other Small Contracts,Care UK,717.01, 19-Jul-2012
441,Revenue,CCHD,Elderly MH Day Care North,Private & Voluntary Day Care,Care UK,261.69, 19-Jul-2012
442,Revenue,CCHD,Home Care - Elderly - South,Other Small Contracts,Care UK,7364.78, 13-Jul-2012
443,Revenue,CCHD,Home Care - Elderly - North,Other Small Contracts,Care UK,4690.34, 13-Jul-2012
444,Revenue,CCHD,Day Care - South,Private & Voluntary Day Care,Care UK,355.26, 13-Jul-2012
445,Revenue,CCHD,Day Care - North,Private & Voluntary Day Care,Care UK,832.76, 13-Jul-2012
446,Revenue,CCHD,Home care - Elderly MH - North,Other Small Contracts,Care UK,710.52, 13-Jul-2012
447,Revenue,CCHD,Elderly MH Day Care North,Private & Voluntary Day Care,Care UK,233.02, 13-Jul-2012
448,Revenue,CCHD,Home Care - Elderly - South,Other Small Contracts,Care UK,7013.38, 13-Jul-2012
449,Revenue,CCHD,Home Care - Elderly - North,Other Small Contracts,Care UK,4419.06, 13-Jul-2012
450,Revenue,CCHD,Day Care - South,Private & Voluntary Day Care,Care UK,317.06, 13-Jul-2012
451,Revenue,CCHD,Day Care - North,Private & Voluntary Day Care,Care UK,802.2, 13-Jul-2012
452,Revenue,CCHD,Home care - Elderly MH - North,Other Small Contracts,Care UK,672.32, 13-Jul-2012
453,Revenue,CCHD,Elderly MH Day Care North,Private & Voluntary Day Care,Care UK,229.2, 13-Jul-2012
454,Revenue,CCHD,Home Care - Elderly - South,Other Small Contracts,Care UK,7074.49, 13-Jul-2012
455,Revenue,CCHD,Home Care - Elderly - North,Other Small Contracts,Care UK,4407.58, 13-Jul-2012
456,Revenue,CCHD,Day Care - South,Private & Voluntary Day Care,Care UK,382, 13-Jul-2012
457,Revenue,CCHD,Day Care - North,Private & Voluntary Day Care,Care UK,840.4, 13-Jul-2012
458,Revenue,CCHD,Home care - Elderly MH - North,Other Small Contracts,Care UK,706.7, 13-Jul-2012
459,Revenue,CCHD,Elderly MH Day Care North,Private & Voluntary Day Care,Care UK,267.4, 13-Jul-2012
460,Revenue,CCHD,Home Care - Elderly - South,Other Small Contracts,Care UK,7166.16, 13-Jul-2012
461,Revenue,CCHD,Home Care - Elderly - North,Other Small Contracts,Care UK,4835.44, 13-Jul-2012
462,Revenue,CCHD,Day Care - South,Private & Voluntary Day Care,Care UK,351.44, 13-Jul-2012
463,Revenue,CCHD,Day Care - North,Private & Voluntary Day Care,Care UK,985.56, 13-Jul-2012
464,Revenue,CCHD,Home care - Elderly MH - North,Other Small Contracts,Care UK,255.94, 13-Jul-2012
465,Revenue,CCHD,Elderly MH Day Care North,Private & Voluntary Day Care,Care UK,45.84, 13-Jul-2012
466,Revenue,CCHD,Home Care - Elderly - South,Other Small Contracts,Carewatch (Bristol),223.13, 11-Jul-2012
467,Revenue,CCHD,Home Care - Elderly - North,Other Small Contracts,Carewatch (Bristol),551.51, 11-Jul-2012
468,Revenue,CCHD,Day Care - North,Private & Voluntary Day Care,Carewatch (Bristol),50.52, 11-Jul-2012
469,Revenue,CCHD,Home Care - Elderly - South,Other Small Contracts,Carewatch (Bristol),172.61, 19-Jul-2012
470,Revenue,CCHD,Home Care - Elderly - North,Other Small Contracts,Carewatch (Bristol),580.98, 19-Jul-2012
471,Revenue,CCHD,Day Care - North,Private & Voluntary Day Care,Carewatch (Bristol),101.04, 19-Jul-2012
472,Revenue,CCHD,Home Care - Elderly - South,Other Small Contracts,Carewatch (Bristol),248.39, 11-Jul-2012
473,Revenue,CCHD,Home Care - Elderly - North,Other Small Contracts,Carewatch (Bristol),572.56, 11-Jul-2012
474,Revenue,CCHD,Day Care - North,Private & Voluntary Day Care,Carewatch (Bristol),92.62, 11-Jul-2012
475,Revenue,CCHD,Home Care - Elderly - South,Other Small Contracts,Carewatch (Bristol),172.61, 19-Jul-2012
476,Revenue,CCHD,Home Care - Elderly - North,Other Small Contracts,Carewatch (Bristol),564.14, 19-Jul-2012
477,Revenue,CCHD,Day Care - North,Private & Voluntary Day Care,Carewatch (Bristol),96.83, 19-Jul-2012
478,Revenue,CCHD,Home Care - Elderly - South,Other Small Contracts,Carewatch (Bristol),210.5, 19-Jul-2012
479,Revenue,CCHD,Home Care - Elderly - North,Other Small Contracts,Carewatch (Bristol),564.14, 19-Jul-2012
480,Revenue,CCHD,Day Care - North,Private & Voluntary Day Care,Carewatch (Bristol),101.04, 19-Jul-2012
481,Revenue,CCHD,Elderly MH Day Care South,Private & Voluntary Day Care,Caring Home Healthcare Grp Ltd,500, 06-Jul-2012
482,Revenue,CCHD,Elderly MH Day Care South,Private & Voluntary Day Care,Caring Home Healthcare Grp Ltd,550, 06-Jul-2012
483,Revenue,CCHD,Home Care - Elderly - South,Other Small Contracts,Cash Friday at Lloyds TSB,189.14, 19-Jul-2012
484,Revenue,CCHD,Home Care - Elderly - North,Other Small Contracts,Cash Friday at Lloyds TSB,1354.86, 19-Jul-2012
485,Revenue,CCHD,Day Care - South,Private & Voluntary Day Care,Cash Friday at Lloyds TSB,30.88, 19-Jul-2012
486,Revenue,CCHD,Day Care - North,Private & Voluntary Day Care,Cash Friday at Lloyds TSB,88.78, 19-Jul-2012
487,Revenue,CCHD,Home Care - Elderly - South,Other Small Contracts,Cash Friday at Lloyds TSB,185.28, 20-Jul-2012
488,Revenue,CCHD,Home Care - Elderly - North,Other Small Contracts,Cash Friday at Lloyds TSB,1308.54, 20-Jul-2012
489,Revenue,CCHD,Day Care - South,Private & Voluntary Day Care,Cash Friday at Lloyds TSB,30.88, 20-Jul-2012
490,Revenue,CCHD,Day Care - North,Private & Voluntary Day Care,Cash Friday at Lloyds TSB,88.78, 20-Jul-2012
491,Revenue,CCHD,Home Care - Elderly - South,Other Small Contracts,Cash Friday at Lloyds TSB,185.28, 20-Jul-2012
492,Revenue,CCHD,Home Care - Elderly - North,Other Small Contracts,Cash Friday at Lloyds TSB,1370.3, 20-Jul-2012
493,Revenue,CCHD,Day Care - South,Private & Voluntary Day Care,Cash Friday at Lloyds TSB,30.88, 20-Jul-2012
494,Revenue,CCHD,Day Care - North,Private & Voluntary Day Care,Cash Friday at Lloyds TSB,88.78, 20-Jul-2012
495,Revenue,CCHD,Home Care - Elderly - South,Other Small Contracts,Cash Friday at Lloyds TSB,185.28, 20-Jul-2012
496,Revenue,CCHD,Home Care - Elderly - North,Other Small Contracts,Cash Friday at Lloyds TSB,1323.98, 20-Jul-2012
497,Revenue,CCHD,Day Care - South,Private & Voluntary Day Care,Cash Friday at Lloyds TSB,30.88, 20-Jul-2012
498,Revenue,CCHD,Day Care - North,Private & Voluntary Day Care,Cash Friday at Lloyds TSB,42.46, 20-Jul-2012
499,Revenue,CCHD,Frenchay Hospital Purchasing,Nursing Homes,Cedar Care Homes Ltd,1041.52, 10-Jul-2012
500,Revenue,CCHD,Home Care - Elderly - North,Other Small Contracts,Cedar Community Care,476.56, 11-Jul-2012
501,Revenue,CCHD,Day Care - North,Private & Voluntary Day Care,Cedar Community Care,32.02, 11-Jul-2012
502,Revenue,CCHD,Frenchay Hospital Purchasing,Residential Homes,Centenary Care Homes Ltd,1239.2, 10-Jul-2012
503,Revenue,CCHD,Bed Purchasing - Elderly - South,Residential Homes,Cepen Lodge Care Home,2155.6, 10-Jul-2012
504,Revenue,CCHD,Bed Purchasing - Elderly - South,Residential Homes,Cepen Lodge Care Home,2155.6, 10-Jul-2012
505,Revenue,CCHD,Home Care - Elderly - South,Other Small Contracts,Cherish Able Care Limited,2715.08, 13-Jul-2012
506,Revenue,CCHD,Home care - Elderly MH - North,Other Small Contracts,Cherish Able Care Limited,57.68, 13-Jul-2012
507,Revenue,CCHD,Home Care - Elderly - South,Other Small Contracts,Cherish Able Care Limited,2743.92, 13-Jul-2012
508,Revenue,CCHD,Home care - Elderly MH - North,Other Small Contracts,Cherish Able Care Limited,271.92, 13-Jul-2012
509,Revenue,CCHD,Home Care - Elderly - South,Other Small Contracts,Cherish Able Care Limited,2715.08, 20-Jul-2012
510,Revenue,CCHD,Home care - Elderly MH - North,Other Small Contracts,Cherish Able Care Limited,395.52, 20-Jul-2012
511,Revenue,CCHD,Home Care - Elderly - South,Other Small Contracts,Cherish Able Care Limited,2414.32, 27-Jul-2012
512,Revenue,CCHD,Home care - Elderly MH - North,Other Small Contracts,Cherish Able Care Limited,403.76, 27-Jul-2012
513,Revenue,CCHD,Bed purchasing -S28A  Under 65 - North,Residential Homes,Chescombe Lodge,8489.04, 10-Jul-2012
514,Revenue,CCHD,Bed Purchasing - Under 65s PWLD - South,Residential Homes,Chosen Court,6846.32, 10-Jul-2012
515,Revenue,CCHD,Bed Purchasing - PWLD S 117 Placements,Residential Homes,Chosen Court,7506.28, 10-Jul-2012
516,Revenue,CCHD,Bed Purchasing - PWLD S 117 Placements,Residential Homes,Chosen Court,741.81, 10-Jul-2012
517,Revenue,CCHD,Bed Purchasing - Under 65s PWLD - South,Residential Homes,Chosen Court,5459.24, 10-Jul-2012
518,Revenue,CCHD,Training - Adult Services,Training Expenses,Chris Garnier,550, 10-Jul-2012
519,Revenue,CCHD,Training - Adult Services,Training Expenses,City & Guilds,680, 13-Jul-2012
520,Revenue,CCHD,Bed Purchasing - Elderly - South,Residential Homes,Cleeve Lodge,1597.04, 10-Jul-2012
521,Revenue,CCHD,Bed Purchasing - Elderly - North,Residential Homes,Cleeve Lodge,1658.37, 10-Jul-2012
522,Revenue,CCHD,Bed Purchasing - Elderly - North,Residential Homes,Cleeve Lodge,1009.44, 10-Jul-2012
523,Revenue,CCHD,Bed Purchasing - Elderly - North,Residential Homes,Cleeve Lodge,1135.77, 10-Jul-2012
524,Revenue,CCHD,Southmead Hospital Purchasing,Residential Homes,Cleeve Lodge,1425.36, 10-Jul-2012
525,Revenue,CCHD,Bed Purchasing - Elderly - South,Residential Homes,Cleeve Lodge,1224.52, 10-Jul-2012
526,Revenue,CCHD,Bed Purchasing - Elderly - South,Residential Homes,Cleeve Lodge,1659.48, 10-Jul-2012
527,Revenue,CCHD,Bed Purchasing - Elderly - North,Residential Homes,Cleeve Lodge,1571.42, 10-Jul-2012
528,Revenue,CCHD,Bed Purchasing - Elderly - South,Residential Homes,Cleeve Lodge,1750.68, 10-Jul-2012
529,Revenue,CCHD,Bed Purchasing - Elderly - South,Residential Homes,Cleeve Lodge,1449.08, 10-Jul-2012
530,Revenue,CCHD,Bed Purchasing - Elderly - South,Residential Homes,Cleeve Lodge,2236.96, 10-Jul-2012
531,Revenue,CCHD,Bed Purchasing - Elderly - South,Residential Homes,Cleeve Lodge,1767.96, 10-Jul-2012
532,Revenue,CCHD,Southmead Hospital Purchasing,Residential Homes,Cleeve Lodge,1434.8, 10-Jul-2012
533,Revenue,CCHD,Frenchay Hospital Purchasing,Residential Homes,Collingwood Residential Home,1027.68, 10-Jul-2012
534,Revenue,CCHD,Bed Purchasing - Elderly - South,Residential Homes,Collingwood Residential Home,1284.12, 10-Jul-2012
535,Revenue,CCHD,Frenchay Hospital Purchasing,Residential Homes,Collingwood Residential Home,694.68, 10-Jul-2012
536,Revenue,CCHD,Bed Purchasing - Elderly - South,Residential Homes,Collingwood Residential Home,1351.16, 10-Jul-2012
537,Revenue,CCHD,Bed Purchasing - Elderly - South,Residential Homes,Collingwood Residential Home,1058.6, 10-Jul-2012
538,Revenue,CCHD,Bed Purchasing - Elderly - South,Residential Homes,Collingwood Residential Home,1323.64, 10-Jul-2012
539,Revenue,CCHD,Frenchay Hospital Purchasing,Residential Homes,Collingwood Residential Home,1232, 10-Jul-2012
540,Revenue,CCHD,Bed Purchasing - Elderly MH - South,Residential Homes,Collingwood Residential Home,1298.4, 10-Jul-2012
541,Revenue,CCHD,Bed Purchasing - Elderly - South,Residential Homes,Collingwood Residential Home,1247.92, 10-Jul-2012
542,Revenue,CCHD,Bed Purchasing - Elderly - South,Residential Homes,Collingwood Residential Home,1373.76, 10-Jul-2012
543,Revenue,CCHD,Bed Purchasing - Elderly - South,Residential Homes,Collingwood Residential Home,1245.88, 10-Jul-2012
544,Revenue,CCHD,Bed Purchasing - Elderly - South,Residential Homes,Collingwood Residential Home,1396.72, 10-Jul-2012
545,Revenue,CCHD,Bed and Breakfast,Bed & Breakfast,Connolly & Callaghan Limited,581, 17-Jul-2012
546,Revenue,CCHD,Bed and Breakfast,Bed & Breakfast,Connolly & Callaghan Limited,511, 17-Jul-2012
547,Revenue,CCHD,Bed and Breakfast,Bed & Breakfast,Connolly & Callaghan Limited,546, 17-Jul-2012
548,Revenue,CCHD,Bed and Breakfast,Bed & Breakfast,Connolly & Callaghan Limited,616, 17-Jul-2012
549,Revenue,CCHD,Bed and Breakfast,Bed & Breakfast,Connolly & Callaghan Limited,476, 17-Jul-2012
550,Revenue,CCHD,Bed and Breakfast,Bed & Breakfast,Connolly & Callaghan Limited,525, 17-Jul-2012
551,Revenue,CCHD,Bed and Breakfast,Bed & Breakfast,Connolly & Callaghan Limited,581, 18-Jul-2012
552,Revenue,CCHD,Bed and Breakfast,Bed & Breakfast,Connolly & Callaghan Limited,546, 18-Jul-2012
553,Revenue,CCHD,Bed and Breakfast,Bed & Breakfast,Connolly & Callaghan Limited,616, 18-Jul-2012
554,Revenue,CCHD,Bed and Breakfast,Bed & Breakfast,Connolly & Callaghan Limited,476, 18-Jul-2012
555,Revenue,CCHD,Bed and Breakfast,Bed & Breakfast,Connolly & Callaghan Limited,581, 23-Jul-2012
556,Revenue,CCHD,Bed and Breakfast,Bed & Breakfast,Connolly & Callaghan Limited,476, 18-Jul-2012
557,Revenue,CCHD,Bed and Breakfast,Bed & Breakfast,Connolly & Callaghan Limited,581, 23-Jul-2012
558,Revenue,CCHD,Bed and Breakfast,Bed & Breakfast,Connolly & Callaghan Limited,476, 23-Jul-2012
559,Revenue,CCHD,Bed purchasing - Under 65s PWLD - North,Residential Homes,Consensus Support Services Ltd,8938, 25-Jul-2012
560,Revenue,CCHD,Bed purchasing -S28A  Under 65 - North,Residential Homes,Cream Ii Ltd  Longrun House,7845.84, 10-Jul-2012
561,Revenue,CCHD,Bed purchasing -S28A  Under 65 - North,Residential Homes,Creedy Court,9074.84, 10-Jul-2012
562,Revenue,CCHD,Bed Purchasing - S28A - Over 65- North,Residential Homes,Creedy Court,7548.92, 10-Jul-2012
563,Revenue,CCHD,Electronic Home Care Monitoring,Other Supplies & Services,Crossroads Care Wessex Ltd,1194, 03-Jul-2012
564,Revenue,CCHD,Brokerage and Information Service,Grants to Voluntary Bodies,D H I,9210.09, 27-Jul-2012
565,Revenue,CCHD,Purchase of Non-Res Care - PS,Private & Voluntary Day Care,Daneswood,4755.25, 03-Jul-2012
566,Revenue,CCHD,Purchase of Non-Res Care - PS,Private & Voluntary Day Care,Daneswood,5525.3, 12-Jul-2012
567,Revenue,CCHD,Bed Purchasing - Under 65s PWLD - South,Residential Homes,Daneswood,10754.88, 10-Jul-2012
568,Revenue,CCHD,Bed purchasing - Under 65s PWLD - North,Residential Homes,Daneswood,8901.24, 10-Jul-2012
569,Revenue,CCHD,Learning Difficulties PSL,Other Supplies & Services,Individual,2016.44, 20-Jul-2012
570,Revenue,CCHD,Day Care - North,Private & Voluntary Day Care,Deafblind UK,1353.94, 23-Jul-2012
571,Revenue,CCHD,Day Care - North,Private & Voluntary Day Care,Deafblind UK,2039.12, 19-Jul-2012
572,Revenue,CCHD,Day Care - South,Private & Voluntary Day Care,Deafblind UK,1476.1, 24-Jul-2012
573,Revenue,CCHD,Purchase of Non-Res Care - KD,Private & Voluntary Day Care,Design 4 Life Ltd,1390.68, 20-Jul-2012
574,Revenue,CCHD,Bed Purchasing - Under 65s PWLD - South,Residential Homes,Devon & Cornwall Autistic Community Trus,7054.46, 10-Jul-2012
575,Revenue,CCHD,Day Care - South,Private & Voluntary Day Care,Dhek Bhal,752.04, 30-Jul-2012
576,Revenue,CCHD,Supported Living - PS,Private & Voluntary Home Care,Dimensions (UK) Ltd,8006.68, 02-Jul-2012
577,Revenue,CCHD,Supported Living - PS,Private & Voluntary Home Care,Dimensions (UK) Ltd,7748.4, 23-Jul-2012
578,Revenue,CCHD,Supported Living - PS,Private & Voluntary Home Care,Dimensions (UK) Ltd,8006.68, 23-Jul-2012
579,Revenue,CCHD,Bed Purchasing - Under 65s PWLD - South,Residential Homes,Dimensions(Uk) Ltd,4763.44, 10-Jul-2012
580,Revenue,CCHD,Bed Purchasing - Under 65s PWLD - South,Residential Homes,Dimensions(Uk) Ltd,1726.2, 10-Jul-2012
581,Revenue,CCHD,Home Care - Elderly - South,Other Small Contracts,DoCare Ltd,3275.59, 03-Jul-2012
582,Revenue,CCHD,Home Care - Elderly - North,Other Small Contracts,DoCare Ltd,3677.52, 03-Jul-2012
583,Revenue,CCHD,Day Care - South,Private & Voluntary Day Care,DoCare Ltd,46.2, 03-Jul-2012
584,Revenue,CCHD,Day Care - North,Private & Voluntary Day Care,DoCare Ltd,480.48, 03-Jul-2012
585,Revenue,CCHD,Home care - Elderly MH - North,Other Small Contracts,DoCare Ltd,189.42, 03-Jul-2012
586,Revenue,CCHD,Elderly MH Day Care North,Private & Voluntary Day Care,DoCare Ltd,55.44, 03-Jul-2012
587,Revenue,CCHD,Home Care - Elderly - South,Other Small Contracts,DoCare Ltd,2984.52, 19-Jul-2012
588,Revenue,CCHD,Home Care - Elderly - North,Other Small Contracts,DoCare Ltd,3668.28, 19-Jul-2012
589,Revenue,CCHD,Day Care - South,Private & Voluntary Day Care,DoCare Ltd,55.44, 19-Jul-2012
590,Revenue,CCHD,Day Care - North,Private & Voluntary Day Care,DoCare Ltd,494.34, 19-Jul-2012
591,Revenue,CCHD,Home care - Elderly MH - North,Other Small Contracts,DoCare Ltd,189.42, 19-Jul-2012
592,Revenue,CCHD,Elderly MH Day Care North,Private & Voluntary Day Care,DoCare Ltd,55.44, 19-Jul-2012
593,Revenue,CCHD,Home Care - Elderly - South,Other Small Contracts,DoCare Ltd,3187.8, 19-Jul-2012
594,Revenue,CCHD,Home Care - Elderly - North,Other Small Contracts,DoCare Ltd,3700.62, 19-Jul-2012
595,Revenue,CCHD,Day Care - South,Private & Voluntary Day Care,DoCare Ltd,55.44, 19-Jul-2012
596,Revenue,CCHD,Day Care - North,Private & Voluntary Day Care,DoCare Ltd,485.1, 19-Jul-2012
597,Revenue,CCHD,Home care - Elderly MH - North,Other Small Contracts,DoCare Ltd,166.32, 19-Jul-2012
598,Revenue,CCHD,Elderly MH Day Care North,Private & Voluntary Day Care,DoCare Ltd,92.4, 19-Jul-2012
599,Revenue,CCHD,Home Care - Elderly - South,Other Small Contracts,DoCare Ltd,3118.5, 30-Jul-2012
600,Revenue,CCHD,Home Care - Elderly - North,Other Small Contracts,DoCare Ltd,3594.36, 30-Jul-2012
601,Revenue,CCHD,Day Care - South,Private & Voluntary Day Care,DoCare Ltd,101.64, 30-Jul-2012
602,Revenue,CCHD,Day Care - North,Private & Voluntary Day Care,DoCare Ltd,457.38, 30-Jul-2012
603,Revenue,CCHD,Home care - Elderly MH - North,Other Small Contracts,DoCare Ltd,184.8, 30-Jul-2012
604,Revenue,CCHD,Elderly MH Day Care North,Private & Voluntary Day Care,DoCare Ltd,60.06, 30-Jul-2012
605,Revenue,CCHD,Home Care - Elderly - South,Other Small Contracts,DoCare Ltd,3234, 30-Jul-2012
606,Revenue,CCHD,Home Care - Elderly - North,Other Small Contracts,DoCare Ltd,3649.8, 30-Jul-2012
607,Revenue,CCHD,Day Care - South,Private & Voluntary Day Care,DoCare Ltd,101.64, 30-Jul-2012
608,Revenue,CCHD,Day Care - North,Private & Voluntary Day Care,DoCare Ltd,498.96, 30-Jul-2012
609,Revenue,CCHD,Home care - Elderly MH - North,Other Small Contracts,DoCare Ltd,184.8, 30-Jul-2012
610,Revenue,CCHD,Elderly MH Day Care North,Private & Voluntary Day Care,DoCare Ltd,60.06, 30-Jul-2012
611,Revenue,CCHD,Bed Purchasing - Elderly - South,Nursing Homes,Dunkirk Memorial House,1158.2, 10-Jul-2012
612,Revenue,CCHD,MH Purchasing - Younger,Residential Homes,Dunraven House,1810.24, 10-Jul-2012
613,Revenue,CCHD,Bed and Breakfast,Bed & Breakfast,E J Bartlett,840, 09-Jul-2012
614,Revenue,CCHD,Bed and Breakfast,Bed & Breakfast,E J Bartlett,420, 09-Jul-2012
615,Revenue,CCHD,Bed and Breakfast,Bed & Breakfast,E J Bartlett,630, 09-Jul-2012
616,Revenue,CCHD,Bed and Breakfast,Bed & Breakfast,E J Bartlett,630, 09-Jul-2012
617,Revenue,CCHD,Bed and Breakfast,Bed & Breakfast,E J Bartlett,840, 09-Jul-2012
618,Revenue,CCHD,Bed and Breakfast,Bed & Breakfast,E J Bartlett,630, 12-Jul-2012
619,Revenue,CCHD,Bed and Breakfast,Bed & Breakfast,E J Bartlett,630, 12-Jul-2012
620,Revenue,CCHD,Bed and Breakfast,Bed & Breakfast,E J Bartlett,720, 12-Jul-2012
621,Revenue,CCHD,Bed and Breakfast,Bed & Breakfast,E J Bartlett,840, 12-Jul-2012
622,Revenue,CCHD,Bed and Breakfast,Bed & Breakfast,E J Bartlett,630, 20-Jul-2012
623,Revenue,CCHD,Bed and Breakfast,Bed & Breakfast,E J Bartlett,630, 20-Jul-2012
624,Revenue,CCHD,Bed and Breakfast,Bed & Breakfast,E J Bartlett,420, 20-Jul-2012
625,Revenue,CCHD,Bed and Breakfast,Bed & Breakfast,E J Bartlett,840, 20-Jul-2012
626,Revenue,CCHD,Minor Adaptations Service,Operational Equipment,Eastman & Co (Timber) Limited,588, 20-Jul-2012
627,Revenue,CCHD,MH Purchasing - Younger,Residential Homes,Eclipse Office Park,13285.84, 10-Jul-2012
628,Revenue,CCHD,Swift Dump Code,Residential Homes,Edgecumbe Lodge,7668.4, 17-Jul-2012
629,Revenue,CCHD,Bed purchasing - Elderly PWLD - South,Residential Homes,Edgemont House Ltd,1310.88, 10-Jul-2012
630,Revenue,CCHD,Bed Purchasing - Elderly - South,Residential Homes,Edgemont House Ltd,1353.44, 10-Jul-2012
631,Revenue,CCHD,Bed Purchasing - Elderly - South,Residential Homes,Edgemont House Ltd,1243.44, 10-Jul-2012
632,Revenue,CCHD,Frenchay Hospital Purchasing,Residential Homes,Edgemont House Ltd,1361.56, 10-Jul-2012
633,Revenue,CCHD,South Glos Users in South Glos Homes,Nursing Homes,Edgemont View Nursing Home,1180.17, 10-Jul-2012
634,Revenue,CCHD,Bed Purchasing - Elderly - South,Nursing Homes,Edgemont View Nursing Home,1418.52, 10-Jul-2012
635,Revenue,CCHD,Frenchay Hospital Purchasing,Nursing Homes,Edgemont View Nursing Home,1341.28, 10-Jul-2012
636,Revenue,CCHD,South Glos Users in South Glos Homes,Nursing Homes,Edgemont View Nursing Home,854.07, 10-Jul-2012
637,Revenue,CCHD,Bed Purchasing - Elderly - South,Nursing Homes,Edgemont View Nursing Home,1602.76, 10-Jul-2012
638,Revenue,CCHD,Frenchay Hospital Purchasing,Nursing Homes,Edgemont View Nursing Home,606.84, 10-Jul-2012
639,Revenue,CCHD,Bed Purchasing - Under 65s PWLD - South,Residential Homes,Education & Services for People with Autism,10615.08, 17-Jul-2012
640,Revenue,CCHD,Home Care - Elderly - South,Other Small Contracts,Elite Home Care Ltd,3407.71, 03-Jul-2012
641,Revenue,CCHD,Day Care - South,Private & Voluntary Day Care,Elite Home Care Ltd,138.56, 03-Jul-2012
642,Revenue,CCHD,Under 65s -MH  Home Care Purch,Other Small Contracts,Elite Home Care Ltd,86.6, 03-Jul-2012
643,Revenue,CCHD,Home care - Elderly MH - North,Other Small Contracts,Elite Home Care Ltd,363.72, 03-Jul-2012
644,Revenue,CCHD,Home Care - Elderly - South,Other Small Contracts,Elite Home Care Ltd,2970.38, 10-Jul-2012
645,Revenue,CCHD,Day Care - South,Private & Voluntary Day Care,Elite Home Care Ltd,103.92, 10-Jul-2012
646,Revenue,CCHD,Under 65s -MH  Home Care Purch,Other Small Contracts,Elite Home Care Ltd,77.94, 10-Jul-2012
647,Revenue,CCHD,Home care - Elderly MH - North,Other Small Contracts,Elite Home Care Ltd,346.4, 10-Jul-2012
648,Revenue,CCHD,Home Care - Elderly - South,Other Small Contracts,Elite Home Care Ltd,3221.52, 26-Jul-2012
649,Revenue,CCHD,Day Care - South,Private & Voluntary Day Care,Elite Home Care Ltd,51.96, 26-Jul-2012
650,Revenue,CCHD,Under 65s -MH  Home Care Purch,Other Small Contracts,Elite Home Care Ltd,86.6, 26-Jul-2012
651,Revenue,CCHD,Home care - Elderly MH - North,Other Small Contracts,Elite Home Care Ltd,342.07, 26-Jul-2012
652,Revenue,CCHD,Home Care - Elderly - South,Other Small Contracts,Elite Home Care Ltd,2810.17, 26-Jul-2012
653,Revenue,CCHD,Under 65s -MH  Home Care Purch,Other Small Contracts,Elite Home Care Ltd,77.94, 26-Jul-2012
654,Revenue,CCHD,Home care - Elderly MH - North,Other Small Contracts,Elite Home Care Ltd,350.73, 26-Jul-2012
655,Revenue,CCHD,Home Care - Elderly - South,Other Small Contracts,Elite Home Care Ltd,2901.1, 26-Jul-2012
656,Revenue,CCHD,Day Care - South,Private & Voluntary Day Care,Elite Home Care Ltd,51.96, 26-Jul-2012
657,Revenue,CCHD,Under 65s -MH  Home Care Purch,Other Small Contracts,Elite Home Care Ltd,86.6, 26-Jul-2012
658,Revenue,CCHD,Home care - Elderly MH - North,Other Small Contracts,Elite Home Care Ltd,363.72, 26-Jul-2012
659,Revenue,CCHD,Bed Purchasing - Elderly - South,Residential Homes,Elmbridge Residential Home Ltd,3928.68, 10-Jul-2012
660,Revenue,CCHD,Frenchay Hospital Purchasing,Nursing Homes,Elmwood Nursing Home,2213.12, 10-Jul-2012
661,Revenue,CCHD,Training - Adult Services,Training Expenses,Emerald Group Publishing Limited,2394, 20-Jul-2012
662,Revenue,CCHD,Younger MH non-res purchasing,Private & Voluntary Day Care,Enham,638.72, 06-Jul-2012
663,Revenue,CCHD,Younger MH non-res purchasing,Private & Voluntary Day Care,Enham,638.72, 06-Jul-2012
664,Revenue,CCHD,Tenancy Start Up Scheme,Other Supplies & Services,Evenbrook Group Ltd,1250, 13-Jul-2012
665,Revenue,CCHD,Home Care - Elderly - South,Other Small Contracts,Everycare (Bristol) Ltd,420, 04-Jul-2012
666,Revenue,CCHD,Home Care - Elderly - North,Other Small Contracts,Everycare (Bristol) Ltd,1293.6, 04-Jul-2012
667,Revenue,CCHD,Day Care - North,Private & Voluntary Day Care,Everycare (Bristol) Ltd,58.8, 04-Jul-2012
668,Revenue,CCHD,Home Care - Elderly - South,Other Small Contracts,Everycare (Bristol) Ltd,810.6, 06-Jul-2012
669,Revenue,CCHD,Home Care - Elderly - North,Other Small Contracts,Everycare (Bristol) Ltd,1167.6, 06-Jul-2012
670,Revenue,CCHD,Day Care - North,Private & Voluntary Day Care,Everycare (Bristol) Ltd,58.8, 06-Jul-2012
671,Revenue,CCHD,Home Care - Elderly - South,Other Small Contracts,Everycare (Bristol) Ltd,432.6, 19-Jul-2012
672,Revenue,CCHD,Home Care - Elderly - North,Other Small Contracts,Everycare (Bristol) Ltd,1344, 19-Jul-2012
673,Revenue,CCHD,Home Care - Elderly - South,Other Small Contracts,Everycare (Bristol) Ltd,1234.8, 19-Jul-2012
674,Revenue,CCHD,Home Care - Elderly - North,Other Small Contracts,Everycare (Bristol) Ltd,1264.2, 19-Jul-2012
675,Revenue,CCHD,Day Care - North,Private & Voluntary Day Care,Everycare (Bristol) Ltd,58.8, 19-Jul-2012
676,Revenue,CCHD,Home Care - Elderly - South,Other Small Contracts,Everycare (Bristol) Ltd,1213.8, 19-Jul-2012
677,Revenue,CCHD,Home Care - Elderly - North,Other Small Contracts,Everycare (Bristol) Ltd,1352.4, 19-Jul-2012
678,Revenue,CCHD,Day Care - North,Private & Voluntary Day Care,Everycare (Bristol) Ltd,58.8, 19-Jul-2012
679,Revenue,CCHD,Home Care - Elderly - South,Other Small Contracts,Everycare (Bristol) Ltd,1188.6, 19-Jul-2012
680,Revenue,CCHD,Home Care - Elderly - North,Other Small Contracts,Everycare (Bristol) Ltd,1339.8, 19-Jul-2012
681,Revenue,CCHD,Day Care - North,Private & Voluntary Day Care,Everycare (Bristol) Ltd,58.8, 19-Jul-2012
682,Revenue,CCHD,Home Care - Elderly - South,Other Small Contracts,Everycare (Bristol) Ltd,1264.2, 19-Jul-2012
683,Revenue,CCHD,Home Care - Elderly - North,Other Small Contracts,Everycare (Bristol) Ltd,1365, 19-Jul-2012
684,Revenue,CCHD,Home Care - Elderly - South,Other Small Contracts,Everycare (Bristol) Ltd,1402.8, 24-Jul-2012
685,Revenue,CCHD,Home Care - Elderly - North,Other Small Contracts,Everycare (Bristol) Ltd,1398.6, 24-Jul-2012
686,Revenue,CCHD,Bed Purchasing - Elderly MH - South,Residential Homes,Exmouth House,1382.92, 10-Jul-2012
687,Revenue,CCHD,Southmead Hospital Purchasing,Nursing Homes,Fairview Court,4035.13, 10-Jul-2012
688,Revenue,CCHD,Southmead Hospital Purchasing,Nursing Homes,Fairview Court,2575.5, 10-Jul-2012
689,Revenue,CCHD,Southmead Hospital Purchasing,Nursing Homes,Fairview Court,3280.46, 10-Jul-2012
690,Revenue,CCHD,Southmead Hospital Purchasing,Nursing Homes,Fairview Court,4512.73, 10-Jul-2012
691,Revenue,CCHD,Southmead Hospital Purchasing,Nursing Homes,Fairview Court,1885.92, 10-Jul-2012
692,Revenue,CCHD,South Glos Users in South Glos Homes,Nursing Homes,Fairview Court,1040.41, 10-Jul-2012
693,Revenue,CCHD,South Glos Users in South Glos Homes,Nursing Homes,Fairview Court,1319.93, 10-Jul-2012
694,Revenue,CCHD,South Glos Users in South Glos Homes,Nursing Homes,Fairview Court,1319.93, 10-Jul-2012
695,Revenue,CCHD,South Glos Users in South Glos Homes,Nursing Homes,Fairview Court,636.67, 10-Jul-2012
696,Revenue,CCHD,Bed Purchasing - Elderly MH - South,Residential Homes,Fairview Court,1403.2, 10-Jul-2012
697,Revenue,CCHD,Bed Purchasing - Elderly - South,Residential Homes,Fairview Court,2623.36, 10-Jul-2012
698,Revenue,CCHD,Bed Purchasing - Elderly - South,Residential Homes,Fairview Court,2118.56, 10-Jul-2012
699,Revenue,CCHD,Frenchay Hospital Purchasing,Nursing Homes,Fairview Court Care Home,1909.43, 25-Jul-2012
700,Revenue,CCHD,South Glos Users in South Glos Homes,Nursing Homes,Fairview Court Care Home,3447.34, 25-Jul-2012
701,Revenue,CCHD,Bed purchasing - Phys Dis - North,Nursing Homes,Fairview Court Care Home,1912.83, 25-Jul-2012
702,Revenue,CCHD,Bed Purchasing - Elderly MH - South,Nursing Homes,Fairview Court Care Home,2932.36, 25-Jul-2012
703,Revenue,CCHD,Bed purchasing - Elderly S117 - South,Nursing Homes,Fairview Court Care Home,2467.77, 25-Jul-2012
704,Revenue,CCHD,Frenchay Hospital Purchasing,Nursing Homes,Fairview Court Care Home,1973.08, 25-Jul-2012
705,Revenue,CCHD,South Glos Users in South Glos Homes,Nursing Homes,Fairview Court Care Home,2406.93, 25-Jul-2012
706,Revenue,CCHD,Bed purchasing - Phys Dis - North,Nursing Homes,Fairview Court Care Home,1976.57, 25-Jul-2012
707,Revenue,CCHD,Bed Purchasing - Elderly MH - South,Nursing Homes,Fairview Court Care Home,3030.11, 25-Jul-2012
708,Revenue,CCHD,Bed purchasing - Elderly S117 - South,Nursing Homes,Fairview Court Care Home,2550.03, 25-Jul-2012
709,Revenue,CCHD,Bed Purchasing - Elderly - South,Residential Homes,Fairview House,634.12, 10-Jul-2012
710,Revenue,CCHD,Frenchay Hospital Purchasing,Residential Homes,Fairview House,1233.32, 10-Jul-2012
711,Revenue,CCHD,Frenchay Hospital Purchasing,Residential Homes,Fairview House,995.44, 10-Jul-2012
712,Revenue,CCHD,Bed purchasing - Elderly S117 - South,Residential Homes,Fairview House,1870.92, 10-Jul-2012
713,Revenue,CCHD,Southmead Hospital Purchasing,Residential Homes,Fairview House,1021.08, 10-Jul-2012
714,Revenue,CCHD,Bed purchasing - Elderly S117 - South,Residential Homes,Fairview House,1439.27, 10-Jul-2012
715,Revenue,CCHD,Southmead Hospital Purchasing,Residential Homes,Fairview House,1221.2, 10-Jul-2012
716,Revenue,CCHD,Southmead Hospital Purchasing,Residential Homes,Fairview House,1111.28, 10-Jul-2012
717,Revenue,CCHD,Bed Purchasing - Elderly MH - South,Residential Homes,Fairview House,1097.2, 10-Jul-2012
718,Revenue,CCHD,Frenchay Hospital Purchasing,Residential Homes,Fairview House,1239.2, 10-Jul-2012
719,Revenue,CCHD,Bed Purchasing - Elderly MH - South,Residential Homes,Fairview House,1038.44, 10-Jul-2012
720,Revenue,CCHD,Bed Purchasing - Elderly MH - South,Residential Homes,Fairview House,1198.68, 10-Jul-2012
721,Revenue,CCHD,Bed Purchasing - Elderly - North,Residential Homes,Faith House,871.16, 10-Jul-2012
722,Revenue,CCHD,Frenchay Hospital Purchasing,Residential Homes,Faith House,1302, 10-Jul-2012
723,Revenue,CCHD,Bed Purchasing - Elderly - North,Residential Homes,Faith House,1099.08, 10-Jul-2012
724,Revenue,CCHD,Bed purchasing - Under 65s PWLD - North,Residential Homes,Fernbank,8479.4, 10-Jul-2012
725,Revenue,CCHD,South Glos Users in South Glos Homes,Nursing Homes,Field House Care Home,869.6, 10-Jul-2012
726,Revenue,CCHD,Home Care - Elderly - South,Other Small Contracts,Firstpoint Homecare Ltd,1706.2, 02-Jul-2012
727,Revenue,CCHD,Home Care - Elderly - North,Other Small Contracts,Firstpoint Homecare Ltd,425.6, 02-Jul-2012
728,Revenue,CCHD,Day Care - South,Private & Voluntary Day Care,Firstpoint Homecare Ltd,646, 02-Jul-2012
729,Revenue,CCHD,Day Care - North,Private & Voluntary Day Care,Firstpoint Homecare Ltd,383.8, 02-Jul-2012
730,Revenue,CCHD,Younger MH non-res purchasing,Private & Voluntary Day Care,Firstpoint Homecare Ltd,76, 02-Jul-2012
731,Revenue,CCHD,Home care - Elderly MH - North,Other Small Contracts,Firstpoint Homecare Ltd,155.8, 02-Jul-2012
732,Revenue,CCHD,Elderly MH Day Care North,Private & Voluntary Day Care,Firstpoint Homecare Ltd,182.4, 02-Jul-2012
733,Revenue,CCHD,Supported Living - KD,Private & Voluntary Home Care,Firstpoint Homecare Ltd,95, 02-Jul-2012
734,Revenue,CCHD,Home Care - Elderly - South,Other Small Contracts,Firstpoint Homecare Ltd,1687.2, 03-Jul-2012
735,Revenue,CCHD,Home Care - Elderly - North,Other Small Contracts,Firstpoint Homecare Ltd,433.2, 03-Jul-2012
736,Revenue,CCHD,Day Care - South,Private & Voluntary Day Care,Firstpoint Homecare Ltd,710.6, 03-Jul-2012
737,Revenue,CCHD,Day Care - North,Private & Voluntary Day Care,Firstpoint Homecare Ltd,395.2, 03-Jul-2012
738,Revenue,CCHD,Younger MH non-res purchasing,Private & Voluntary Day Care,Firstpoint Homecare Ltd,76, 03-Jul-2012
739,Revenue,CCHD,Home care - Elderly MH - North,Other Small Contracts,Firstpoint Homecare Ltd,144.4, 03-Jul-2012
740,Revenue,CCHD,Elderly MH Day Care North,Private & Voluntary Day Care,Firstpoint Homecare Ltd,95, 03-Jul-2012
741,Revenue,CCHD,Supported Living - KD,Private & Voluntary Home Care,Firstpoint Homecare Ltd,91.2, 03-Jul-2012
742,Revenue,CCHD,Home Care - Elderly - South,Other Small Contracts,Firstpoint Homecare Ltd,1793.6, 19-Jul-2012
743,Revenue,CCHD,Home Care - Elderly - North,Other Small Contracts,Firstpoint Homecare Ltd,433.2, 19-Jul-2012
744,Revenue,CCHD,Day Care - South,Private & Voluntary Day Care,Firstpoint Homecare Ltd,710.6, 19-Jul-2012
745,Revenue,CCHD,Day Care - North,Private & Voluntary Day Care,Firstpoint Homecare Ltd,395.2, 19-Jul-2012
746,Revenue,CCHD,Younger MH non-res purchasing,Private & Voluntary Day Care,Firstpoint Homecare Ltd,76, 19-Jul-2012
747,Revenue,CCHD,Home care - Elderly MH - North,Other Small Contracts,Firstpoint Homecare Ltd,155.8, 19-Jul-2012
748,Revenue,CCHD,Elderly MH Day Care North,Private & Voluntary Day Care,Firstpoint Homecare Ltd,91.2, 19-Jul-2012
749,Revenue,CCHD,Supported Living - KD,Private & Voluntary Home Care,Firstpoint Homecare Ltd,91.2, 19-Jul-2012
750,Revenue,CCHD,Home Care - Elderly - South,Other Small Contracts,Firstpoint Homecare Ltd,2147.8, 19-Jul-2012
751,Revenue,CCHD,Home Care - Elderly - North,Other Small Contracts,Firstpoint Homecare Ltd,585.2, 19-Jul-2012
752,Revenue,CCHD,Day Care - South,Private & Voluntary Day Care,Firstpoint Homecare Ltd,596.6, 19-Jul-2012
753,Revenue,CCHD,Day Care - North,Private & Voluntary Day Care,Firstpoint Homecare Ltd,395.2, 19-Jul-2012
754,Revenue,CCHD,Younger MH non-res purchasing,Private & Voluntary Day Care,Firstpoint Homecare Ltd,45.6, 19-Jul-2012
755,Revenue,CCHD,Home care - Elderly MH - North,Other Small Contracts,Firstpoint Homecare Ltd,152, 19-Jul-2012
756,Revenue,CCHD,Elderly MH Day Care North,Private & Voluntary Day Care,Firstpoint Homecare Ltd,102.6, 19-Jul-2012
757,Revenue,CCHD,Supported Living - KD,Private & Voluntary Home Care,Firstpoint Homecare Ltd,98.8, 19-Jul-2012
758,Revenue,CCHD,Home Care - Elderly - South,Other Small Contracts,Firstpoint Homecare Ltd,2466.8, 31-Jul-2012
759,Revenue,CCHD,Home Care - Elderly - North,Other Small Contracts,Firstpoint Homecare Ltd,566.2, 31-Jul-2012
760,Revenue,CCHD,Day Care - South,Private & Voluntary Day Care,Firstpoint Homecare Ltd,570, 31-Jul-2012
761,Revenue,CCHD,Day Care - North,Private & Voluntary Day Care,Firstpoint Homecare Ltd,410.4, 31-Jul-2012
762,Revenue,CCHD,Younger MH non-res purchasing,Private & Voluntary Day Care,Firstpoint Homecare Ltd,45.6, 31-Jul-2012
763,Revenue,CCHD,Home care - Elderly MH - North,Other Small Contracts,Firstpoint Homecare Ltd,155.8, 31-Jul-2012
764,Revenue,CCHD,Elderly MH Day Care North,Private & Voluntary Day Care,Firstpoint Homecare Ltd,102.6, 31-Jul-2012
765,Revenue,CCHD,Supported Living - KD,Private & Voluntary Home Care,Firstpoint Homecare Ltd,91.2, 31-Jul-2012
766,Revenue,CCHD,Purchase of Non-Res Care - PS,Private & Voluntary Day Care,Firstpoint Homecare Ltd,1038.43, 19-Jul-2012
767,Revenue,CCHD,Purchase of Non-Res Care - PS,Private & Voluntary Day Care,Firstpoint Homecare Ltd,1295.57, 18-Jul-2012
768,Revenue,CCHD,Purchase of Non-Res Care - PS,Private & Voluntary Day Care,Firstpoint Homecare Ltd,1283.57, 12-Jul-2012
769,Revenue,CCHD,Home Care - Elderly - South,Other Small Contracts,Firstpoint Homecare Ltd,1914.85, 02-Jul-2012
770,Revenue,CCHD,Home Care - Elderly - North,Other Small Contracts,Firstpoint Homecare Ltd,1141.57, 02-Jul-2012
771,Revenue,CCHD,Under 65s -MH  Home Care Purch,Private & Voluntary Day Care,Firstpoint Homecare Ltd,75.85, 02-Jul-2012
772,Revenue,CCHD,Home Care - Elderly - South,Other Small Contracts,Firstpoint Homecare Ltd,1868.73, 02-Jul-2012
773,Revenue,CCHD,Home Care - Elderly - North,Other Small Contracts,Firstpoint Homecare Ltd,1100.61, 02-Jul-2012
774,Revenue,CCHD,Under 65s -MH  Home Care Purch,Private & Voluntary Day Care,Firstpoint Homecare Ltd,74.6, 02-Jul-2012
775,Revenue,CCHD,Home Care - Elderly - South,Other Small Contracts,Firstpoint Homecare Ltd,2040.75, 02-Jul-2012
776,Revenue,CCHD,Home Care - Elderly - North,Other Small Contracts,Firstpoint Homecare Ltd,1149.15, 02-Jul-2012
777,Revenue,CCHD,Under 65s -MH  Home Care Purch,Private & Voluntary Day Care,Firstpoint Homecare Ltd,45.51, 02-Jul-2012
778,Revenue,CCHD,Home Care - Elderly - South,Other Small Contracts,Firstpoint Homecare Ltd,352.15, 17-Jul-2012
779,Revenue,CCHD,Home Care - Elderly - North,Other Small Contracts,Firstpoint Homecare Ltd,287.29, 17-Jul-2012
780,Revenue,CCHD,Under 65s -MH  Home Care Purch,Private & Voluntary Day Care,Firstpoint Homecare Ltd,27.54, 17-Jul-2012
781,Revenue,CCHD,Bed Purchasing - Elderly - South,Nursing Homes,Four Seasons Health Care,1281.72, 10-Jul-2012
782,Revenue,CCHD,Frenchay Hospital Purchasing,Residential Homes,Four Seasons Health Care,892.12, 10-Jul-2012
783,Revenue,CCHD,Bed Purchasing - Elderly MH - South,Nursing Homes,Four Seasons Health Care,1363.2, 10-Jul-2012
784,Revenue,CCHD,Frenchay Hospital Purchasing,Nursing Homes,Four Seasons Health Care,1363.2, 10-Jul-2012
785,Revenue,CCHD,Frenchay Hospital Purchasing,Nursing Homes,Four Seasons Health Care,1840, 10-Jul-2012
786,Revenue,CCHD,Southmead Hospital Purchasing,Nursing Homes,Four Seasons Health Care,1363.2, 10-Jul-2012
787,Revenue,CCHD,Section 117 Placements MH Younger,Nursing Homes,Four Seasons Health Care,1840, 10-Jul-2012
788,Revenue,CCHD,Bed Purchasing - Elderly - South,Nursing Homes,Four Seasons Health Care,903.84, 10-Jul-2012
789,Revenue,CCHD,Southmead Hospital Purchasing,Nursing Homes,Four Seasons Health Care,1363.2, 10-Jul-2012
790,Revenue,CCHD,Bed Purchasing - Elderly - South,Nursing Homes,Four Seasons Health Care,722.86, 10-Jul-2012
791,Revenue,CCHD,Bed Purchasing - Elderly - South,Nursing Homes,Four Seasons Health Care,1361.64, 10-Jul-2012
792,Revenue,CCHD,Cash for Change Discharges,Nursing Homes,Four Seasons Health Care,1363.2, 10-Jul-2012
793,Revenue,CCHD,Southmead Hospital Purchasing,Nursing Homes,Four Seasons Health Care,1363.2, 10-Jul-2012
794,Revenue,CCHD,Bed Purchasing - Elderly - South,Nursing Homes,Four Seasons Health Care,1327.2, 10-Jul-2012
795,Revenue,CCHD,Southmead Hospital Purchasing,Nursing Homes,Four Seasons Health Care,1363.2, 10-Jul-2012
796,Revenue,CCHD,Bed Purchasing - Elderly - South,Nursing Homes,Four Seasons Health Care,1260.92, 10-Jul-2012
797,Revenue,CCHD,Southmead Hospital Purchasing,Residential Homes,Four Seasons Health Care,543.56, 10-Jul-2012
798,Revenue,CCHD,Southmead Hospital Purchasing,Nursing Homes,Four Seasons Health Care,1269.2, 10-Jul-2012
799,Revenue,CCHD,Bed Purchasing - Elderly - South,Nursing Homes,Four Seasons Health Care,1363.2, 10-Jul-2012
800,Revenue,CCHD,Bed Purchasing - Elderly - South,Nursing Homes,Four Seasons Health Care,1308.24, 10-Jul-2012
801,Revenue,CCHD,Bed Purchasing - Elderly MH - South,Nursing Homes,Four Seasons Health Care,1363.2, 10-Jul-2012
802,Revenue,CCHD,Bed Purchasing - Elderly - South,Nursing Homes,Four Seasons Health Care,1067.16, 10-Jul-2012
803,Revenue,CCHD,Bed Purchasing - Elderly - South,Nursing Homes,Four Seasons Health Care,1327.2, 10-Jul-2012
804,Revenue,CCHD,Frenchay Hospital Purchasing,Nursing Homes,Four Seasons Health Care,1071.6, 10-Jul-2012
805,Revenue,CCHD,Bed Purchasing - Elderly MH - South,Residential Homes,Four Seasons Health Care,1084.52, 10-Jul-2012
806,Revenue,CCHD,Bed Purchasing - Elderly - South,Nursing Homes,Four Seasons Health Care,1363.2, 10-Jul-2012
807,Revenue,CCHD,Bed Purchasing - Elderly - South,Nursing Homes,Four Seasons Health Care,1361.8, 10-Jul-2012
808,Revenue,CCHD,Frenchay Hospital Purchasing,Nursing Homes,Four Seasons Health Care,1371.2, 10-Jul-2012
809,Revenue,CCHD,Bed Purchasing - Elderly MH - South,Nursing Homes,Four Seasons Health Care,1212.44, 10-Jul-2012
810,Revenue,CCHD,Bed Purchasing - Elderly - North,Nursing Homes,Four Seasons Health Care,956.44, 10-Jul-2012
811,Revenue,CCHD,Frenchay Hospital Purchasing,Nursing Homes,Four Seasons Health Care,1535.2, 10-Jul-2012
812,Revenue,CCHD,Frenchay Hospital Purchasing,Nursing Homes,Four Seasons Health Care,1271.88, 10-Jul-2012
813,Revenue,CCHD,South Glos Users in South Glos Homes,Nursing Homes,Four Seasons Health Care,2779.61, 10-Jul-2012
814,Revenue,CCHD,South Glos Users in South Glos Homes,Nursing Homes,Four Seasons Health Care,1319.93, 10-Jul-2012
815,Revenue,CCHD,Southmead Hospital Purchasing,Residential Homes,Four Seasons Health Care,1230.28, 10-Jul-2012
816,Revenue,CCHD,Bed Purchasing - Elderly - South,Nursing Homes,Four Seasons Health Care,2083.48, 10-Jul-2012
817,Revenue,CCHD,Bed Purchasing - Elderly - South,Nursing Homes,Four Seasons Health Care,1535.2, 10-Jul-2012
818,Revenue,CCHD,South Glos Users in South Glos Homes,Nursing Homes,Four Seasons Health Care,590.09, 10-Jul-2012
819,Revenue,CCHD,Bed Purchasing - Elderly - North,Nursing Homes,Four Seasons Health Care,1535.2, 10-Jul-2012
820,Revenue,CCHD,South Glos Users in South Glos Homes,Nursing Homes,Four Seasons Health Care,729.84, 10-Jul-2012
821,Revenue,CCHD,Frenchay Hospital Purchasing,Nursing Homes,Four Seasons Health Care,1026.64, 10-Jul-2012
822,Revenue,CCHD,Bed Purchasing - Elderly - North,Residential Homes,Four Seasons Health Care,1026.48, 10-Jul-2012
823,Revenue,CCHD,Bed Purchasing - Elderly - North,Nursing Homes,Four Seasons Health Care,1220.44, 10-Jul-2012
824,Revenue,CCHD,Bed purchasing - Elderly MH - North,Nursing Homes,Four Seasons Health Care,1327.2, 10-Jul-2012
825,Revenue,CCHD,Bed Purchasing - Elderly - North,Nursing Homes,Four Seasons Health Care,1363.2, 10-Jul-2012
826,Revenue,CCHD,Southmead Hospital Purchasing,Nursing Homes,Four Seasons Health Care,1363.2, 10-Jul-2012
827,Revenue,CCHD,Bed Purchasing - Elderly - North,Nursing Homes,Four Seasons Health Care,1363.2, 10-Jul-2012
828,Revenue,CCHD,Bed purchasing - Elderly MH - North,Nursing Homes,Four Seasons Health Care,1457.48, 10-Jul-2012
829,Revenue,CCHD,Bed Purchasing - Elderly - North,Nursing Homes,Four Seasons Health Care,1264.2, 10-Jul-2012
830,Revenue,CCHD,Bed Purchasing - Elderly - North,Nursing Homes,Four Seasons Health Care,1096.56, 10-Jul-2012
831,Revenue,CCHD,Southmead Hospital Purchasing,Nursing Homes,Four Seasons Health Care,1356.56, 10-Jul-2012
832,Revenue,CCHD,Frenchay Hospital Purchasing,Nursing Homes,Four Seasons Health Care,1284.4, 10-Jul-2012
833,Revenue,CCHD,Bed purchasing - Elderly MH - North,Nursing Homes,Four Seasons Health Care,1435.64, 10-Jul-2012
834,Revenue,CCHD,Frenchay Hospital Purchasing,Nursing Homes,Four Seasons Health Care,1343.4, 10-Jul-2012
835,Revenue,CCHD,Bed Purchasing - Elderly - North,Nursing Homes,Four Seasons Health Care,1027.36, 10-Jul-2012
836,Revenue,CCHD,Bed Purchasing - Elderly - North,Residential Homes,Four Seasons Health Care,1212.64, 10-Jul-2012
837,Revenue,CCHD,Frenchay Hospital Purchasing,Nursing Homes,Four Seasons Health Care,2882.29, 10-Jul-2012
838,Revenue,CCHD,Frenchay Hospital Purchasing,Nursing Homes,Four Seasons Health Care,1522.72, 10-Jul-2012
839,Revenue,CCHD,Bed Purchasing - Elderly - North,Nursing Homes,Four Seasons Health Care,1499.2, 10-Jul-2012
840,Revenue,CCHD,Bed Purchasing - Elderly - North,Nursing Homes,Four Seasons Health Care,1363.2, 10-Jul-2012
841,Revenue,CCHD,Bed Purchasing - Elderly - North,Nursing Homes,Four Seasons Health Care,1431.8, 10-Jul-2012
842,Revenue,CCHD,Southmead Hospital Purchasing,Residential Homes,Four Seasons Health Care,705.16, 10-Jul-2012
843,Revenue,CCHD,Bed purchasing - Elderly MH - North,Nursing Homes,Four Seasons Health Care,1421.44, 10-Jul-2012
844,Revenue,CCHD,Southmead Hospital Purchasing,Nursing Homes,Four Seasons Health Care,1442.32, 10-Jul-2012
845,Revenue,CCHD,Bed Purchasing - Elderly - North,Nursing Homes,Four Seasons Health Care,1535.2, 10-Jul-2012
846,Revenue,CCHD,Frenchay Hospital Purchasing,Nursing Homes,Four Seasons Health Care,1211.32, 10-Jul-2012
847,Revenue,CCHD,Southmead Hospital Purchasing,Nursing Homes,Four Seasons Health Care,1535.2, 10-Jul-2012
848,Revenue,CCHD,Bed Purchasing - Elderly - North,Nursing Homes,Four Seasons Health Care,1535.2, 10-Jul-2012
849,Revenue,CCHD,Bed purchasing - Elderly MH - North,Residential Homes,Four Seasons Health Care,1197.16, 10-Jul-2012
850,Revenue,CCHD,Southmead Hospital Purchasing,Residential Homes,Four Seasons Health Care,1239.2, 10-Jul-2012
851,Revenue,CCHD,South Glos Users in South Glos Homes,Nursing Homes,Four Seasons Health Care,2764.09, 10-Jul-2012
852,Revenue,CCHD,South Glos Users in South Glos Homes,Nursing Homes,Four Seasons Health Care,1319.93, 10-Jul-2012
853,Revenue,CCHD,Southmead Hospital Purchasing,Nursing Homes,Four Seasons Health Care,940.68, 10-Jul-2012
854,Revenue,CCHD,Bed purchasing - Elderly MH - North,Residential Homes,Four Seasons Health Care,1366.04, 10-Jul-2012
855,Revenue,CCHD,Bed Purchasing - Elderly - North,Nursing Homes,Four Seasons Health Care,1346.6, 10-Jul-2012
856,Revenue,CCHD,Bed Purchasing - Elderly - North,Nursing Homes,Four Seasons Health Care,952, 10-Jul-2012
857,Revenue,CCHD,Bed Purchasing - Elderly - North,Residential Homes,Four Seasons Health Care,952, 10-Jul-2012
858,Revenue,CCHD,South Glos Users in South Glos Homes,Nursing Homes,Four Seasons Health Care,652.2, 10-Jul-2012
859,Revenue,CCHD,Bed purchasing - Elderly MH - North,Nursing Homes,Four Seasons Health Care,1025.24, 10-Jul-2012
860,Revenue,CCHD,Frenchay Hospital Purchasing,Nursing Homes,Four Seasons Health Care,1363.2, 10-Jul-2012
861,Revenue,CCHD,Bed Purchasing - Elderly - North,Residential Homes,Four Seasons Health Care,1263.2, 10-Jul-2012
862,Revenue,CCHD,Bed Purchasing - Elderly - North,Residential Homes,Four Seasons Health Care,619.6, 10-Jul-2012
863,Revenue,CCHD,South Glos Users in South Glos Homes,Nursing Homes,Four Seasons Health Care,1319.93, 10-Jul-2012
864,Revenue,CCHD,Frenchay Hospital Purchasing,Nursing Homes,Four Seasons Health Care,1204.44, 10-Jul-2012
865,Revenue,CCHD,South Glos Users in South Glos Homes,Nursing Homes,Four Seasons Health Care,807.49, 10-Jul-2012
866,Revenue,CCHD,Frenchay Hospital Purchasing,Nursing Homes,Four Seasons Health Care,827.65, 10-Jul-2012
867,Revenue,CCHD,Frenchay Hospital Purchasing,Nursing Homes,Four Seasons Health Care,1087.32, 10-Jul-2012
868,Revenue,CCHD,Frenchay Hospital Purchasing,Nursing Homes,Four Seasons Health Care,1363.2, 10-Jul-2012
869,Revenue,CCHD,Frenchay Hospital Purchasing,Nursing Homes,Four Seasons Health Care,1250.24, 10-Jul-2012
870,Revenue,CCHD,South Glos Users in South Glos Homes,Nursing Homes,Four Seasons Health Care,1087, 10-Jul-2012
871,Revenue,CCHD,Bed Purchasing - Elderly - North,Nursing Homes,Four Seasons Health Care,1273.72, 10-Jul-2012
872,Revenue,CCHD,Southmead Hospital Purchasing,Nursing Homes,Four Seasons Health Care,1303.36, 10-Jul-2012
873,Revenue,CCHD,Frenchay Hospital Purchasing,Nursing Homes,Four Seasons Health Care,1294.16, 10-Jul-2012
874,Revenue,CCHD,Frenchay Hospital Purchasing,Nursing Homes,Four Seasons Health Care,1363.2, 10-Jul-2012
875,Revenue,CCHD,Bed Purchasing - Elderly - North,Nursing Homes,Four Seasons Health Care,1399.2, 10-Jul-2012
876,Revenue,CCHD,Bed Purchasing - Elderly - North,Nursing Homes,Four Seasons Health Care,2905.59, 10-Jul-2012
877,Revenue,CCHD,South Glos Users in South Glos Homes,Nursing Homes,Four Seasons Health Care,1180.17, 10-Jul-2012
878,Revenue,CCHD,Bed Purchasing - Elderly - North,Nursing Homes,Four Seasons Health Care,1070.48, 10-Jul-2012
879,Revenue,CCHD,Frenchay Hospital Purchasing,Nursing Homes,Four Seasons Health Care,1363.2, 10-Jul-2012
880,Revenue,CCHD,Southmead Hospital Purchasing,Nursing Homes,Four Seasons Health Care,975.6, 10-Jul-2012
881,Revenue,CCHD,Frenchay Hospital Purchasing,Nursing Homes,Four Seasons Health Care,1363.2, 10-Jul-2012
882,Revenue,CCHD,Frenchay Hospital Purchasing,Nursing Homes,Four Seasons Health Care,1379.2, 10-Jul-2012
883,Revenue,CCHD,Bed Purchasing - Elderly - South,Nursing Homes,Four Seasons Health Care,1060.72, 10-Jul-2012
884,Revenue,CCHD,Southmead Hospital Purchasing,Residential Homes,Four Seasons Health Care,1118.04, 10-Jul-2012
885,Revenue,CCHD,Southmead Hospital Purchasing,Nursing Homes,Four Seasons Health Care,1363.2, 10-Jul-2012
886,Revenue,CCHD,Southmead Hospital Purchasing,Nursing Homes,Four Seasons Health Care,1365.12, 10-Jul-2012
887,Revenue,CCHD,Bed purchasing - Phys Dis - North,Nursing Homes,Four Seasons Health Care,1168.64, 10-Jul-2012
888,Revenue,CCHD,Frenchay Hospital Purchasing,Nursing Homes,Four Seasons Health Care,1329.52, 10-Jul-2012
889,Revenue,CCHD,Southmead Hospital Purchasing,Nursing Homes,Four Seasons Health Care,1336.84, 10-Jul-2012
890,Revenue,CCHD,Bed purchasing - Phys Dis - North,Nursing Homes,Four Seasons Health Care,1367.76, 10-Jul-2012
891,Revenue,CCHD,Southmead Hospital Purchasing,Nursing Homes,Four Seasons Health Care,1292.36, 10-Jul-2012
892,Revenue,CCHD,Frenchay Hospital Purchasing,Residential Homes,Four Seasons Health Care,1766.25, 10-Jul-2012
893,Revenue,CCHD,Bed purchasing - Elderly MH - North,Residential Homes,Four Seasons Health Care,1396.2, 10-Jul-2012
894,Revenue,CCHD,Southmead Hospital Purchasing,Residential Homes,Four Seasons Health Care,1163.68, 10-Jul-2012
895,Revenue,CCHD,Bed Purchasing - Elderly - South,Nursing Homes,Four Seasons Health Care,2954.1, 10-Jul-2012
896,Revenue,CCHD,South Glos Users in South Glos Homes,Nursing Homes,Four Seasons Health Care,1024.89, 10-Jul-2012
897,Revenue,CCHD,South Glos Users in South Glos Homes,Nursing Homes,Four Seasons Health Care,590.09, 10-Jul-2012
898,Revenue,CCHD,Frenchay Hospital Purchasing,Nursing Homes,Four Seasons Health Care,1225.56, 10-Jul-2012
899,Revenue,CCHD,Southmead Hospital Purchasing,Residential Homes,Four Seasons Health Care,1452.24, 10-Jul-2012
900,Revenue,CCHD,Southmead Hospital Purchasing,Residential Homes,Four Seasons Health Care,645.44, 10-Jul-2012
901,Revenue,CCHD,Bed purchasing - Elderly PWLD - South,Residential Homes,Four Seasons Health Care,1239.2, 10-Jul-2012
902,Revenue,CCHD,Frenchay Hospital Purchasing,Nursing Homes,Four Seasons Health Care,1363.2, 10-Jul-2012
903,Revenue,CCHD,Southmead Hospital Purchasing,Nursing Homes,Four Seasons Health Care,1103.76, 10-Jul-2012
904,Revenue,CCHD,Bed Purchasing - Elderly - South,Nursing Homes,Four Seasons Health Care,1286.52, 10-Jul-2012
905,Revenue,CCHD,Bed Purchasing - Elderly - South,Nursing Homes,Four Seasons Health Care,1363.2, 10-Jul-2012
906,Revenue,CCHD,Bed Purchasing - Elderly - South,Nursing Homes,Four Seasons Health Care,1352.48, 10-Jul-2012
907,Revenue,CCHD,Southmead Hospital Purchasing,Nursing Homes,Four Seasons Health Care,1138.92, 10-Jul-2012
908,Revenue,CCHD,Bed Purchasing - Elderly - South,Residential Homes,Four Seasons Health Care,865.28, 10-Jul-2012
909,Revenue,CCHD,South Glos Users in South Glos Homes,Nursing Homes,Four Seasons Health Care,2795.14, 10-Jul-2012
910,Revenue,CCHD,South Glos Users in South Glos Homes,Nursing Homes,Four Seasons Health Care,1319.93, 10-Jul-2012
911,Revenue,CCHD,Southmead Hospital Purchasing,Nursing Homes,Four Seasons Health Care,1304.96, 10-Jul-2012
912,Revenue,CCHD,Southmead Hospital Purchasing,Residential Homes,Four Seasons Health Care,1386, 10-Jul-2012
913,Revenue,CCHD,Frenchay Hospital Purchasing,Nursing Homes,Four Seasons Health Care,847.84, 10-Jul-2012
914,Revenue,CCHD,Frenchay Hospital Purchasing,Nursing Homes,Four Seasons Health Care,769.44, 10-Jul-2012
915,Revenue,CCHD,Bed Purchasing - Elderly - North,Residential Homes,Four Seasons Health Care,1407.54, 10-Jul-2012
916,Revenue,CCHD,Bed Purchasing - Elderly - North,Residential Homes,Four Seasons Health Care,985.28, 10-Jul-2012
917,Revenue,CCHD,Bed Purchasing - Elderly - South,Nursing Homes,Four Seasons Health Care,947.2, 10-Jul-2012
918,Revenue,CCHD,Frenchay Hospital Purchasing,Residential Homes,Four Seasons Health Care,1239.2, 10-Jul-2012
919,Revenue,CCHD,Bed purchasing - Elderly S117 - South,Nursing Homes,Four Seasons Health Care,1840, 10-Jul-2012
920,Revenue,CCHD,Frenchay Hospital Purchasing,Residential Homes,Four Seasons Health Care,1102.84, 10-Jul-2012
921,Revenue,CCHD,South Glos Users in South Glos Homes,Nursing Homes,Four Seasons Health Care,1319.93, 10-Jul-2012
922,Revenue,CCHD,Bed Purchasing - Elderly MH - South,Nursing Homes,Four Seasons Health Care,1174.8, 10-Jul-2012
923,Revenue,CCHD,Southmead Hospital Purchasing,Residential Homes,Four Seasons Health Care,1323.96, 10-Jul-2012
924,Revenue,CCHD,Southmead Hospital Purchasing,Nursing Homes,Four Seasons Health Care,1363.2, 10-Jul-2012
925,Revenue,CCHD,Bed Purchasing - Elderly MH - South,Residential Homes,Four Seasons Health Care,936.64, 10-Jul-2012
926,Revenue,CCHD,Southmead Hospital Purchasing,Nursing Homes,Four Seasons Health Care,1363.2, 10-Jul-2012
927,Revenue,CCHD,Frenchay Hospital Purchasing,Nursing Homes,Four Seasons Health Care,1109.56, 10-Jul-2012
928,Revenue,CCHD,Southmead Hospital Purchasing,Nursing Homes,Four Seasons Health Care,1363.2, 10-Jul-2012
929,Revenue,CCHD,Southmead Hospital Purchasing,Nursing Homes,Four Seasons Health Care,991.8, 10-Jul-2012
930,Revenue,CCHD,South Glos Users in South Glos Homes,Nursing Homes,Four Seasons Health Care,714.31, 10-Jul-2012
931,Revenue,CCHD,Bed Purchasing - Elderly - South,Residential Homes,Four Seasons Health Care,1363.6, 10-Jul-2012
932,Revenue,CCHD,Frenchay Hospital Purchasing,Residential Homes,Four Seasons Health Care,5963.16, 10-Jul-2012
933,Revenue,CCHD,Frenchay Hospital Purchasing,Residential Homes,Four Seasons Health Care,4620.6, 10-Jul-2012
934,Revenue,CCHD,Bed Purchasing - Elderly - North,Nursing Homes,Four Seasons Health Care,6537.51, 10-Jul-2012
935,Revenue,CCHD,Bed Purchasing - Elderly - North,Nursing Homes,Four Seasons Health Care,4738.05, 10-Jul-2012
936,Revenue,CCHD,Bed Purchasing - Elderly - South,Residential Homes,Four Seasons Health Care,1239.2, 10-Jul-2012
937,Revenue,CCHD,Bed Purchasing - Elderly - South,Nursing Homes,Four Seasons Health Care,1202.69, 10-Jul-2012
938,Revenue,CCHD,Bed Purchasing - Elderly S117- North,Residential Homes,Four Seasons Health Care,2011.04, 10-Jul-2012
939,Revenue,CCHD,Frenchay Hospital Purchasing,Residential Homes,Four Seasons Health Care,1515.84, 10-Jul-2012
940,Revenue,CCHD,Home Care - Elderly - South,Other Small Contracts,Freedom Social Care Recruitment,1159.42, 13-Jul-2012
941,Revenue,CCHD,Home Care - Elderly - North,Other Small Contracts,Freedom Social Care Recruitment,3533.09, 13-Jul-2012
942,Revenue,CCHD,Day Care - South,Private & Voluntary Day Care,Freedom Social Care Recruitment,97.91, 13-Jul-2012
943,Revenue,CCHD,Day Care - North,Private & Voluntary Day Care,Freedom Social Care Recruitment,63.12, 13-Jul-2012
944,Revenue,CCHD,Home care - Elderly MH - North,Other Small Contracts,Freedom Social Care Recruitment,126.24, 13-Jul-2012
945,Revenue,CCHD,Elderly MH Day Care North,Private & Voluntary Day Care,Freedom Social Care Recruitment,173.58, 13-Jul-2012
946,Revenue,CCHD,Home Care - Elderly - South,Other Small Contracts,Freedom Social Care Recruitment,1451.86, 13-Jul-2012
947,Revenue,CCHD,Home Care - Elderly - North,Other Small Contracts,Freedom Social Care Recruitment,3205.58, 13-Jul-2012
948,Revenue,CCHD,Day Care - South,Private & Voluntary Day Care,Freedom Social Care Recruitment,55.23, 13-Jul-2012
949,Revenue,CCHD,Day Care - North,Private & Voluntary Day Care,Freedom Social Care Recruitment,47.34, 13-Jul-2012
950,Revenue,CCHD,Home care - Elderly MH - North,Other Small Contracts,Freedom Social Care Recruitment,157.8, 13-Jul-2012
951,Revenue,CCHD,Elderly MH Day Care North,Private & Voluntary Day Care,Freedom Social Care Recruitment,177.53, 13-Jul-2012
952,Revenue,CCHD,Home Care - Elderly - South,Other Small Contracts,Freedom Social Care Recruitment,1400.56, 19-Jul-2012
953,Revenue,CCHD,Home Care - Elderly - North,Other Small Contracts,Freedom Social Care Recruitment,2980.84, 19-Jul-2012
954,Revenue,CCHD,Day Care - South,Private & Voluntary Day Care,Freedom Social Care Recruitment,27.62, 19-Jul-2012
955,Revenue,CCHD,Home care - Elderly MH - North,Other Small Contracts,Freedom Social Care Recruitment,126.24, 19-Jul-2012
956,Revenue,CCHD,Elderly MH Day Care North,Private & Voluntary Day Care,Freedom Social Care Recruitment,201.2, 19-Jul-2012
957,Revenue,CCHD,Home Care - Elderly - South,Other Small Contracts,Freedom Social Care Recruitment,1404.56, 19-Jul-2012
958,Revenue,CCHD,Home Care - Elderly - North,Other Small Contracts,Freedom Social Care Recruitment,3083.43, 19-Jul-2012
959,Revenue,CCHD,Day Care - South,Private & Voluntary Day Care,Freedom Social Care Recruitment,63.12, 19-Jul-2012
960,Revenue,CCHD,Home care - Elderly MH - North,Other Small Contracts,Freedom Social Care Recruitment,15.78, 19-Jul-2012
961,Revenue,CCHD,Freeways,Residential Homes,Freeways Trust Limited,44650.93, 03-Jul-2012
962,Revenue,CCHD,Supported Living - PS,Private & Voluntary Home Care,Freeways Trust Limited,1936.35, 16-Jul-2012
963,Revenue,CCHD,Supported Living - PS,Private & Voluntary Home Care,Freeways Trust Limited,1269.12, 13-Jul-2012
964,Revenue,CCHD,Bed purchasing - Under 65s PWLD - North,Residential Homes,Freeways Trust Ltd,2791.88, 10-Jul-2012
965,Revenue,CCHD,Bed purchasing - S28A Under 65 - South,Residential Homes,Freeways Trust Ltd,2876.4, 10-Jul-2012
966,Revenue,CCHD,Bed purchasing - Under 65s PWLD - North,Residential Homes,Freeways Trust Ltd,2232.52, 10-Jul-2012
967,Revenue,CCHD,Bed purchasing - Under 65s PWLD - North,Residential Homes,Freeways Trust Ltd,2657.64, 10-Jul-2012
968,Revenue,CCHD,Bed purchasing - Under 65s PWLD - North,Residential Homes,Freeways Trust Ltd,2232.52, 10-Jul-2012
969,Revenue,CCHD,Bed purchasing - Under 65s PWLD - North,Residential Homes,Freeways Trust Ltd,2666.28, 10-Jul-2012
970,Revenue,CCHD,Bed Purchasing - Under 65s PWLD - South,Residential Homes,Freeways Trust Ltd,3259.12, 10-Jul-2012
971,Revenue,CCHD,Bed purchasing - Elderly PWLD - North,Residential Homes,Freeways Trust Ltd,2219.24, 10-Jul-2012
972,Revenue,CCHD,Bed Purchasing - Under 65s PWLD - South,Residential Homes,Freeways Trust Ltd,2364.28, 10-Jul-2012
973,Revenue,CCHD,Bed purchasing - Under 65s PWLD - North,Residential Homes,Freeways Trust Ltd,2666.28, 10-Jul-2012
974,Revenue,CCHD,Bed purchasing - Elderly PWLD - North,Residential Homes,Freeways Trust Ltd,2492.24, 10-Jul-2012
975,Revenue,CCHD,Section 117 Placements MH Younger,Residential Homes,Freeways Trust Ltd,3292.4, 10-Jul-2012
976,Revenue,CCHD,Bed Purchasing - Under 65s PWLD - South,Residential Homes,Freeways Trust Ltd,6698.16, 10-Jul-2012
977,Revenue,CCHD,Frenchay Hospital Purchasing,Nursing Homes,Frenchay Park Nursing Home,1212.36, 10-Jul-2012
978,Revenue,CCHD,Frenchay Hospital Purchasing,Residential Homes,Frenchay Park Nursing Home,2026.89, 10-Jul-2012
979,Revenue,CCHD,Bed Purchasing - Elderly - South,Nursing Homes,Frenchay Park Nursing Home,604.6, 10-Jul-2012
980,Revenue,CCHD,Bed Purchasing - Under 65s PWLD - South,Residential Homes,Glasallt Fawr,9010.8, 10-Jul-2012
981,Revenue,CCHD,South Glos Users in South Glos Homes,Nursing Homes,Glebe House Nursing Home,823.01, 10-Jul-2012
982,Revenue,CCHD,Bed Purchasing - Elderly - North,Nursing Homes,Glebe House Nursing Home,1381.88, 10-Jul-2012
983,Revenue,CCHD,Bed purchasing - Elderly MH - North,Residential Homes,Glebe House Nursing Home,1130.36, 10-Jul-2012
984,Revenue,CCHD,South Glos Users in South Glos Homes,Nursing Homes,Glebe House Nursing Home,558.9, 10-Jul-2012
985,Revenue,CCHD,Bed Purchasing - Elderly - South,Residential Homes,Glebe House Nursing Home,1963.52, 10-Jul-2012
986,Revenue,CCHD,Bed Purchasing - Elderly - North,Nursing Homes,Glebe House Nursing Home,1328.48, 10-Jul-2012
987,Revenue,CCHD,Southmead Hospital Purchasing,Nursing Homes,Glebe House Nursing Home,1295.2, 10-Jul-2012
988,Revenue,CCHD,Bed Purchasing - Elderly - North,Residential Homes,Glebe House Nursing Home,2529.76, 10-Jul-2012
989,Revenue,CCHD,Bed purchasing - Phys Dis - South,Nursing Homes,Glenside Centre For Brain Injury,14144.72, 10-Jul-2012
990,Revenue,CCHD,Bed Purchasing - Under 65s PWLD - South,Residential Homes,Gordena Care Home,2063.36, 10-Jul-2012
991,Revenue,CCHD,Bed purchasing - Elderly PWLD - South,Residential Homes,Gordena Care Home,4691.96, 10-Jul-2012
992,Revenue,CCHD,Bed purchasing - Elderly PWLD - South,Residential Homes,Gordena Care Home,2904.2, 10-Jul-2012
993,Revenue,CCHD,Bed Purchasing - Under 65s PWLD - South,Residential Homes,Gordena Care Home,1894.04, 10-Jul-2012
994,Revenue,CCHD,Bed Purchasing - Under 65s PWLD - South,Residential Homes,Gordena Care Limited,8239.68, 10-Jul-2012
995,Revenue,CCHD,Bed purchasing - S28A Under 65 - South,Residential Homes,Gordena Care Limited,4018.24, 10-Jul-2012
996,Revenue,CCHD,Bed purchasing - Under 65s PWLD - North,Residential Homes,Gordena Care Limited,3762.44, 10-Jul-2012
997,Revenue,CCHD,Bed Purchasing - Elderly - North,Residential Homes,Greensleeves,1305.56, 10-Jul-2012
998,Revenue,CCHD,Bed Purchasing - Elderly - South,Residential Homes,Gwendoline House,1480.12, 10-Jul-2012
999,Revenue,CCHD,Bed Purchasing - Elderly - South,Residential Homes,Gwendoline House,1158.88, 10-Jul-2012
1000,Revenue,CCHD,Bed Purchasing - Elderly MH - South,Residential Homes,Gwendoline House,1263.36, 10-Jul-2012
1001,Revenue,CCHD,Bed Purchasing - Elderly - South,Residential Homes,Gwendoline House,1418.24, 10-Jul-2012
1002,Revenue,CCHD,Bed Purchasing - Elderly - South,Residential Homes,Gwendoline House,1123.12, 10-Jul-2012
1003,Revenue,CCHD,Bed Purchasing - Elderly - South,Residential Homes,Gwendoline House,964.56, 10-Jul-2012
1004,Revenue,CCHD,Bed Purchasing - Elderly MH - South,Residential Homes,Harefield Hall,1091.48, 10-Jul-2012
1005,Revenue,CCHD,Southmead Hospital Purchasing,Nursing Homes,Haven Lodge,2742.16, 10-Jul-2012
1006,Revenue,CCHD,Southmead Hospital Purchasing,Nursing Homes,Hc-One Ltd,1602.76, 10-Jul-2012
1007,Revenue,CCHD,Bed Purchasing - Elderly - North,Nursing Homes,Hc-One Ltd,2433.73, 10-Jul-2012
1008,Revenue,CCHD,Bed Purchasing - Elderly - North,Nursing Homes,Hc-One Ltd,1481.4, 10-Jul-2012
1009,Revenue,CCHD,Bed purchasing - Elderly MH - North,Nursing Homes,Hc-One Ltd,1467.2, 10-Jul-2012
1010,Revenue,CCHD,Bed purchasing - Elderly MH - North,Nursing Homes,Hc-One Ltd,1209.16, 10-Jul-2012
1011,Revenue,CCHD,Bed purchasing - Elderly MH - North,Nursing Homes,Hc-One Ltd,1467.2, 10-Jul-2012
1012,Revenue,CCHD,Bed purchasing - Elderly MH - North,Nursing Homes,Hc-One Ltd,1156.96, 10-Jul-2012
1013,Revenue,CCHD,Bed Purchasing - Elderly S117- North,Nursing Homes,Hc-One Ltd,4685.2, 10-Jul-2012
1014,Revenue,CCHD,Bed Purchasing - Elderly S117- North,Nursing Homes,Hc-One Ltd,1929.2, 10-Jul-2012
1015,Revenue,CCHD,Frenchay Hospital Purchasing,Residential Homes,Hc-One Ltd,1479.76, 10-Jul-2012
1016,Revenue,CCHD,Day Care - North,Private & Voluntary Day Care,Headway Bristol,821.79, 27-Jul-2012
1017,Revenue,CCHD,Day Care - South,Private & Voluntary Day Care,Headway Bristol,750.33, 30-Jul-2012
1018,Revenue,CCHD,Day Care - South,Private & Voluntary Day Care,Headway Bristol,1283.13, 30-Jul-2012
1019,Revenue,CCHD,Day Care - North,Private & Voluntary Day Care,Headway Bristol,571.68, 27-Jul-2012
1020,Revenue,CCHD,Day Care - South,Private & Voluntary Day Care,Headway Bristol,678.87, 30-Jul-2012
1021,Revenue,CCHD,Day Care - South,Private & Voluntary Day Care,Headway Bristol,1910.02, 30-Jul-2012
1022,Revenue,CCHD,Day Care - North,Private & Voluntary Day Care,Headway Bristol,821.79, 27-Jul-2012
1023,Revenue,CCHD,Bed Purchasing - Elderly - North,Residential Homes,Helen & Douglas House,900, 13-Jul-2012
1024,Revenue,CCHD,Supported Living - PS,Private & Voluntary Home Care,HFT,3722.08, 18-Jul-2012
1025,Revenue,CCHD,Southmead Hospital Purchasing,Residential Homes,Highgate Studios,1167.44, 10-Jul-2012
1026,Revenue,CCHD,Bed purchasing - Under 65s PWLD - North,Residential Homes,Holmleigh Care Homes Ltd,3962.92, 10-Jul-2012
1027,Revenue,CCHD,Bed Purchasing - Under 65s PWLD - South,Residential Homes,Holmleigh Care Homes Ltd,4980.72, 10-Jul-2012
1028,Revenue,CCHD,Bed purchasing - Under 65s PWLD - North,Residential Homes,Home Farm Trust Ltd  5-6 Brook Office Pa,2784.12, 10-Jul-2012
1029,Revenue,CCHD,Bed Purchasing - Under 65s PWLD - South,Residential Homes,Home Farm Trust Ltd  5-6 Brook Office Pa,3024, 10-Jul-2012
1030,Revenue,CCHD,Bed purchasing - Under 65s PWLD - North,Residential Homes,Home Farm Trust Ltd  5-6 Brook Office Pa,3367.08, 10-Jul-2012
1031,Revenue,CCHD,Bed Purchasing - Under 65s PWLD - South,Residential Homes,Home Farm Trust Ltd  5-6 Brook Office Pa,4491.6, 10-Jul-2012
1032,Revenue,CCHD,Bed purchasing - Under 65s PWLD - North,Residential Homes,Home From Home Care Ltd,9029.56, 10-Jul-2012
1033,Revenue,CCHD,Bed purchasing - Under 65s PWLD - North,Residential Homes,Homes Caring For Autism Ltd  Churchill H,19325.44, 10-Jul-2012
1034,Revenue,CCHD,Bed Purchasing - Under 65s PWLD - South,Residential Homes,Homes Caring For Autism Ltd  Churchill H,25193.76, 10-Jul-2012
1035,Revenue,CCHD,Bed Purchasing - Elderly - South,Nursing Homes,Horfield Care Limited,2771.13, 18-Jul-2012
1036,Revenue,CCHD,Bed Purchasing - Elderly - North,Nursing Homes,Horfield Care Limited,2746.44, 18-Jul-2012
1037,Revenue,CCHD,Frenchay Hospital Purchasing,Nursing Homes,Horfield Care Limited,2913.72, 18-Jul-2012
1038,Revenue,CCHD,Southmead Hospital Purchasing,Nursing Homes,Horfield Care Limited,7047.52, 18-Jul-2012
1039,Revenue,CCHD,Bed Purchasing - Elderly - North,Residential Homes,Horfield Lodge,1048.85, 10-Jul-2012
1040,Revenue,CCHD,Home Care - Elderly - North,Private & Voluntary Home Care,Housing 21,35812.8, 10-Jul-2012
1041,Revenue,CCHD,Information Systems - Software,Other Supplies & Services,IBM United Kingdom,1291.5, 13-Jul-2012
1042,Revenue,CCHD,Care Management Team - South,Agency Staff (Operational)/PCT Pay,IPE,1226.88, 30-Jul-2012
1043,Revenue,CCHD,Safeguarding and DOLs,Agency Staff (Operational)/PCT Pay,IPE,3932.8, 11-Jul-2012
1044,Revenue,CCHD,Safeguarding and DOLs,Agency Staff (Admin/Support Staff) Pay,IPE,2925, 04-Jul-2012
1045,Revenue,CCHD,Training - Adult Services,Training Expenses,Jo Williams,527, 31-Jul-2012
1046,Revenue,CCHD,Bed Purchasing - Under 65s PWLD - South,Residential Homes,Julia Simone- Supp. Ind.,3529.24, 10-Jul-2012
1047,Revenue,CCHD,Bed purchasing -S28A  Under 65 - North,Residential Homes,Julia Simone- Supp. Ind.,3411.16, 10-Jul-2012
1048,Revenue,CCHD,Community Care Contact Centre,Office Supplies & Equipment,K N Office Supplies,969.84, 30-Jul-2012
1049,Revenue,CCHD,Bed Purchasing - Elderly - North,Residential Homes,Katherine House,2384.24, 10-Jul-2012
1050,Revenue,CCHD,Bed Purchasing - Elderly MH - South,Residential Homes,Kenver House Residential Home,1513.84, 10-Jul-2012
1051,Revenue,CCHD,Bed purchasing - Elderly S117 - South,Residential Homes,Kenver House Residential Home,5167.36, 10-Jul-2012
1052,Revenue,CCHD,Bed purchasing - Elderly S117 - South,Residential Homes,Kenver House Residential Home,1879.04, 10-Jul-2012
1053,Revenue,CCHD,Frenchay Hospital Purchasing,Residential Homes,Kenver House Residential Home,6862.09, 10-Jul-2012
1054,Revenue,CCHD,Frenchay Hospital Purchasing,Residential Homes,Kenver House Residential Home,2114.96, 10-Jul-2012
1055,Revenue,CCHD,Bed Purchasing - Elderly MH - South,Residential Homes,Kenver House Residential Home,1354.08, 10-Jul-2012
1056,Revenue,CCHD,Bed Purchasing - Elderly - North,Residential Homes,Kenver House Residential Home,1888.36, 10-Jul-2012
1057,Revenue,CCHD,Bed Purchasing - Elderly - North,Residential Homes,Kenver House Residential Home,1057.48, 10-Jul-2012
1058,Revenue,CCHD,Bed Purchasing - Elderly MH - South,Residential Homes,Kenver House Residential Home,1638.16, 10-Jul-2012
1059,Revenue,CCHD,Frenchay Hospital Purchasing,Residential Homes,Kenver House Residential Home,947.36, 10-Jul-2012
1060,Revenue,CCHD,Bed purchasing - Elderly S117 - South,Residential Homes,Kenver House Residential Home,1879.04, 10-Jul-2012
1061,Revenue,CCHD,Bed Purchasing - Elderly MH - South,Residential Homes,Kenver House Residential Home,1273.72, 10-Jul-2012
1062,Revenue,CCHD,Bed Purchasing - Elderly S117- North,Residential Homes,Kenver House Residential Home,1880, 10-Jul-2012
1063,Revenue,CCHD,Bed Purchasing - Elderly MH - South,Residential Homes,Kenver House Residential Home,1638.16, 10-Jul-2012
1064,Revenue,CCHD,Frenchay Hospital Purchasing,Residential Homes,Kenver House Residential Home,1638.16, 10-Jul-2012
1065,Revenue,CCHD,Bed Purchasing - Elderly MH - South,Residential Homes,Kenver House Residential Home,1184.36, 10-Jul-2012
1066,Revenue,CCHD,Bed Purchasing - Elderly MH - South,Residential Homes,Kenver House Residential Home,1226.32, 10-Jul-2012
1067,Revenue,CCHD,Frenchay Hospital Purchasing,Residential Homes,Kenver House Residential Home,1410.6, 10-Jul-2012
1068,Revenue,CCHD,Bed Purchasing - Elderly MH - South,Residential Homes,Kenver House Residential Home,1167.88, 10-Jul-2012
1069,Revenue,CCHD,Bed Purchasing - Elderly MH - South,Residential Homes,Kenver House Residential Home,1402.24, 10-Jul-2012
1070,Revenue,CCHD,Bed Purchasing - Elderly - South,Residential Homes,Kenver House Residential Home,1529.44, 10-Jul-2012
1071,Revenue,CCHD,Frenchay Hospital Purchasing,Residential Homes,Kenver House Residential Home,1561.28, 10-Jul-2012
1072,Revenue,CCHD,Bed Purchasing - Elderly MH - South,Residential Homes,Kenver House Residential Home,1454.08, 10-Jul-2012
1073,Revenue,CCHD,Frenchay Hospital Purchasing,Residential Homes,Kenver House Residential Home,1522, 10-Jul-2012
1074,Revenue,CCHD,Bed purchasing - Under 65s PWLD - North,Residential Homes,Kisimul Group,11255.24, 10-Jul-2012
1075,Revenue,CCHD,Home Care - Elderly - South,Other Small Contracts,Kumari Care Limited,4370.08, 20-Jul-2012
1076,Revenue,CCHD,Home Care - Elderly - North,Other Small Contracts,Kumari Care Limited,826.99, 20-Jul-2012
1077,Revenue,CCHD,Day Care - South,Private & Voluntary Day Care,Kumari Care Limited,229.2, 20-Jul-2012
1078,Revenue,CCHD,Under 65s -MH  Home Care Purch,Other Small Contracts,Kumari Care Limited,129.88, 20-Jul-2012
1079,Revenue,CCHD,Home care - Elderly MH - North,Other Small Contracts,Kumari Care Limited,38.2, 20-Jul-2012
1080,Revenue,CCHD,PWLD Home Care - Under 65 - KH,Private & Voluntary Home Care,Kumari Care Limited,313.24, 20-Jul-2012
1081,Revenue,CCHD,Home Care - Elderly - South,Other Small Contracts,Kumari Care Limited,4396.82, 30-Jul-2012
1082,Revenue,CCHD,Home Care - Elderly - North,Other Small Contracts,Kumari Care Limited,826.07, 30-Jul-2012
1083,Revenue,CCHD,Day Care - South,Private & Voluntary Day Care,Kumari Care Limited,229.2, 30-Jul-2012
1084,Revenue,CCHD,Under 65s -MH  Home Care Purch,Other Small Contracts,Kumari Care Limited,133.08, 30-Jul-2012
1085,Revenue,CCHD,Home care - Elderly MH - North,Other Small Contracts,Kumari Care Limited,38.2, 30-Jul-2012
1086,Revenue,CCHD,PWLD Home Care - Under 65 - KH,Private & Voluntary Home Care,Kumari Care Limited,95.5, 30-Jul-2012
1087,Revenue,CCHD,Home Care - Elderly - South,Other Small Contracts,Kumari Care Limited,3865.84, 30-Jul-2012
1088,Revenue,CCHD,Home Care - Elderly - North,Other Small Contracts,Kumari Care Limited,827.83, 30-Jul-2012
1089,Revenue,CCHD,Day Care - South,Private & Voluntary Day Care,Kumari Care Limited,225.38, 30-Jul-2012
1090,Revenue,CCHD,Under 65s -MH  Home Care Purch,Other Small Contracts,Kumari Care Limited,148.98, 30-Jul-2012
1091,Revenue,CCHD,Home care - Elderly MH - North,Other Small Contracts,Kumari Care Limited,38.2, 30-Jul-2012
1092,Revenue,CCHD,PWLD Home Care - Under 65 - KH,Private & Voluntary Home Care,Kumari Care Limited,191, 30-Jul-2012
1093,Revenue,CCHD,Home Care - Elderly - South,Other Small Contracts,Kumari Care Limited,3827.64, 30-Jul-2012
1094,Revenue,CCHD,Home Care - Elderly - North,Other Small Contracts,Kumari Care Limited,827.13, 30-Jul-2012
1095,Revenue,CCHD,Day Care - South,Private & Voluntary Day Care,Kumari Care Limited,282.68, 30-Jul-2012
1096,Revenue,CCHD,Under 65s -MH  Home Care Purch,Other Small Contracts,Kumari Care Limited,148.98, 30-Jul-2012
1097,Revenue,CCHD,Home care - Elderly MH - North,Other Small Contracts,Kumari Care Limited,45.84, 30-Jul-2012
1098,Revenue,CCHD,PWLD Home Care - Under 65 - KH,Private & Voluntary Home Care,Kumari Care Limited,317.06, 30-Jul-2012
1099,Revenue,CCHD,Bed purchasing - Phys Dis - North,Nursing Homes,Ladymead Care Home,845.76, 10-Jul-2012
1100,Revenue,CCHD,Management & Support costs,Other Supplies & Services,Laing & Buisson (Publications) Limited,460, 11-Jul-2012
1101,Revenue,CCHD,Bed purchasing - Phys Dis - North,Nursing Homes,Leonard Cheshire  National Account Centr,2631.76, 10-Jul-2012
1102,Revenue,CCHD,Bed purchasing - Phys Dis - North,Residential Homes,Leonard Cheshire  National Account Centr,2330.6, 10-Jul-2012
1103,Revenue,CCHD,Bed Purchasing - Under 65s PWLD - South,Residential Homes,Leonard Cheshire  National Account Centr,2932.12, 10-Jul-2012
1104,Revenue,CCHD,Bed Purchasing - Elderly - North,Nursing Homes,Leonard Cheshire  National Account Centr,3436.6, 10-Jul-2012
1105,Revenue,CCHD,Bed purchasing - Phys Dis - North,Nursing Homes,Leonard Cheshire  National Account Centr,2736.6, 10-Jul-2012
1106,Revenue,CCHD,Bed Purchasing - Elderly - North,Residential Homes,Leonard Cheshire  National Account Centr,3122.24, 10-Jul-2012
1107,Revenue,CCHD,Bed purchasing - Phys Dis - North,Nursing Homes,Leonard Cheshire  National Account Centr,2812.44, 10-Jul-2012
1108,Revenue,CCHD,Bed purchasing - Phys Dis - North,Nursing Homes,Leonard Cheshire  National Account Centr,3183.12, 10-Jul-2012
1109,Revenue,CCHD,Bed purchasing - Phys Dis - North,Residential Homes,Leonard Cheshire  National Account Centr,2862.72, 10-Jul-2012
1110,Revenue,CCHD,Bed Purchasing - Elderly - North,Nursing Homes,Leonard Cheshire  National Account Centr,3521.32, 10-Jul-2012
1111,Revenue,CCHD,Bed Purchasing - Elderly - South,Nursing Homes,Leonard Cheshire  National Account Centr,2841.24, 10-Jul-2012
1112,Revenue,CCHD,Southmead Hospital Purchasing,Nursing Homes,Leonard Cheshire  National Account Centr,2977.88, 10-Jul-2012
1113,Revenue,CCHD,South Glos Users in all other LA Homes,Nursing Homes,Leonard Cheshire  National Account Centr,598.4, 10-Jul-2012
1114,Revenue,CCHD,Bed purchasing - Phys Dis - North,Nursing Homes,Leonard Cheshire  National Account Centr,3278.52, 10-Jul-2012
1115,Revenue,CCHD,Frenchay Hospital Purchasing,Residential Homes,Leonard Cheshire  National Account Centr,3738.32, 10-Jul-2012
1116,Revenue,CCHD,Bed Purchasing - LD S28A- Over 65- South,Residential Homes,Leonard Cheshire  National Account Centr,2879.08, 10-Jul-2012
1117,Revenue,CCHD,Swift Dump Code,Residential Homes,Leonard Elms Care Home,895.96, 10-Jul-2012
1118,Revenue,CCHD,Bed purchasing - Phys Dis - North,Nursing Homes,Leonard Elms Care Home,895.96, 10-Jul-2012
1119,Revenue,CCHD,Bed Purchasing - Elderly - South,Nursing Homes,Leonard Elms Care Home,5732.85, 10-Jul-2012
1120,Revenue,CCHD,Swift Dump Code,Residential Homes,Leonard Elms Care Home,4796.93, 10-Jul-2012
1121,Revenue,CCHD,Bed Purchasing - Elderly - South,Nursing Homes,Leonard Elms Care Home,592.83, 10-Jul-2012
1122,Revenue,CCHD,Supported Living - KD,Private & Voluntary Home Care,Lifeways Community Care (Gloucester) Ltd,11373, 09-Jul-2012
1123,Revenue,CCHD,Bed Purchasing - Elderly - South,Residential Homes,Little Croft,2573.36, 10-Jul-2012
1124,Revenue,CCHD,Bed Purchasing - Elderly - South,Residential Homes,Little Croft,2478.4, 10-Jul-2012
1125,Revenue,CCHD,Bed Purchasing - Elderly - South,Residential Homes,Little Croft,2837.2, 10-Jul-2012
1126,Revenue,CCHD,Bed Purchasing - Elderly - South,Residential Homes,Little Croft,3676.72, 10-Jul-2012
1127,Revenue,CCHD,Bed Purchasing - Elderly - South,Residential Homes,Little Croft,2501.44, 10-Jul-2012
1128,Revenue,CCHD,Southmead Hospital Purchasing,Residential Homes,Little Croft,1465.92, 10-Jul-2012
1129,Revenue,CCHD,Southmead Hospital Purchasing,Residential Homes,Little Croft,2425.52, 10-Jul-2012
1130,Revenue,CCHD,Bed Purchasing - Elderly MH - South,Residential Homes,Little Croft,4094.93, 10-Jul-2012
1131,Revenue,CCHD,Bed Purchasing - Elderly MH - South,Residential Homes,Little Croft,2345.76, 10-Jul-2012
1132,Revenue,CCHD,Southmead Hospital Purchasing,Residential Homes,Little Croft,1242.76, 10-Jul-2012
1133,Revenue,CCHD,Southmead Hospital Purchasing,Residential Homes,Little Croft,2471.6, 10-Jul-2012
1134,Revenue,CCHD,Frenchay Hospital Purchasing,Residential Homes,Little Croft,1194.94, 10-Jul-2012
1135,Revenue,CCHD,Bed purchasing - Under 65s PWLD - North,Residential Homes,Littlecroft Residential Homes  Longcroft,6524.44, 10-Jul-2012
1136,Revenue,CCHD,Supported Living - PS,Private & Voluntary Home Care,Lloyds TSB Commercial Finance Limited,5534.51, 24-Jul-2012
1137,Revenue,CCHD,Community Support ACM - South,Preventative Assistance,Lloyds TSB Commercial Finance Limited,1808.52, 20-Jul-2012
1138,Revenue,CCHD,Supported Living - PS,Private & Voluntary Home Care,Lloyds TSB Commercial Finance Limited,3763.32, 24-Jul-2012
1139,Revenue,CCHD,Supported Living - PS,Private & Voluntary Home Care,Lloyds TSB Commercial Finance Limited,3824.52, 24-Jul-2012
1140,Revenue,CCHD,Supported Living - KD,Private & Voluntary Home Care,Lloyds TSB Commercial Finance Limited,3773.75, 19-Jul-2012
1141,Revenue,CCHD,Supported Living - PS,Private & Voluntary Home Care,Lloyds TSB Commercial Finance Limited,6068.76, 24-Jul-2012
1142,Revenue,CCHD,Supported Living - KD,Private & Voluntary Home Care,Lloyds TSB Commercial Finance Limited,3737.45, 19-Jul-2012
1143,Revenue,CCHD,Supported Living - PS,Private & Voluntary Home Care,Lloyds TSB Commercial Finance Limited,4009.56, 24-Jul-2012
1144,Revenue,CCHD,Supported Living - PS,Private & Voluntary Home Care,Lloyds TSB Commercial Finance Limited,3635.4, 24-Jul-2012
1145,Revenue,CCHD,Supported Living - PS,Private & Voluntary Home Care,Lloyds TSB Commercial Finance Limited,3601.8, 24-Jul-2012
1146,Revenue,CCHD,Supported Living - PS,Private & Voluntary Home Care,Lloyds TSB Commercial Finance Limited,3443.4, 24-Jul-2012
1147,Revenue,CCHD,Supported Living - KD,Private & Voluntary Home Care,Lloyds TSB Commercial Finance Limited,3552.65, 19-Jul-2012
1148,Revenue,CCHD,Supported Living - PS,Private & Voluntary Home Care,Lloyds TSB Commercial Finance Limited,3304.5, 24-Jul-2012
1149,Revenue,CCHD,Supported Living - PS,Private & Voluntary Home Care,Lloyds TSB Commercial Finance Limited,606.48, 24-Jul-2012
1150,Revenue,CCHD,Home Care - Elderly - South,Other Small Contracts,Lloyds TSB Commercial Finance Limited,743.04, 09-Jul-2012
1151,Revenue,CCHD,Home Care - Elderly - North,Other Small Contracts,Lloyds TSB Commercial Finance Limited,4794.93, 09-Jul-2012
1152,Revenue,CCHD,Day Care - South,Private & Voluntary Day Care,Lloyds TSB Commercial Finance Limited,197.37, 09-Jul-2012
1153,Revenue,CCHD,Day Care - North,Private & Voluntary Day Care,Lloyds TSB Commercial Finance Limited,491.49, 09-Jul-2012
1154,Revenue,CCHD,Home care - Elderly MH - North,Other Small Contracts,Lloyds TSB Commercial Finance Limited,657.9, 09-Jul-2012
1155,Revenue,CCHD,Home Care - Elderly - South,Other Small Contracts,Lloyds TSB Commercial Finance Limited,425.7, 09-Jul-2012
1156,Revenue,CCHD,Home Care - Elderly - North,Other Small Contracts,Lloyds TSB Commercial Finance Limited,4895.55, 09-Jul-2012
1157,Revenue,CCHD,Day Care - South,Private & Voluntary Day Care,Lloyds TSB Commercial Finance Limited,166.41, 09-Jul-2012
1158,Revenue,CCHD,Day Care - North,Private & Voluntary Day Care,Lloyds TSB Commercial Finance Limited,464.4, 09-Jul-2012
1159,Revenue,CCHD,Home care - Elderly MH - North,Other Small Contracts,Lloyds TSB Commercial Finance Limited,646.29, 09-Jul-2012
1160,Revenue,CCHD,Home Care - Elderly - South,Other Small Contracts,Lloyds TSB Commercial Finance Limited,359.91, 09-Jul-2012
1161,Revenue,CCHD,Home Care - Elderly - North,Other Small Contracts,Lloyds TSB Commercial Finance Limited,5166.45, 09-Jul-2012
1162,Revenue,CCHD,Day Care - South,Private & Voluntary Day Care,Lloyds TSB Commercial Finance Limited,170.28, 09-Jul-2012
1163,Revenue,CCHD,Day Care - North,Private & Voluntary Day Care,Lloyds TSB Commercial Finance Limited,460.53, 09-Jul-2012
1164,Revenue,CCHD,Home care - Elderly MH - North,Other Small Contracts,Lloyds TSB Commercial Finance Limited,565.02, 09-Jul-2012
1165,Revenue,CCHD,Home Care - Elderly - South,Other Small Contracts,Lloyds TSB Commercial Finance Limited,417.96, 24-Jul-2012
1166,Revenue,CCHD,Home Care - Elderly - North,Other Small Contracts,Lloyds TSB Commercial Finance Limited,5298.03, 24-Jul-2012
1167,Revenue,CCHD,Day Care - South,Private & Voluntary Day Care,Lloyds TSB Commercial Finance Limited,197.37, 24-Jul-2012
1168,Revenue,CCHD,Day Care - North,Private & Voluntary Day Care,Lloyds TSB Commercial Finance Limited,503.1, 24-Jul-2012
1169,Revenue,CCHD,Home care - Elderly MH - North,Other Small Contracts,Lloyds TSB Commercial Finance Limited,495.36, 24-Jul-2012
1170,Revenue,CCHD,Bed Purchasing - Under 65s PWLD - South,Residential Homes,Longton Court,9508.88, 10-Jul-2012
1171,Revenue,CCHD,Social Lettings Agency,Other Supplies & Services,Individual,565, 06-Jul-2012
1172,Revenue,CCHD,Bed Purchasing - Under 65s PWLD - South,Residential Homes,Lufton Manor College,765.89, 10-Jul-2012
1173,Revenue,CCHD,Southmead Hospital Purchasing,Nursing Homes,Majestic 3 Limited,1001.96, 10-Jul-2012
1174,Revenue,CCHD,Frenchay Hospital Purchasing,Residential Homes,Manor Cottage,871, 10-Jul-2012
1175,Revenue,CCHD,Bed Purchasing - Elderly - South,Residential Homes,Manor Cottage,1424.84, 10-Jul-2012
1176,Revenue,CCHD,Bed Purchasing - Elderly - South,Residential Homes,Manor Cottage,1298.84, 10-Jul-2012
1177,Revenue,CCHD,Bed Purchasing - Elderly - North,Residential Homes,Manton Hall Residential Home,1484.32, 10-Jul-2012
1178,Revenue,CCHD,Social Lettings Agency,Other Supplies & Services,Individual,655.41, 26-Jul-2012
1179,Revenue,CCHD,Bed Purchasing - Under 65s PWLD - South,Residential Homes,Marsden Healthcare Limited,894.48, 06-Jul-2012
1180,Revenue,CCHD,Bed purchasing - Elderly PWLD - South,Residential Homes,Marsden Healthcare Limited,3177.12, 06-Jul-2012
1181,Revenue,CCHD,Bed purchasing - Elderly PWLD - South,Residential Homes,Marsden Healthcare Limited,1496.2, 06-Jul-2012
1182,Revenue,CCHD,Bed Purchasing - Elderly MH - South,Nursing Homes,Meadow Care Home,4401.84, 10-Jul-2012
1183,Revenue,CCHD,Home Care - Elderly - South,Private & Voluntary Home Care,Mears Care,47442.58, 27-Jul-2012
1184,Revenue,CCHD,Home Care - Elderly - South,Other Small Contracts,Mears Care,505.08, 09-Jul-2012
1185,Revenue,CCHD,Home Care - Elderly - North,Other Small Contracts,Mears Care,6997.92, 09-Jul-2012
1186,Revenue,CCHD,Day Care - South,Private & Voluntary Day Care,Mears Care,87.84, 09-Jul-2012
1187,Revenue,CCHD,Day Care - North,Private & Voluntary Day Care,Mears Care,263.52, 09-Jul-2012
1188,Revenue,CCHD,Under 65s -MH  Home Care Purch,Other Small Contracts,Mears Care,109.8, 09-Jul-2012
1189,Revenue,CCHD,Home care - Elderly MH - North,Other Small Contracts,Mears Care,651.48, 09-Jul-2012
1190,Revenue,CCHD,Elderly MH Day Care North,Private & Voluntary Day Care,Mears Care,29.28, 09-Jul-2012
1191,Revenue,CCHD,Home Care - Elderly LD - KH,Private & Voluntary Home Care,Mears Care,51.24, 09-Jul-2012
1192,Revenue,CCHD,Home Care - Elderly - South,Other Small Contracts,Mears Care,486.78, 09-Jul-2012
1193,Revenue,CCHD,Home Care - Elderly - North,Other Small Contracts,Mears Care,6880.8, 09-Jul-2012
1194,Revenue,CCHD,Day Care - South,Private & Voluntary Day Care,Mears Care,87.84, 09-Jul-2012
1195,Revenue,CCHD,Day Care - North,Private & Voluntary Day Care,Mears Care,281.82, 09-Jul-2012
1196,Revenue,CCHD,Under 65s -MH  Home Care Purch,Other Small Contracts,Mears Care,106.14, 09-Jul-2012
1197,Revenue,CCHD,Home care - Elderly MH - North,Other Small Contracts,Mears Care,677.1, 09-Jul-2012
1198,Revenue,CCHD,Elderly MH Day Care North,Private & Voluntary Day Care,Mears Care,29.28, 09-Jul-2012
1199,Revenue,CCHD,Home Care - Elderly LD - KH,Private & Voluntary Home Care,Mears Care,51.24, 09-Jul-2012
1200,Revenue,CCHD,Home Care - Elderly - South,Other Small Contracts,Mears Care,373.32, 09-Jul-2012
1201,Revenue,CCHD,Home Care - Elderly - North,Other Small Contracts,Mears Care,7089.42, 09-Jul-2012
1202,Revenue,CCHD,Day Care - South,Private & Voluntary Day Care,Mears Care,87.84, 09-Jul-2012
1203,Revenue,CCHD,Day Care - North,Private & Voluntary Day Care,Mears Care,263.52, 09-Jul-2012
1204,Revenue,CCHD,Under 65s -MH  Home Care Purch,Other Small Contracts,Mears Care,109.8, 09-Jul-2012
1205,Revenue,CCHD,Home care - Elderly MH - North,Other Small Contracts,Mears Care,666.12, 09-Jul-2012
1206,Revenue,CCHD,Elderly MH Day Care North,Private & Voluntary Day Care,Mears Care,29.28, 09-Jul-2012
1207,Revenue,CCHD,Home Care - Elderly LD - KH,Private & Voluntary Home Care,Mears Care,51.24, 09-Jul-2012
1208,Revenue,CCHD,Home Care - Elderly - South,Other Small Contracts,Mears Care,431.88, 11-Jul-2012
1209,Revenue,CCHD,Home Care - Elderly - North,Other Small Contracts,Mears Care,7019.88, 11-Jul-2012
1210,Revenue,CCHD,Day Care - South,Private & Voluntary Day Care,Mears Care,87.84, 11-Jul-2012
1211,Revenue,CCHD,Day Care - North,Private & Voluntary Day Care,Mears Care,241.56, 11-Jul-2012
1212,Revenue,CCHD,Under 65s -MH  Home Care Purch,Other Small Contracts,Mears Care,109.8, 11-Jul-2012
1213,Revenue,CCHD,Home care - Elderly MH - North,Other Small Contracts,Mears Care,669.78, 11-Jul-2012
1214,Revenue,CCHD,Elderly MH Day Care North,Private & Voluntary Day Care,Mears Care,29.28, 11-Jul-2012
1215,Revenue,CCHD,Home Care - Elderly LD - KH,Private & Voluntary Home Care,Mears Care,54.9, 11-Jul-2012
1216,Revenue,CCHD,NRS Contract,Daily Living Equipment,Medequip Assistive Technology Ltd,48683.58, 13-Jul-2012
1217,Revenue,CCHD,NRS Contract,Daily Living Equipment,Medequip Assistive Technology Ltd,87396.02, 13-Jul-2012
1218,Revenue,CCHD,NRS Contract,Daily Living Equipment,Medequip Assistive Technology Ltd,18892.39, 19-Jul-2012
1219,Revenue,CCHD,NRS Contract,Daily Living Equipment,Medequip Assistive Technology Ltd,75740.85, 19-Jul-2012
1220,Revenue,CCHD,NRS Contract,Daily Living Equipment,Medequip Assistive Technology Ltd,797.95, 19-Jul-2012
1221,Revenue,CCHD,NRS Contract,Daily Living Equipment,Medequip Assistive Technology Ltd,1054.82, 19-Jul-2012
1222,Revenue,CCHD,Bed Purchasing - Under 65s PWLD - South,Residential Homes,Mencap,2198.88, 10-Jul-2012
1223,Revenue,CCHD,Supported Living (S28a) South,Private & Voluntary Home Care,Mencap - PS North,3689, 04-Jul-2012
1224,Revenue,CCHD,Supported Living (S28a) South,Private & Voluntary Home Care,Mencap - PS North,3689, 04-Jul-2012
1225,Revenue,CCHD,Supported Living (S28a) South,Private & Voluntary Home Care,Mencap - PS North,3689, 04-Jul-2012
1226,Revenue,CCHD,Supported Living (S28a) South,Private & Voluntary Home Care,Mencap - PS North,3689, 04-Jul-2012
1227,Revenue,CCHD,Frenchay Hospital Purchasing,Residential Homes,Milburn Finance,1035.6, 10-Jul-2012
1228,Revenue,CCHD,Home Care - Elderly - South,Other Small Contracts,Milestones Outreach Dementia Services,819.91, 19-Jul-2012
1229,Revenue,CCHD,Home Care - Elderly - North,Other Small Contracts,Milestones Outreach Dementia Services,183.04, 19-Jul-2012
1230,Revenue,CCHD,Day Care - South,Private & Voluntary Day Care,Milestones Outreach Dementia Services,61, 19-Jul-2012
1231,Revenue,CCHD,Day Care - North,Private & Voluntary Day Care,Milestones Outreach Dementia Services,152.5, 19-Jul-2012
1232,Revenue,CCHD,Home care - Elderly MH - North,Other Small Contracts,Milestones Outreach Dementia Services,530.23, 19-Jul-2012
1233,Revenue,CCHD,Elderly MH Day Care North,Private & Voluntary Day Care,Milestones Outreach Dementia Services,456.02, 19-Jul-2012
1234,Revenue,CCHD,Home Care - Elderly - South,Other Small Contracts,Milestones Outreach Dementia Services,536.25, 19-Jul-2012
1235,Revenue,CCHD,Home Care - Elderly - North,Other Small Contracts,Milestones Outreach Dementia Services,165, 19-Jul-2012
1236,Revenue,CCHD,Day Care - North,Private & Voluntary Day Care,Milestones Outreach Dementia Services,60, 19-Jul-2012
1237,Revenue,CCHD,Home care - Elderly MH - North,Other Small Contracts,Milestones Outreach Dementia Services,982.5, 19-Jul-2012
1238,Revenue,CCHD,Elderly MH Day Care North,Private & Voluntary Day Care,Milestones Outreach Dementia Services,705, 19-Jul-2012
1239,Revenue,CCHD,Home Care - Elderly - South,Other Small Contracts,Milestones Outreach Dementia Services,678.79, 19-Jul-2012
1240,Revenue,CCHD,Home Care - Elderly - North,Other Small Contracts,Milestones Outreach Dementia Services,183.03, 19-Jul-2012
1241,Revenue,CCHD,Day Care - South,Private & Voluntary Day Care,Milestones Outreach Dementia Services,61, 19-Jul-2012
1242,Revenue,CCHD,Day Care - North,Private & Voluntary Day Care,Milestones Outreach Dementia Services,45.75, 19-Jul-2012
1243,Revenue,CCHD,Home care - Elderly MH - North,Other Small Contracts,Milestones Outreach Dementia Services,564.56, 19-Jul-2012
1244,Revenue,CCHD,Elderly MH Day Care North,Private & Voluntary Day Care,Milestones Outreach Dementia Services,350.27, 19-Jul-2012
1245,Revenue,CCHD,Home Care - Elderly - South,Other Small Contracts,Milestones Outreach Dementia Services,502.5, 19-Jul-2012
1246,Revenue,CCHD,Home Care - Elderly - North,Other Small Contracts,Milestones Outreach Dementia Services,198.75, 19-Jul-2012
1247,Revenue,CCHD,Day Care - North,Private & Voluntary Day Care,Milestones Outreach Dementia Services,90, 19-Jul-2012
1248,Revenue,CCHD,Home care - Elderly MH - North,Other Small Contracts,Milestones Outreach Dementia Services,472.5, 19-Jul-2012
1249,Revenue,CCHD,Elderly MH Day Care North,Private & Voluntary Day Care,Milestones Outreach Dementia Services,427.5, 19-Jul-2012
1250,Revenue,CCHD,Home Care - Elderly - South,Other Small Contracts,Milestones Outreach Dementia Services,781.81, 19-Jul-2012
1251,Revenue,CCHD,Home Care - Elderly - North,Other Small Contracts,Milestones Outreach Dementia Services,263.12, 19-Jul-2012
1252,Revenue,CCHD,Day Care - South,Private & Voluntary Day Care,Milestones Outreach Dementia Services,61, 19-Jul-2012
1253,Revenue,CCHD,Day Care - North,Private & Voluntary Day Care,Milestones Outreach Dementia Services,152.5, 19-Jul-2012
1254,Revenue,CCHD,Home care - Elderly MH - North,Other Small Contracts,Milestones Outreach Dementia Services,534.04, 19-Jul-2012
1255,Revenue,CCHD,Elderly MH Day Care North,Private & Voluntary Day Care,Milestones Outreach Dementia Services,369.02, 19-Jul-2012
1256,Revenue,CCHD,Home Care - Elderly - South,Other Small Contracts,Milestones Outreach Dementia Services,890.06, 19-Jul-2012
1257,Revenue,CCHD,Home Care - Elderly - North,Other Small Contracts,Milestones Outreach Dementia Services,210.1, 19-Jul-2012
1258,Revenue,CCHD,Day Care - South,Private & Voluntary Day Care,Milestones Outreach Dementia Services,68.76, 19-Jul-2012
1259,Revenue,CCHD,Home care - Elderly MH - North,Other Small Contracts,Milestones Outreach Dementia Services,515.7, 19-Jul-2012
1260,Revenue,CCHD,Elderly MH Day Care North,Private & Voluntary Day Care,Milestones Outreach Dementia Services,443.12, 19-Jul-2012
1261,Revenue,CCHD,Home Care - Elderly - South,Other Small Contracts,Milestones Outreach Dementia Services,1058.14, 19-Jul-2012
1262,Revenue,CCHD,Home Care - Elderly - North,Other Small Contracts,Milestones Outreach Dementia Services,171.9, 19-Jul-2012
1263,Revenue,CCHD,Day Care - South,Private & Voluntary Day Care,Milestones Outreach Dementia Services,61.12, 19-Jul-2012
1264,Revenue,CCHD,Day Care - North,Private & Voluntary Day Care,Milestones Outreach Dementia Services,61.12, 19-Jul-2012
1265,Revenue,CCHD,Home care - Elderly MH - North,Other Small Contracts,Milestones Outreach Dementia Services,508.06, 19-Jul-2012
1266,Revenue,CCHD,Elderly MH Day Care North,Private & Voluntary Day Care,Milestones Outreach Dementia Services,515.7, 19-Jul-2012
1267,Revenue,CCHD,Home Care - Elderly - South,Other Small Contracts,Milestones Outreach Dementia Services,1203.3, 19-Jul-2012
1268,Revenue,CCHD,Home Care - Elderly - North,Other Small Contracts,Milestones Outreach Dementia Services,145.16, 19-Jul-2012
1269,Revenue,CCHD,Day Care - South,Private & Voluntary Day Care,Milestones Outreach Dementia Services,122.24, 19-Jul-2012
1270,Revenue,CCHD,Home care - Elderly MH - North,Other Small Contracts,Milestones Outreach Dementia Services,561.54, 19-Jul-2012
1271,Revenue,CCHD,Elderly MH Day Care North,Private & Voluntary Day Care,Milestones Outreach Dementia Services,542.44, 19-Jul-2012
1272,Revenue,CCHD,Elderly MH Day Care North,Private & Voluntary Day Care,Milestones Trust,924, 10-Jul-2012
1273,Revenue,CCHD,Elderly MH Day Care North,Private & Voluntary Day Care,Milestones Trust,2079, 10-Jul-2012
1274,Revenue,CCHD,Supported Living - PS,Private & Voluntary Home Care,Milestones Trust,758.97, 09-Jul-2012
1275,Revenue,CCHD,Supported Living - PS,Private & Voluntary Home Care,Milestones Trust,3664.98, 09-Jul-2012
1276,Revenue,CCHD,Supported Living (S28a) South,Private & Voluntary Home Care,Milestones Trust,6178.64, 10-Jul-2012
1277,Revenue,CCHD,Younger MH non-res purchasing,Private & Voluntary Day Care,Milestones Trust,607.89, 06-Jul-2012
1278,Revenue,CCHD,Elderly MH Day Care North,Private & Voluntary Day Care,Milestones Trust,608.7, 06-Jul-2012
1279,Revenue,CCHD,Elderly MH Day Care South,Private & Voluntary Day Care,Milestones Trust,720, 06-Jul-2012
1280,Revenue,CCHD,Elderly MH Day Care North,Private & Voluntary Day Care,Milestones Trust,642.18, 06-Jul-2012
1281,Revenue,CCHD,Elderly MH Day Care North,Private & Voluntary Day Care,Milestones Trust,656.64, 06-Jul-2012
1282,Revenue,CCHD,Elderly MH Day Care South,Private & Voluntary Day Care,Milestones Trust,698.46, 06-Jul-2012
1283,Revenue,CCHD,Elderly MH Day Care South,Private & Voluntary Day Care,Milestones Trust,520.7, 06-Jul-2012
1284,Revenue,CCHD,Section 117 Placements MH Younger,Private & Voluntary Day Care,Milestones Trust,1081.56, 06-Jul-2012
1285,Revenue,CCHD,Supported Living - PS,Private & Voluntary Home Care,Milestones Trust,4940.64, 13-Jul-2012
1286,Revenue,CCHD,Supported Living - PS,Private & Voluntary Home Care,Milestones Trust,1024.38, 13-Jul-2012
1287,Revenue,CCHD,Supported Living - KD,Private & Voluntary Home Care,Milestones Trust,8760, 16-Jul-2012
1288,Revenue,CCHD,Supported Living (S28a) South,Private & Voluntary Home Care,Milestones Trust,11949.07, 11-Jul-2012
1289,Revenue,CCHD,Supported Living (S28a) South,Private & Voluntary Home Care,Milestones Trust,648.4, 06-Jul-2012
1290,Revenue,CCHD,Stibbs and Fairburn,Private & Voluntary Respite Care,Milestones Trust,124798.54, 06-Jul-2012
1291,Revenue,CCHD,Purchase of Non-Res Care - PS,Private & Voluntary Day Care,Milestones Trust,794.36, 06-Jul-2012
1292,Revenue,CCHD,Purchase of Non-Res Care - PS,Private & Voluntary Day Care,Milestones Trust,501, 06-Jul-2012
1293,Revenue,CCHD,Purchase of Non-Res Care - PS,Private & Voluntary Day Care,Milestones Trust,1315.44, 06-Jul-2012
1294,Revenue,CCHD,Purchase of Non-Res Care - PS,Private & Voluntary Day Care,Milestones Trust,1149.18, 06-Jul-2012
1295,Revenue,CCHD,Supported Living - PS,Private & Voluntary Home Care,Milestones Trust,514.5, 06-Jul-2012
1296,Revenue,CCHD,Purchase of Non-Res Care - PS,Private & Voluntary Day Care,Milestones Trust,1410.22, 06-Jul-2012
1297,Revenue,CCHD,Purchase of Non-Res Care - PS,Private & Voluntary Day Care,Milestones Trust,1298.55, 12-Jul-2012
1298,Revenue,CCHD,Purchase of Non-Res Care - PS,Private & Voluntary Day Care,Milestones Trust,1308.71, 12-Jul-2012
1299,Revenue,CCHD,Purchase of Non-Res Care - PS,Private & Voluntary Day Care,Milestones Trust,924.57, 12-Jul-2012
1300,Revenue,CCHD,Purchase of Non-Res Care - PS,Private & Voluntary Day Care,Milestones Trust,1141.45, 06-Jul-2012
1301,Revenue,CCHD,Purchase of Non-Res Care - PS,Private & Voluntary Day Care,Milestones Trust,1245.97, 12-Jul-2012
1302,Revenue,CCHD,Purchase of Non-Res Care - PS,Private & Voluntary Day Care,Milestones Trust,1567.58, 06-Jul-2012
1303,Revenue,CCHD,Purchase of Non-Res Care - PS,Private & Voluntary Day Care,Milestones Trust,528.01, 06-Jul-2012
1304,Revenue,CCHD,Purchase of Non-Res Care - PS,Private & Voluntary Day Care,Milestones Trust,1235.87, 12-Jul-2012
1305,Revenue,CCHD,Purchase of Non-Res Care - PS,Private & Voluntary Day Care,Milestones Trust,1393.87, 06-Jul-2012
1306,Revenue,CCHD,Purchase of Non-Res Care - PS,Private & Voluntary Day Care,Milestones Trust,1101.93, 06-Jul-2012
1307,Revenue,CCHD,Purchase of Non-Res Care - PS,Private & Voluntary Day Care,Milestones Trust,1381.06, 06-Jul-2012
1308,Revenue,CCHD,Purchase of Non-Res Care - PS,Private & Voluntary Day Care,Milestones Trust,1168.77, 12-Jul-2012
1309,Revenue,CCHD,Purchase of Non-Res Care - PS,Private & Voluntary Day Care,Milestones Trust,1293.45, 12-Jul-2012
1310,Revenue,CCHD,Purchase of Non-Res Care - PS,Private & Voluntary Day Care,Milestones Trust,1310.55, 12-Jul-2012
1311,Revenue,CCHD,Purchase of Non-Res Care - PS,Private & Voluntary Day Care,Milestones Trust,1184.08, 06-Jul-2012
1312,Revenue,CCHD,Purchase of Non-Res Care - PS,Private & Voluntary Day Care,Milestones Trust,1314.54, 12-Jul-2012
1313,Revenue,CCHD,Supported Living - PS,Private & Voluntary Home Care,Milestones Trust,14094.35, 16-Jul-2012
1314,Revenue,CCHD,Supported Living - PS,Private & Voluntary Home Care,Milestones Trust,812.97, 12-Jul-2012
1315,Revenue,CCHD,Supported Living - KD,Private & Voluntary Home Care,Milestones Trust,3071.72, 16-Jul-2012
1316,Revenue,CCHD,Supported Living - PS,Private & Voluntary Home Care,Milestones Trust,5400, 18-Jul-2012
1317,Revenue,CCHD,Elderly MH Day Care North,Private & Voluntary Day Care,Milestones Trust,520, 30-Jul-2012
1318,Revenue,CCHD,S28a Day Care,Private & Voluntary Day Care,Milestones Trust,616.88, 26-Jul-2012
1319,Revenue,CCHD,Purchase of Non-Res Care - PS,Private & Voluntary Day Care,Milestones Trust,1110.67, 12-Jul-2012
1320,Revenue,CCHD,Bed purchasing - Elderly S117 - South,Nursing Homes,Mimosa Healthcare Holdings Ltd,1919.72, 10-Jul-2012
1321,Revenue,CCHD,Bed purchasing - Elderly MH - North,Nursing Homes,Mimosa Healthcare Holdings Ltd,862.52, 10-Jul-2012
1322,Revenue,CCHD,Bed Purchasing - Elderly - South,Nursing Homes,Mimosa Healthcare Holdings Ltd,2440.06, 10-Jul-2012
1323,Revenue,CCHD,Bed Purchasing - Under 65s PWLD - South,Residential Homes,Mmcg  Westcourt,12816.72, 10-Jul-2012
1324,Revenue,CCHD,Bed Purchasing - LD S28A- Over 65- South,Nursing Homes,Mortimer House Nursing Home,2553.84, 06-Jul-2012
1325,Revenue,CCHD,Bed Purchasing - LD S28A- Over 65- South,Nursing Homes,Mortimer House Nursing Home,2996.52, 06-Jul-2012
1326,Revenue,CCHD,Bed Purchasing - LD S28A- Over 65- South,Nursing Homes,Mortimer House Nursing Home,2553.84, 06-Jul-2012
1327,Revenue,CCHD,Bed Purchasing - LD S28A- Over 65- South,Nursing Homes,Mortimer House Nursing Home,3271.92, 06-Jul-2012
1328,Revenue,CCHD,Bed purchasing - Elderly PWLD - South,Nursing Homes,Mortimer House Nursing Home,3109.76, 06-Jul-2012
1329,Revenue,CCHD,Bed Purchasing - LD S28A- Over 65- South,Nursing Homes,Mortimer House Nursing Home,3277.24, 06-Jul-2012
1330,Revenue,CCHD,Bed purchasing - Elderly S117 - South,Residential Homes,Mostyn Lodge Residential Home,3760, 10-Jul-2012
1331,Revenue,CCHD,Frenchay Hospital Purchasing,Residential Homes,Mostyn Lodge Residential Home,1194.94, 10-Jul-2012
1332,Revenue,CCHD,Social Lettings Agency,Other Supplies & Services,Individual,565, 26-Jul-2012
1333,Revenue,CCHD,Social Lettings Agency,Other Supplies & Services,Individual,950, 12-Jul-2012
1334,Revenue,CCHD,Under 65s PWLD - KH,Residential Homes,Mr J Davis & Mrs S Davis,1840, 17-Jul-2012
1335,Revenue,CCHD,Social Lettings Agency,Other Supplies & Services,Individual,565, 12-Jul-2012
1336,Revenue,CCHD,Social Lettings Agency,Other Supplies & Services,Individual,632.81, 20-Jul-2012
1337,Revenue,CCHD,Social Lettings Agency,Other Supplies & Services,Individual,565, 06-Jul-2012
1338,Revenue,CCHD,Social Lettings Agency,Other Supplies & Services,Individual,632.81, 16-Jul-2012
1339,Revenue,CCHD,Tenancy Start Up Scheme,Other Supplies & Services,Individual,1200, 23-Jul-2012
1340,Revenue,CCHD,Supported Living - PS,Private & Voluntary Home Care,Mrs B Kimber,1479.65, 27-Jul-2012
1341,Revenue,CCHD,Supported Living - PS,Private & Voluntary Home Care,Mrs B Kimber,1516.03, 02-Jul-2012
1342,Revenue,CCHD,Purchase of Non-Res Care - PS,Private & Voluntary Day Care,Mrs B Kimber,1092.48, 02-Jul-2012
1343,Revenue,CCHD,Elderly MH Day Care South,Private & Voluntary Day Care,Mrs B Kimber,695.7, 06-Jul-2012
1344,Revenue,CCHD,Day Care - North,Private & Voluntary Day Care,Mrs B Kimber,719.04, 05-Jul-2012
1345,Revenue,CCHD,Day Care - North,Private & Voluntary Day Care,Mrs B Kimber,1258.23, 05-Jul-2012
1346,Revenue,CCHD,Elderly MH Day Care South,Private & Voluntary Day Care,Mrs B Kimber,609.51, 18-Jul-2012
1347,Revenue,CCHD,Supported Living - PS,Private & Voluntary Home Care,Mrs B Kimber,1437.94, 27-Jul-2012
1348,Revenue,CCHD,Purchase of Non-Res Care - PS,Private & Voluntary Day Care,Mrs B Kimber,1229.04, 27-Jul-2012
1349,Revenue,CCHD,Supported Living - PS,Private & Voluntary Home Care,Mrs B Kimber,8358.71, 16-Jul-2012
1350,Revenue,CCHD,Day Care - South,Private & Voluntary Day Care,Mrs B Kimber,969.71, 12-Jul-2012
1351,Revenue,CCHD,Supported Living - PS,Private & Voluntary Home Care,Mrs B Kimber,10424.27, 27-Jul-2012
1352,Revenue,CCHD,Purchase of Non-Res Care - KD,Private & Voluntary Day Care,Mrs B Kimber,864.33, 13-Jul-2012
1353,Revenue,CCHD,Day Care - North,Private & Voluntary Day Care,Mrs B Kimber,1440.66, 23-Jul-2012
1354,Revenue,CCHD,Supported Living - KD,Private & Voluntary Home Care,Mrs B Kimber,959.77, 16-Jul-2012
1355,Revenue,CCHD,Home Care - Elderly - South,Other Small Contracts,Mrs B Kimber - Stepping Stones,2855.12, 03-Jul-2012
1356,Revenue,CCHD,Home Care - Elderly - North,Other Small Contracts,Mrs B Kimber - Stepping Stones,2646.6, 03-Jul-2012
1357,Revenue,CCHD,Day Care - South,Private & Voluntary Day Care,Mrs B Kimber - Stepping Stones,830.07, 03-Jul-2012
1358,Revenue,CCHD,Day Care - North,Private & Voluntary Day Care,Mrs B Kimber - Stepping Stones,172.43, 03-Jul-2012
1359,Revenue,CCHD,Under 65s -MH  Home Care Purch,Other Small Contracts,Mrs B Kimber - Stepping Stones,208.52, 03-Jul-2012
1360,Revenue,CCHD,Home care - Elderly MH - North,Other Small Contracts,Mrs B Kimber - Stepping Stones,228.57, 03-Jul-2012
1361,Revenue,CCHD,Elderly MH Day Care North,Private & Voluntary Day Care,Mrs B Kimber - Stepping Stones,348.87, 03-Jul-2012
1362,Revenue,CCHD,Supported Living - KD,Private & Voluntary Home Care,Mrs B Kimber - Stepping Stones,974.43, 03-Jul-2012
1363,Revenue,CCHD,Home Care - LD Under 65 - South,Private & Voluntary Home Care,Mrs B Kimber - Stepping Stones,112.28, 03-Jul-2012
1364,Revenue,CCHD,Home Care - LD Under 65 - North,Private & Voluntary Home Care,Mrs B Kimber - Stepping Stones,48.12, 03-Jul-2012
1365,Revenue,CCHD,PWLD Home Care - Under 65 - KH,Private & Voluntary Home Care,Mrs B Kimber - Stepping Stones,88.22, 03-Jul-2012
1366,Revenue,CCHD,Home Care - Elderly LD - North,Private & Voluntary Home Care,Mrs B Kimber - Stepping Stones,773.93, 03-Jul-2012
1367,Revenue,CCHD,Home Care - Elderly - South,Other Small Contracts,Mrs B Kimber - Stepping Stones,2410.01, 02-Jul-2012
1368,Revenue,CCHD,Home Care - Elderly - North,Other Small Contracts,Mrs B Kimber - Stepping Stones,2197.48, 02-Jul-2012
1369,Revenue,CCHD,Day Care - South,Private & Voluntary Day Care,Mrs B Kimber - Stepping Stones,717.79, 02-Jul-2012
1370,Revenue,CCHD,Day Care - North,Private & Voluntary Day Care,Mrs B Kimber - Stepping Stones,168.42, 02-Jul-2012
1371,Revenue,CCHD,Under 65s -MH  Home Care Purch,Other Small Contracts,Mrs B Kimber - Stepping Stones,236.59, 02-Jul-2012
1372,Revenue,CCHD,Home care - Elderly MH - North,Other Small Contracts,Mrs B Kimber - Stepping Stones,196.49, 02-Jul-2012
1373,Revenue,CCHD,Elderly MH Day Care North,Private & Voluntary Day Care,Mrs B Kimber - Stepping Stones,304.76, 02-Jul-2012
1374,Revenue,CCHD,Supported Living - KD,Private & Voluntary Home Care,Mrs B Kimber - Stepping Stones,701.75, 02-Jul-2012
1375,Revenue,CCHD,Home Care - LD Under 65 - South,Private & Voluntary Home Care,Mrs B Kimber - Stepping Stones,112.28, 02-Jul-2012
1376,Revenue,CCHD,Home Care - LD Under 65 - North,Private & Voluntary Home Care,Mrs B Kimber - Stepping Stones,48.12, 02-Jul-2012
1377,Revenue,CCHD,PWLD Home Care - Under 65 - KH,Private & Voluntary Home Care,Mrs B Kimber - Stepping Stones,88.22, 02-Jul-2012
1378,Revenue,CCHD,Home Care - Elderly LD - North,Private & Voluntary Home Care,Mrs B Kimber - Stepping Stones,946.36, 02-Jul-2012
1379,Revenue,CCHD,Home Care - Elderly - South,Other Small Contracts,Mrs B Kimber - Stepping Stones,3191.96, 11-Jul-2012
1380,Revenue,CCHD,Home Care - Elderly - North,Other Small Contracts,Mrs B Kimber - Stepping Stones,2855.12, 11-Jul-2012
1381,Revenue,CCHD,Day Care - South,Private & Voluntary Day Care,Mrs B Kimber - Stepping Stones,842.1, 11-Jul-2012
1382,Revenue,CCHD,Day Care - North,Private & Voluntary Day Care,Mrs B Kimber - Stepping Stones,176.44, 11-Jul-2012
1383,Revenue,CCHD,Under 65s -MH  Home Care Purch,Other Small Contracts,Mrs B Kimber - Stepping Stones,232.58, 11-Jul-2012
1384,Revenue,CCHD,Home care - Elderly MH - North,Other Small Contracts,Mrs B Kimber - Stepping Stones,324.81, 11-Jul-2012
1385,Revenue,CCHD,Elderly MH Day Care North,Private & Voluntary Day Care,Mrs B Kimber - Stepping Stones,352.88, 11-Jul-2012
1386,Revenue,CCHD,Supported Living - KD,Private & Voluntary Home Care,Mrs B Kimber - Stepping Stones,777.94, 11-Jul-2012
1387,Revenue,CCHD,Home Care - LD Under 65 - South,Private & Voluntary Home Care,Mrs B Kimber - Stepping Stones,116.29, 11-Jul-2012
1388,Revenue,CCHD,Home Care - LD Under 65 - North,Private & Voluntary Home Care,Mrs B Kimber - Stepping Stones,48.12, 11-Jul-2012
1389,Revenue,CCHD,PWLD Home Care - Under 65 - KH,Private & Voluntary Home Care,Mrs B Kimber - Stepping Stones,88.22, 11-Jul-2012
1390,Revenue,CCHD,Home Care - Elderly LD - North,Private & Voluntary Home Care,Mrs B Kimber - Stepping Stones,958.39, 11-Jul-2012
1391,Revenue,CCHD,Home Care - Elderly - South,Other Small Contracts,Mrs B Kimber - Stepping Stones,2570.41, 02-Jul-2012
1392,Revenue,CCHD,Home Care - Elderly - North,Other Small Contracts,Mrs B Kimber - Stepping Stones,2273.67, 02-Jul-2012
1393,Revenue,CCHD,Day Care - South,Private & Voluntary Day Care,Mrs B Kimber - Stepping Stones,645.61, 02-Jul-2012
1394,Revenue,CCHD,Day Care - North,Private & Voluntary Day Care,Mrs B Kimber - Stepping Stones,176.44, 02-Jul-2012
1395,Revenue,CCHD,Under 65s -MH  Home Care Purch,Other Small Contracts,Mrs B Kimber - Stepping Stones,204.51, 02-Jul-2012
1396,Revenue,CCHD,Home care - Elderly MH - North,Other Small Contracts,Mrs B Kimber - Stepping Stones,192.48, 02-Jul-2012
1397,Revenue,CCHD,Elderly MH Day Care North,Private & Voluntary Day Care,Mrs B Kimber - Stepping Stones,348.87, 02-Jul-2012
1398,Revenue,CCHD,Supported Living - KD,Private & Voluntary Home Care,Mrs B Kimber - Stepping Stones,777.94, 02-Jul-2012
1399,Revenue,CCHD,Home Care - LD Under 65 - South,Private & Voluntary Home Care,Mrs B Kimber - Stepping Stones,96.24, 02-Jul-2012
1400,Revenue,CCHD,Home Care - LD Under 65 - North,Private & Voluntary Home Care,Mrs B Kimber - Stepping Stones,48.12, 02-Jul-2012
1401,Revenue,CCHD,PWLD Home Care - Under 65 - KH,Private & Voluntary Home Care,Mrs B Kimber - Stepping Stones,88.22, 02-Jul-2012
1402,Revenue,CCHD,Home Care - Elderly LD - North,Private & Voluntary Home Care,Mrs B Kimber - Stepping Stones,962.4, 02-Jul-2012
1403,Revenue,CCHD,Social Lettings Agency,Other Supplies & Services,Individual,632.81, 12-Jul-2012
1404,Revenue,CCHD,Social Lettings Agency,Other Supplies & Services,Individual,565, 24-Jul-2012
1405,Revenue,CCHD,Social Lettings Agency,Other Supplies & Services,Individual,565, 02-Jul-2012
1406,Revenue,CCHD,Social Lettings Agency,Other Supplies & Services,Individual,565, 12-Jul-2012
1407,Revenue,CCHD,Tenancy Start Up Scheme,Other Supplies & Services,Individual,1300, 31-Jul-2012
1408,Revenue,CCHD,Social Lettings Agency,Other Supplies & Services,Individual,655.4, 20-Jul-2012
1409,Revenue,CCHD,Purchase of Non-Res Care - KD,Private & Voluntary Day Care,Mrs W Thompson,1484.4, 26-Jul-2012
1410,Revenue,CCHD,Purchase of Non-Res Care - KD,Private & Voluntary Day Care,Mrs W Thompson,563.28, 26-Jul-2012
1411,Revenue,CCHD,Social Lettings Agency,Other Supplies & Services,Individual,1030.56, 11-Jul-2012
1412,Revenue,CCHD,Alexandra Way,Cleaning & Domestic Supplies,Muzzell Healthcare,642.48, 06-Jul-2012
1413,Revenue,CCHD,Alexandra Way,Cleaning & Domestic Supplies,Muzzell Healthcare,820.68, 10-Jul-2012
1414,Revenue,CCHD,Younger MH non-res purchasing,Private & Voluntary Day Care,NAS Services Limited,589.7, 05-Jul-2012
1415,Revenue,CCHD,Younger MH non-res purchasing,Private & Voluntary Day Care,NAS Services Limited,1472.01, 06-Jul-2012
1416,Revenue,CCHD,Younger MH non-res purchasing,Private & Voluntary Day Care,NAS Services Limited,537.22, 06-Jul-2012
1417,Revenue,CCHD,Younger MH non-res purchasing,Private & Voluntary Day Care,NAS Services Limited,587.8, 05-Jul-2012
1418,Revenue,CCHD,Younger MH non-res purchasing,Private & Voluntary Day Care,NAS Services Limited,611.2, 20-Jul-2012
1419,Revenue,CCHD,Elderly MH Day Care South,Private & Voluntary Day Care,NAS Services Limited,630.3, 27-Jul-2012
1420,Revenue,CCHD,Elderly MH Day Care South,Private & Voluntary Day Care,NAS Services Limited,573, 27-Jul-2012
1421,Revenue,CCHD,Younger MH non-res purchasing,Private & Voluntary Day Care,NAS Services Limited,609.45, 27-Jul-2012
1422,Revenue,CCHD,Younger MH non-res purchasing,Private & Voluntary Day Care,NAS Services Limited,611.2, 30-Jul-2012
1423,Revenue,CCHD,Bed Purchasing - Under 65s PWLD - South,Residential Homes,National Star College,9095.44, 10-Jul-2012
1424,Revenue,CCHD,Learning Difficulties Development Fund,Grants to Voluntary Bodies,Natureworks Training Community Interest,8427, 18-Jul-2012
1425,Revenue,CCHD,Supported Living - PS,Private & Voluntary Home Care,Natureworks Training Community Interest,558.87, 18-Jul-2012
1426,Revenue,CCHD,Purchase of Non-Res Care - KD,Private & Voluntary Day Care,Natureworks Training Community Interest,2537.64, 19-Jul-2012
1427,Revenue,CCHD,Training - Adult Services,Training Expenses,Nelson Training Limited,1116.5, 24-Jul-2012
1428,Revenue,CCHD,Home Care - Elderly - South,Other Small Contracts,Network Health & Social Care,1265.36, 19-Jul-2012
1429,Revenue,CCHD,Home Care - Elderly - North,Other Small Contracts,Network Health & Social Care,2908.99, 19-Jul-2012
1430,Revenue,CCHD,Home Care - Elderly - South,Other Small Contracts,Network Health & Social Care,1307.68, 19-Jul-2012
1431,Revenue,CCHD,Home Care - Elderly - North,Other Small Contracts,Network Health & Social Care,2928.21, 19-Jul-2012
1432,Revenue,CCHD,Home Care - Elderly - South,Other Small Contracts,Network Health & Social Care,1250, 19-Jul-2012
1433,Revenue,CCHD,Home Care - Elderly - North,Other Small Contracts,Network Health & Social Care,3255.41, 19-Jul-2012
1434,Revenue,CCHD,Under 65s -MH  Home Care Purch,Other Small Contracts,Network Health & Social Care,173.25, 19-Jul-2012
1435,Revenue,CCHD,Home Care - Elderly - South,Other Small Contracts,Network Health & Social Care,1169.22, 26-Jul-2012
1436,Revenue,CCHD,Home Care - Elderly - North,Other Small Contracts,Network Health & Social Care,3333.16, 26-Jul-2012
1437,Revenue,CCHD,Day Care - North,Private & Voluntary Day Care,Network Health & Social Care,26.95, 26-Jul-2012
1438,Revenue,CCHD,Under 65s -MH  Home Care Purch,Other Small Contracts,Network Health & Social Care,177.09, 26-Jul-2012
1439,Revenue,CCHD,Home Care - Elderly - South,Other Small Contracts,Network Health & Social Care,1153.79, 26-Jul-2012
1440,Revenue,CCHD,Home Care - Elderly - North,Other Small Contracts,Network Health & Social Care,3337.08, 26-Jul-2012
1441,Revenue,CCHD,Day Care - North,Private & Voluntary Day Care,Network Health & Social Care,30.8, 26-Jul-2012
1442,Revenue,CCHD,Under 65s -MH  Home Care Purch,Other Small Contracts,Network Health & Social Care,177.09, 26-Jul-2012
1443,Revenue,CCHD,Bed Purchasing - Under 65s PWLD - South,Residential Homes,Nightingale Nursing Home,3076.64, 10-Jul-2012
1444,Revenue,CCHD,Alexandra Way,Furniture & Fittings Loose,Nisbets,764.26, 05-Jul-2012
1445,Revenue,CCHD,Training - Adult Services,Training Expenses,North Somerset Council,200, 27-Jul-2012
1446,Revenue,CCHD,Bed Purchasing - Under 65s PWLD - South,Residential Homes,Norwood   Broadway House,4853.64, 10-Jul-2012
1447,Revenue,CCHD,Home Care - Elderly - South,Other Small Contracts,Nursing Solutions Limited,1134.84, 09-Jul-2012
1448,Revenue,CCHD,Day Care - South,Private & Voluntary Day Care,Nursing Solutions Limited,30.88, 09-Jul-2012
1449,Revenue,CCHD,Home Care - Elderly - South,Other Small Contracts,Nursing Solutions Limited,1103.96, 09-Jul-2012
1450,Revenue,CCHD,Day Care - South,Private & Voluntary Day Care,Nursing Solutions Limited,30.88, 09-Jul-2012
1451,Revenue,CCHD,Home Care - Elderly - South,Other Small Contracts,Nursing Solutions Limited,1111.68, 12-Jul-2012
1452,Revenue,CCHD,Day Care - South,Private & Voluntary Day Care,Nursing Solutions Limited,30.88, 12-Jul-2012
1453,Revenue,CCHD,Home Care - Elderly - South,Other Small Contracts,Nursing Solutions Limited,1123.26, 25-Jul-2012
1454,Revenue,CCHD,Day Care - South,Private & Voluntary Day Care,Nursing Solutions Limited,30.88, 25-Jul-2012
1455,Revenue,CCHD,Home Care - Elderly - South,Other Small Contracts,Nursing Solutions Limited,1158, 26-Jul-2012
1456,Revenue,CCHD,Day Care - South,Private & Voluntary Day Care,Nursing Solutions Limited,30.88, 26-Jul-2012
1457,Revenue,CCHD,Bed Purchasing - Elderly - South,Residential Homes,Oaktree Lodge,1267.76, 10-Jul-2012
1458,Revenue,CCHD,Woodleaze,Refuse Collection Charges,OCS Group UK Ltd,468.48, 20-Jul-2012
1459,Revenue,CCHD,Home Care - Elderly - South,Other Small Contracts,On the Up,386.2, 19-Jul-2012
1460,Revenue,CCHD,Day Care - South,Private & Voluntary Day Care,On the Up,669.08, 19-Jul-2012
1461,Revenue,CCHD,Day Care - North,Private & Voluntary Day Care,On the Up,451.44, 19-Jul-2012
1462,Revenue,CCHD,Younger MH non-res purchasing,Private & Voluntary Day Care,On the Up,328.32, 19-Jul-2012
1463,Revenue,CCHD,Elderly MH Day Care North,Private & Voluntary Day Care,On the Up,95.5, 19-Jul-2012
1464,Revenue,CCHD,Housing Advice,Grants to Voluntary Bodies,Orchard & Shipman PLC,13333.25, 30-Jul-2012
1465,Revenue,CCHD,Bed purchasing -S28A  Under 65 - North,Residential Homes,Orchard End Limited,7580.16, 10-Jul-2012
1466,Revenue,CCHD,Bed Purchasing - Elderly - North,Residential Homes,Osbourne Court,956.4, 10-Jul-2012
1467,Revenue,CCHD,Bed Purchasing - Elderly S117- North,Residential Homes,Osbourne Court,1879.04, 10-Jul-2012
1468,Revenue,CCHD,Bed Purchasing - Elderly S117- North,Residential Homes,Osbourne Court,1716, 10-Jul-2012
1469,Revenue,CCHD,Bed purchasing - Elderly MH - North,Residential Homes,Osbourne Court,1434.24, 10-Jul-2012
1470,Revenue,CCHD,Bed Purchasing - Elderly S117- North,Residential Homes,Osbourne Court,1880, 10-Jul-2012
1471,Revenue,CCHD,Frenchay Hospital Purchasing,Residential Homes,Osbourne Court,1185.68, 10-Jul-2012
1472,Revenue,CCHD,Bed Purchasing - Under 65s PWLD - South,Residential Homes,Osprey Court,7564.96, 10-Jul-2012
1473,Revenue,CCHD,Bed purchasing - S28A Under 65 - South,Residential Homes,Osprey Court,4219.68, 10-Jul-2012
1474,Revenue,CCHD,Bed purchasing - S28A Under 65 - South,Residential Homes,Osprey Court,6249.96, 10-Jul-2012
1475,Revenue,CCHD,Bed Purchasing - Elderly MH - South,Residential Homes,Park Farm House,1330.8, 10-Jul-2012
1476,Revenue,CCHD,Bed Purchasing - Elderly - South,Residential Homes,Park Farm House,1520.68, 10-Jul-2012
1477,Revenue,CCHD,Bed Purchasing - Elderly MH - South,Residential Homes,Park Farm House,1582.64, 10-Jul-2012
1478,Revenue,CCHD,Bed Purchasing - Under 65s PWLD - South,Residential Homes,Park Hall,5500, 10-Jul-2012
1479,Revenue,CCHD,Bed purchasing - Under 65s PWLD - North,Residential Homes,Park Hall,5082.32, 10-Jul-2012
1480,Revenue,CCHD,Bed Purchasing - Under 65s PWLD - South,Residential Homes,Park Hall,4894.68, 10-Jul-2012
1481,Revenue,CCHD,Bed Purchasing - Under 65s PWLD - South,Residential Homes,Park Hall,2755.08, 10-Jul-2012
1482,Revenue,CCHD,Bed Purchasing - Under 65s PWLD - South,Residential Homes,Park Hall,2173.96, 10-Jul-2012
1483,Revenue,CCHD,Bed purchasing - Elderly PWLD - South,Residential Homes,Park Hall,2501.56, 10-Jul-2012
1484,Revenue,CCHD,Bed purchasing - Elderly PWLD - North,Residential Homes,Park Hall,4855.8, 10-Jul-2012
1485,Revenue,CCHD,Bed purchasing - S28A Under 65 - South,Residential Homes,Park Hall,4571.08, 10-Jul-2012
1486,Revenue,CCHD,Bed Purchasing - Under 65s PWLD - South,Residential Homes,Park Hall,4871.2, 10-Jul-2012
1487,Revenue,CCHD,Bed purchasing - Under 65s PWLD - North,Residential Homes,Park Hall,4274.52, 10-Jul-2012
1488,Revenue,CCHD,Bed Purchasing - S28A - Over 65- North,Residential Homes,Park Hall,5240.84, 10-Jul-2012
1489,Revenue,CCHD,Bed Purchasing - Under 65s PWLD - South,Residential Homes,Park Hall,10510.04, 10-Jul-2012
1490,Revenue,CCHD,Bed purchasing -S28A  Under 65 - North,Residential Homes,Park Hall,5789.4, 10-Jul-2012
1491,Revenue,CCHD,Bed purchasing - S28A Under 65 - South,Residential Homes,Park Hall,5529.44, 10-Jul-2012
1492,Revenue,CCHD,Bed Purchasing - Elderly - South,Residential Homes,Park Street Home,2042.6, 10-Jul-2012
1493,Revenue,CCHD,Bed Purchasing - Under 65s PWLD - South,Residential Homes,Penleigh House Care Home,4451.6, 10-Jul-2012
1494,Revenue,CCHD,Bed Purchasing - Under 65s PWLD - South,Residential Homes,Penleigh House Care Home,5175.52, 10-Jul-2012
1495,Revenue,CCHD,Bed purchasing - Elderly PWLD - South,Residential Homes,Penleigh House Care Home,4222.56, 10-Jul-2012
1496,Revenue,CCHD,Bed Purchasing - Under 65s PWLD - South,Residential Homes,Penleigh House Care Home,4599.76, 10-Jul-2012
1497,Revenue,CCHD,Bed purchasing - S28A Under 65 - South,Residential Homes,Penleigh House Care Home,5366.32, 10-Jul-2012
1498,Revenue,CCHD,Bed Purchasing - Under 65s PWLD - South,Residential Homes,Penleigh House Care Home,4847.56, 10-Jul-2012
1499,Revenue,CCHD,Southmead Hospital Purchasing,Residential Homes,Pennwood Lodge Nursing Home,1854.5, 10-Jul-2012
1500,Revenue,CCHD,Southmead Hospital Purchasing,Residential Homes,Petersfield Ad Care Home,874.8, 10-Jul-2012
1501,Revenue,CCHD,Bed Purchasing - Elderly - North,Residential Homes,Petersfield Ad Care Home,1271.56, 10-Jul-2012
1502,Revenue,CCHD,Bed and Breakfast,Bed & Breakfast,Pleasant Bed & Breakfast Limited,532, 13-Jul-2012
1503,Revenue,CCHD,Home Care - Elderly - North,Other Small Contracts,Premier Homecare Limited,4099.06, 04-Jul-2012
1504,Revenue,CCHD,Day Care - North,Private & Voluntary Day Care,Premier Homecare Limited,192.3, 04-Jul-2012
1505,Revenue,CCHD,Home care - Elderly MH - North,Other Small Contracts,Premier Homecare Limited,315.33, 04-Jul-2012
1506,Revenue,CCHD,Elderly MH Day Care North,Private & Voluntary Day Care,Premier Homecare Limited,367.01, 04-Jul-2012
1507,Revenue,CCHD,Home Care - Elderly - North,Other Small Contracts,Premier Homecare Limited,4189.17, 04-Jul-2012
1508,Revenue,CCHD,Day Care - North,Private & Voluntary Day Care,Premier Homecare Limited,161.88, 04-Jul-2012
1509,Revenue,CCHD,Home care - Elderly MH - North,Other Small Contracts,Premier Homecare Limited,306.32, 04-Jul-2012
1510,Revenue,CCHD,Elderly MH Day Care North,Private & Voluntary Day Care,Premier Homecare Limited,362.51, 04-Jul-2012
1511,Revenue,CCHD,Home Care - Elderly - North,Other Small Contracts,Premier Homecare Limited,4630.59, 04-Jul-2012
1512,Revenue,CCHD,Day Care - North,Private & Voluntary Day Care,Premier Homecare Limited,264.39, 04-Jul-2012
1513,Revenue,CCHD,Home care - Elderly MH - North,Other Small Contracts,Premier Homecare Limited,315.35, 04-Jul-2012
1514,Revenue,CCHD,Elderly MH Day Care North,Private & Voluntary Day Care,Premier Homecare Limited,419.56, 04-Jul-2012
1515,Revenue,CCHD,Home Care - Elderly - North,Other Small Contracts,Premier Homecare Limited,4691.04, 04-Jul-2012
1516,Revenue,CCHD,Day Care - North,Private & Voluntary Day Care,Premier Homecare Limited,215.65, 04-Jul-2012
1517,Revenue,CCHD,Home care - Elderly MH - North,Other Small Contracts,Premier Homecare Limited,310.84, 04-Jul-2012
1518,Revenue,CCHD,Elderly MH Day Care North,Private & Voluntary Day Care,Premier Homecare Limited,415.68, 04-Jul-2012
1519,Revenue,CCHD,Home Care - Elderly - North,Other Small Contracts,Premier Homecare Limited,4653.11, 04-Jul-2012
1520,Revenue,CCHD,Day Care - North,Private & Voluntary Day Care,Premier Homecare Limited,241.87, 04-Jul-2012
1521,Revenue,CCHD,Home care - Elderly MH - North,Other Small Contracts,Premier Homecare Limited,270.3, 04-Jul-2012
1522,Revenue,CCHD,Elderly MH Day Care North,Private & Voluntary Day Care,Premier Homecare Limited,420.18, 04-Jul-2012
1523,Revenue,CCHD,Home Care - Elderly - South,Other Small Contracts,Premier Homecare Limited,108.24, 04-Jul-2012
1524,Revenue,CCHD,Home Care - Elderly - North,Other Small Contracts,Premier Homecare Limited,4158.22, 04-Jul-2012
1525,Revenue,CCHD,Day Care - North,Private & Voluntary Day Care,Premier Homecare Limited,162.36, 04-Jul-2012
1526,Revenue,CCHD,Home care - Elderly MH - North,Other Small Contracts,Premier Homecare Limited,311.19, 04-Jul-2012
1527,Revenue,CCHD,Elderly MH Day Care North,Private & Voluntary Day Care,Premier Homecare Limited,351.78, 04-Jul-2012
1528,Revenue,CCHD,Home Care - Elderly - South,Other Small Contracts,Prestige Nursing,768.6, 19-Jul-2012
1529,Revenue,CCHD,Home Care - Elderly - North,Other Small Contracts,Prestige Nursing,849.73, 19-Jul-2012
1530,Revenue,CCHD,Day Care - South,Private & Voluntary Day Care,Prestige Nursing,444.08, 19-Jul-2012
1531,Revenue,CCHD,Day Care - North,Private & Voluntary Day Care,Prestige Nursing,678.93, 19-Jul-2012
1532,Revenue,CCHD,Home care - Elderly MH - North,Other Small Contracts,Prestige Nursing,264.74, 19-Jul-2012
1533,Revenue,CCHD,Elderly MH Day Care North,Private & Voluntary Day Care,Prestige Nursing,495.32, 19-Jul-2012
1534,Revenue,CCHD,Home Care - Elderly - South,Other Small Contracts,Prestige Nursing,721.63, 19-Jul-2012
1535,Revenue,CCHD,Home Care - Elderly - North,Other Small Contracts,Prestige Nursing,952.21, 19-Jul-2012
1536,Revenue,CCHD,Day Care - South,Private & Voluntary Day Care,Prestige Nursing,401.38, 19-Jul-2012
1537,Revenue,CCHD,Day Care - North,Private & Voluntary Day Care,Prestige Nursing,896.7, 19-Jul-2012
1538,Revenue,CCHD,Home care - Elderly MH - North,Other Small Contracts,Prestige Nursing,273.28, 19-Jul-2012
1539,Revenue,CCHD,Elderly MH Day Care North,Private & Voluntary Day Care,Prestige Nursing,491.05, 19-Jul-2012
1540,Revenue,CCHD,Home Care - Elderly - South,Other Small Contracts,Prestige Nursing,751.52, 19-Jul-2012
1541,Revenue,CCHD,Home Care - Elderly - North,Other Small Contracts,Prestige Nursing,973.56, 19-Jul-2012
1542,Revenue,CCHD,Day Care - South,Private & Voluntary Day Care,Prestige Nursing,358.68, 19-Jul-2012
1543,Revenue,CCHD,Day Care - North,Private & Voluntary Day Care,Prestige Nursing,841.19, 19-Jul-2012
1544,Revenue,CCHD,Home care - Elderly MH - North,Other Small Contracts,Prestige Nursing,277.55, 19-Jul-2012
1545,Revenue,CCHD,Elderly MH Day Care North,Private & Voluntary Day Care,Prestige Nursing,538.02, 19-Jul-2012
1546,Revenue,CCHD,Home Care - Elderly - South,Other Small Contracts,Prestige Nursing,789.95, 19-Jul-2012
1547,Revenue,CCHD,Home Care - Elderly - North,Other Small Contracts,Prestige Nursing,747.25, 19-Jul-2012
1548,Revenue,CCHD,Day Care - South,Private & Voluntary Day Care,Prestige Nursing,333.06, 19-Jul-2012
1549,Revenue,CCHD,Day Care - North,Private & Voluntary Day Care,Prestige Nursing,999.18, 19-Jul-2012
1550,Revenue,CCHD,Home care - Elderly MH - North,Other Small Contracts,Prestige Nursing,269.01, 19-Jul-2012
1551,Revenue,CCHD,Elderly MH Day Care North,Private & Voluntary Day Care,Prestige Nursing,298.9, 19-Jul-2012
1552,Revenue,CCHD,Bed purchasing - Elderly MH - North,Residential Homes,Prior Mews Care Home,7048.85, 10-Jul-2012
1553,Revenue,CCHD,Kingswood Centre - Maples Suite,"Provisions (Food, etc)",R Jays Cafe,575, 03-Jul-2012
1554,Revenue,CCHD,Kingswood Centre - Maples Suite,"Provisions (Food, etc)",R Jays Cafe,500, 25-Jul-2012
1555,Revenue,CCHD,Bed purchasing - Elderly MH - North,Nursing Homes,Ravenswood,1265.84, 10-Jul-2012
1556,Revenue,CCHD,Bed Purchasing - Elderly MH - South,Residential Homes,Ravenswood,2152.08, 10-Jul-2012
1557,Revenue,CCHD,Bed Purchasing - Elderly - North,Nursing Homes,Ravenswood,1978.36, 10-Jul-2012
1558,Revenue,CCHD,Bed Purchasing - Elderly S117- North,Nursing Homes,Redholme Memory Care Limited,1944.12, 10-Jul-2012
1559,Revenue,CCHD,Bed Purchasing - Elderly - South,Nursing Homes,Regent House,1637.96, 10-Jul-2012
1560,Revenue,CCHD,Southmead Hospital Purchasing,Nursing Homes,Regent House,975.84, 10-Jul-2012
1561,Revenue,CCHD,Bed Purchasing - Elderly - South,Nursing Homes,Regent House,2029.8, 10-Jul-2012
1562,Revenue,CCHD,Bed Purchasing - Elderly - South,Nursing Homes,Regent House,2117.66, 10-Jul-2012
1563,Revenue,CCHD,Bed Purchasing - Elderly - South,Nursing Homes,Regent House,1796.8, 10-Jul-2012
1564,Revenue,CCHD,Bed Purchasing - Elderly - North,Nursing Homes,Regent House,1311.2, 10-Jul-2012
1565,Revenue,CCHD,Bed Purchasing - Elderly - South,Nursing Homes,Regent House,1637.96, 10-Jul-2012
1566,Revenue,CCHD,Bed Purchasing - Elderly - South,Nursing Homes,Regent House,632.92, 10-Jul-2012
1567,Revenue,CCHD,Southmead Hospital Purchasing,Nursing Homes,Regent House,1379.88, 10-Jul-2012
1568,Revenue,CCHD,Bed Purchasing - Elderly - South,Nursing Homes,Regent House,3100.72, 10-Jul-2012
1569,Revenue,CCHD,Bed Purchasing - Elderly - South,Nursing Homes,Regent House,1423.28, 10-Jul-2012
1570,Revenue,CCHD,Bed Purchasing - Elderly - South,Nursing Homes,Regent House,1635.28, 10-Jul-2012
1571,Revenue,CCHD,Bed Purchasing - Elderly - North,Nursing Homes,Regent House,1501.56, 10-Jul-2012
1572,Revenue,CCHD,Bed Purchasing - Elderly MH - South,Nursing Homes,Regent House,1195.08, 10-Jul-2012
1573,Revenue,CCHD,Bed purchasing - Elderly MH - North,Nursing Homes,Regent House,1276.8, 10-Jul-2012
1574,Revenue,CCHD,South Glos Users in South Glos Homes,Nursing Homes,Regent House,605.61, 10-Jul-2012
1575,Revenue,CCHD,Elderly MH Day Care South,Private & Voluntary Day Care,Rethink,2158.57, 05-Jul-2012
1576,Revenue,CCHD,Bed Purchasing - Under 65s PWLD - South,Residential Homes,Ridgeway House,3418.56, 10-Jul-2012
1577,Revenue,CCHD,Bed Purchasing - Under 65s PWLD - South,Residential Homes,Riverside House,3524.88, 10-Jul-2012
1578,Revenue,CCHD,Bed Purchasing - Elderly - South,Nursing Homes,Riversway Nursing Home,1156.6, 10-Jul-2012
1579,Revenue,CCHD,Southmead Hospital Purchasing,Nursing Homes,Riversway Nursing Home,2020.48, 10-Jul-2012
1580,Revenue,CCHD,Bed purchasing - Elderly PWLD - South,Residential Homes,Rockleaze,2159.92, 10-Jul-2012
1581,Revenue,CCHD,Bed purchasing - Elderly PWLD - South,Residential Homes,Rockleaze,1399.76, 10-Jul-2012
1582,Revenue,CCHD,Bed Purchasing - LD S28A- Over 65- South,Residential Homes,Rockleaze,2039.28, 10-Jul-2012
1583,Revenue,CCHD,Bed Purchasing - Under 65s PWLD - South,Residential Homes,Rockleaze,2364.24, 10-Jul-2012
1584,Revenue,CCHD,Bed purchasing - Elderly PWLD - South,Residential Homes,Rockleaze,1399.76, 10-Jul-2012
1585,Revenue,CCHD,Supported Living - KD,Residential Homes,Rosealeen Jarrett,631.18, 04-Jul-2012
1586,Revenue,CCHD,Bed Purchasing - Elderly MH - South,Residential Homes,Ross Healthcare,1280.12, 10-Jul-2012
1587,Revenue,CCHD,Frenchay Hospital Purchasing,Residential Homes,Roundham Court,1239.2, 10-Jul-2012
1588,Revenue,CCHD,Day Care - North,Private & Voluntary Day Care,Royal National Institute For Deaf People,721.44, 04-Jul-2012
1589,Revenue,CCHD,Day Care - North,Private & Voluntary Day Care,Royal National Institute For Deaf People,590.74, 04-Jul-2012
1590,Revenue,CCHD,MH Purchasing - Younger,Residential Homes,Ruskin Mill,3157.44, 10-Jul-2012
1591,Revenue,CCHD,Training - Adult Services,Training Expenses,S R Orchard,1000, 17-Jul-2012
1592,Revenue,CCHD,Woodleaze,"Provisions (Food, etc)",School Milk Services Limited,824.51, 06-Jul-2012
1593,Revenue,CCHD,Woodleaze,"Provisions (Food, etc)",School Milk Services Limited,817.18, 30-Jul-2012
1594,Revenue,CCHD,Bed purchasing - Under 65s PWLD - North,Residential Homes,Scope   Accounts Dept,4910.2, 10-Jul-2012
1595,Revenue,CCHD,Supported Living - KD,Private & Voluntary Home Care,SeeAbility,4633.57, 02-Jul-2012
1596,Revenue,CCHD,Day Care - North,Private & Voluntary Day Care,SeeAbility,1924.22, 06-Jul-2012
1597,Revenue,CCHD,Supported Living - KD,Private & Voluntary Home Care,SeeAbility,1350.1, 02-Jul-2012
1598,Revenue,CCHD,Supported Living - KD,Private & Voluntary Home Care,SeeAbility,6628.38, 02-Jul-2012
1599,Revenue,CCHD,Supported Living - KD,Private & Voluntary Home Care,SeeAbility,4633.57, 30-Jul-2012
1600,Revenue,CCHD,Day Care - North,Private & Voluntary Day Care,SeeAbility,1862.15, 30-Jul-2012
1601,Revenue,CCHD,Supported Living - KD,Private & Voluntary Home Care,SeeAbility,1171.77, 30-Jul-2012
1602,Revenue,CCHD,Supported Living - KD,Private & Voluntary Home Care,SeeAbility,6414.56, 30-Jul-2012
1603,Revenue,CCHD,Supported Living - PS,Private & Voluntary Home Care,Selborne Care Ltd,1149.85, 03-Jul-2012
1604,Revenue,CCHD,Supported Living - PS,Private & Voluntary Home Care,Selborne Care Ltd,510.08, 03-Jul-2012
1605,Revenue,CCHD,Supported Living - PS,Private & Voluntary Home Care,Selborne Care Ltd,549.4, 03-Jul-2012
1606,Revenue,CCHD,Supported Living - PS,Private & Voluntary Home Care,Selborne Care Ltd,1734.8, 16-Jul-2012
1607,Revenue,CCHD,Supported Living - PS,Private & Voluntary Home Care,Selborne Care Ltd,2656.04, 16-Jul-2012
1608,Revenue,CCHD,Supported Living - PS,Private & Voluntary Home Care,Selborne Care Ltd,1020.16, 16-Jul-2012
1609,Revenue,CCHD,Purchase of Non-Res Care - KD,Private & Voluntary Day Care,Selborne Care Ltd,1694.42, 16-Jul-2012
1610,Revenue,CCHD,Purchase of Non-Res Care - PS,Private & Voluntary Day Care,Selborne Care Ltd,1147.8, 16-Jul-2012
1611,Revenue,CCHD,Supported Living - PS,Private & Voluntary Home Care,Selborne Care Ltd,4961.6, 16-Jul-2012
1612,Revenue,CCHD,Supported Living - PS,Private & Voluntary Home Care,Selborne Care Ltd,5080.44, 18-Jul-2012
1613,Revenue,CCHD,Purchase of Non-Res Care - KD,Private & Voluntary Day Care,Selborne Care Ltd,892.64, 16-Jul-2012
1614,Revenue,CCHD,Supported Living - PS,Private & Voluntary Home Care,Selborne Care Ltd,1147.8, 16-Jul-2012
1615,Revenue,CCHD,Purchase of Non-Res Care - KD,Private & Voluntary Day Care,Selborne Care Ltd,831.52, 16-Jul-2012
1616,Revenue,CCHD,Supported Living - KD,Private & Voluntary Home Care,Selborne Care Ltd,567.03, 16-Jul-2012
1617,Revenue,CCHD,Supported Living - PS,Private & Voluntary Home Care,Selborne Care Ltd,510.08, 16-Jul-2012
1618,Revenue,CCHD,Supported Living - PS,Private & Voluntary Home Care,Selborne Care Ltd,4632.8, 16-Jul-2012
1619,Revenue,CCHD,Purchase of Non-Res Care - KD,Private & Voluntary Day Care,Selborne Care Ltd,779.76, 16-Jul-2012
1620,Revenue,CCHD,Supported Living - PS,Private & Voluntary Home Care,Selborne Care Ltd,549.4, 16-Jul-2012
1621,Revenue,CCHD,Supported Living - PS,Private & Voluntary Home Care,Selborne Care Ltd,1814.16, 16-Jul-2012
1622,Revenue,CCHD,Purchase of Non-Res Care - KD,Private & Voluntary Day Care,Selborne Care Ltd,895.68, 16-Jul-2012
1623,Revenue,CCHD,Southmead Hospital Purchasing,Nursing Homes,Shaw Healthcare Ltd,1467.2, 10-Jul-2012
1624,Revenue,CCHD,Bed Purchasing - Elderly S117- North,Nursing Homes,Shaw Healthcare Ltd,1944, 10-Jul-2012
1625,Revenue,CCHD,Bed purchasing - Elderly MH - North,Nursing Homes,Shaw Healthcare Ltd,1226.36, 10-Jul-2012
1626,Revenue,CCHD,Bed purchasing - S28A Under 65 - South,Residential Homes,Shaw Healthcare Ltd,10408.68, 10-Jul-2012
1627,Revenue,CCHD,Bed purchasing - S28A Under 65 - South,Residential Homes,Shaw Healthcare Ltd,10410.04, 10-Jul-2012
1628,Revenue,CCHD,Bed purchasing - S28A Under 65 - South,Residential Homes,Shaw Healthcare Ltd,10243.28, 10-Jul-2012
1629,Revenue,CCHD,S117 Placements PCT,Residential Homes,Shaw Healthcare Ltd,15360.76, 10-Jul-2012
1630,Revenue,CCHD,Bed Purchasing - Under 65s PWLD - South,Nursing Homes,Shaw Healthcare Ltd,9662.08, 10-Jul-2012
1631,Revenue,CCHD,Bed Purchasing - Under 65s PWLD - South,Residential Homes,Shaw Healthcare Ltd,8892.88, 10-Jul-2012
1632,Revenue,CCHD,Bed purchasing - Elderly PWLD - South,Residential Homes,Shaw Healthcare Ltd,3875.12, 10-Jul-2012
1633,Revenue,CCHD,Bed purchasing - S28A Under 65 - South,Residential Homes,Shaw Healthcare Ltd,10295.84, 10-Jul-2012
1634,Revenue,CCHD,Bed purchasing - S28A Under 65 - South,Residential Homes,Shaw Healthcare Ltd,11942.52, 10-Jul-2012
1635,Revenue,CCHD,Bed purchasing -S28A  Under 65 - North,Residential Homes,Shaw Healthcare Ltd,4218.4, 10-Jul-2012
1636,Revenue,CCHD,Bed Purchasing - LD S28A- Over 65- South,Residential Homes,Shaw Healthcare Ltd,4404, 10-Jul-2012
1637,Revenue,CCHD,Bed Purchasing - Under 65s PWLD - South,Nursing Homes,Shaw Healthcare Ltd,9995.92, 10-Jul-2012
1638,Revenue,CCHD,Bed Purchasing - LD S28A- Over 65- South,Residential Homes,Shaw Healthcare Ltd,4412.12, 10-Jul-2012
1639,Revenue,CCHD,Bed Purchasing - LD S28A- Over 65- South,Residential Homes,Shaw Healthcare Ltd,4404, 10-Jul-2012
1640,Revenue,CCHD,Bed Purchasing - LD S28A- Over 65- South,Residential Homes,Shaw Healthcare Ltd,4411.68, 10-Jul-2012
1641,Revenue,CCHD,Bed purchasing -S28A  Under 65 - North,Residential Homes,Shaw Healthcare Ltd,9087.56, 10-Jul-2012
1642,Revenue,CCHD,Bed Purchasing - S28A - Over 65- North,Residential Homes,Shaw Healthcare Ltd,8894.24, 10-Jul-2012
1643,Revenue,CCHD,Purchase of Non-Res Care - KD,Private & Voluntary Day Care,Shaw Healthcare Specialist Services Limited,751.36, 02-Jul-2012
1644,Revenue,CCHD,Purchase of Non-Res Care - KD,Private & Voluntary Day Care,Shaw Healthcare Specialist Services Limited,542.36, 23-Jul-2012
1645,Revenue,CCHD,Supported Living - PS,Private & Voluntary Home Care,Silva Care Limited,4415.44, 12-Jul-2012
1646,Revenue,CCHD,Day Care - North,Private & Voluntary Day Care,Silva Care Limited,624.63, 09-Jul-2012
1647,Revenue,CCHD,Bed purchasing - Under 65s PWLD - North,Residential Homes,Small House Homes Limited,17585.6, 10-Jul-2012
1648,Revenue,CCHD,Purchase of Non-Res Care - PS,Private & Voluntary Day Care,Smile Independent Living Support Limited,554.16, 13-Jul-2012
1649,Revenue,CCHD,Purchase of Non-Res Care - KD,Private & Voluntary Day Care,Smile Independent Living Support Limited,1161.52, 13-Jul-2012
1650,Revenue,CCHD,Purchase of Non-Res Care - KD,Private & Voluntary Day Care,Smile Independent Living Support Limited,1050.96, 13-Jul-2012
1651,Revenue,CCHD,Purchase of Non-Res Care - KD,Private & Voluntary Day Care,Smile Independent Living Support Limited,572.96, 13-Jul-2012
1652,Revenue,CCHD,Purchase of Non-Res Care - KD,Private & Voluntary Day Care,Smile Independent Living Support Limited,1176.47, 13-Jul-2012
1653,Revenue,CCHD,Purchase of Non-Res Care - KD,Private & Voluntary Day Care,Smile Independent Living Support Limited,831.44, 13-Jul-2012
1654,Revenue,CCHD,Purchase of Non-Res Care - KD,Private & Voluntary Day Care,Smile Independent Living Support Limited,1121.6, 13-Jul-2012
1655,Revenue,CCHD,Purchase of Non-Res Care - KD,Private & Voluntary Day Care,Smile Independent Living Support Limited,644.39, 13-Jul-2012
1656,Revenue,CCHD,Supported Living - KD,Private & Voluntary Home Care,Smile Independent Living Support Limited,3156.3, 13-Jul-2012
1657,Revenue,CCHD,Supported Living - KD,Private & Voluntary Home Care,Smile Independent Living Support Limited,3253.8, 13-Jul-2012
1658,Revenue,CCHD,Supported Living - KD,Private & Voluntary Home Care,Smile Independent Living Support Limited,2593.09, 13-Jul-2012
1659,Revenue,CCHD,Bed Purchasing - Under 65s PWLD - South,Residential Homes,Spectrum,28217.84, 02-Jul-2012
1660,Revenue,CCHD,Bed Purchasing - Under 65s PWLD - South,Residential Homes,St Brigas,2036.8, 10-Jul-2012
1661,Revenue,CCHD,Bed Purchasing - Under 65s PWLD - South,Residential Homes,St Brigas,2944.64, 10-Jul-2012
1662,Revenue,CCHD,Bed Purchasing - Under 65s PWLD - South,Residential Homes,St Brigas,1985.08, 10-Jul-2012
1663,Revenue,CCHD,Frenchay Hospital Purchasing,Nursing Homes,St George Nursing Home,1295.2, 10-Jul-2012
1664,Revenue,CCHD,Southmead Hospital Purchasing,Nursing Homes,St George Nursing Home,1295.2, 10-Jul-2012
1665,Revenue,CCHD,Bed purchasing - Elderly MH - North,Nursing Homes,St George Nursing Home,886, 10-Jul-2012
1666,Revenue,CCHD,Bed Purchasing - Elderly - South,Nursing Homes,St George Nursing Home,1304.48, 10-Jul-2012
1667,Revenue,CCHD,Bed Purchasing - Elderly - North,Nursing Homes,St Monicas Trust,740.11, 10-Jul-2012
1668,Revenue,CCHD,Bed Purchasing - Elderly - North,Nursing Homes,St Monicas Trust,647.6, 10-Jul-2012
1669,Revenue,CCHD,Bed Purchasing - Elderly - North,Nursing Homes,St Monicas Trust,642.5, 10-Jul-2012
1670,Revenue,CCHD,Training - Adult Services,Training Expenses,St Peter`s Hospice,607.74, 17-Jul-2012
1671,Revenue,CCHD,Bed Purchasing - Elderly - South,Nursing Homes,St Roses School,3944.36, 06-Jul-2012
1672,Revenue,CCHD,Bed Purchasing - Under 65s PWLD - South,Residential Homes,Stepping Stones Re-Sett. Unit,8597.28, 10-Jul-2012
1673,Revenue,CCHD,Bed Purchasing - Elderly MH - South,Residential Homes,Stuart House,1839.64, 10-Jul-2012
1674,Revenue,CCHD,Southmead Hospital Purchasing,Residential Homes,Stuart House,1362.84, 10-Jul-2012
1675,Revenue,CCHD,Supported Living - KD,Private & Voluntary Home Care,Supported Independence Ltd,872.52, 02-Jul-2012
1676,Revenue,CCHD,Younger MH non-res purchasing,Private & Voluntary Day Care,Supported Independence Ltd,1090.65, 30-Jul-2012
1677,Revenue,CCHD,Supported Living - KD,Private & Voluntary Home Care,Supported Independence Ltd,1804.53, 02-Jul-2012
1678,Revenue,CCHD,Supported Living - PS,Private & Voluntary Home Care,Supported Independence Ltd,634.56, 09-Jul-2012
1679,Revenue,CCHD,Section 117 Placements MH Younger,Private & Voluntary Day Care,Supported Independence Ltd,555.24, 30-Jul-2012
1680,Revenue,CCHD,Younger MH non-res purchasing,Private & Voluntary Day Care,Supported Independence Ltd,592.72, 30-Jul-2012
1681,Revenue,CCHD,Younger MH non-res purchasing,Private & Voluntary Day Care,Supported Independence Ltd,753.54, 30-Jul-2012
1682,Revenue,CCHD,Younger MH non-res purchasing,Private & Voluntary Day Care,Supported Independence Ltd,793.2, 30-Jul-2012
1683,Revenue,CCHD,Day Care - North,Private & Voluntary Day Care,Supported Independence Ltd,991.5, 05-Jul-2012
1684,Revenue,CCHD,Younger MH non-res purchasing,Private & Voluntary Day Care,Supported Independence Ltd,505.67, 30-Jul-2012
1685,Revenue,CCHD,Section 117 Placements MH Younger,Private & Voluntary Day Care,Supported Independence Ltd,516.24, 30-Jul-2012
1686,Revenue,CCHD,Section 117 Placements MH Younger,Private & Voluntary Day Care,Supported Independence Ltd,2306.2, 30-Jul-2012
1687,Revenue,CCHD,Younger MH non-res purchasing,Private & Voluntary Day Care,Supported Independence Ltd,2507.6, 30-Jul-2012
1688,Revenue,CCHD,Supported Living - KD,Private & Voluntary Home Care,Supported Independence Ltd,793.2, 31-Jul-2012
1689,Revenue,CCHD,Supported Living - KD,Private & Voluntary Home Care,Supported Independence Ltd,1764.87, 31-Jul-2012
1690,Revenue,CCHD,Younger MH non-res purchasing,Private & Voluntary Day Care,Supported Independence Ltd,564.04, 31-Jul-2012
1691,Revenue,CCHD,Younger MH non-res purchasing,Private & Voluntary Day Care,Supported Independence Ltd,991.5, 31-Jul-2012
1692,Revenue,CCHD,Supported Living - PS,Private & Voluntary Home Care,Supported Independence Ltd,674.22, 31-Jul-2012
1693,Revenue,CCHD,Younger MH non-res purchasing,Private & Voluntary Day Care,Supported Independence Ltd,743.63, 31-Jul-2012
1694,Revenue,CCHD,Day Care - North,Private & Voluntary Day Care,Supported Independence Ltd,502, 31-Jul-2012
1695,Revenue,CCHD,Supported Living - PS,Private & Voluntary Home Care,Supported Independent Living Schemes,642.96, 18-Jul-2012
1696,Revenue,CCHD,Supported Living - PS,Private & Voluntary Home Care,Supporting Options,744.95, 17-Jul-2012
1697,Revenue,CCHD,Tenancy Start Up Scheme,Other Supplies & Services,Individual,625, 25-Jul-2012
1698,Revenue,CCHD,Frenchay Hospital Purchasing,Residential Homes,T/A Stonebow House Residential Home,1290.2, 10-Jul-2012
1699,Revenue,CCHD,Minor Adaptations Service,Operational Equipment,Talbot Owen Tools & Fasteners Limited,1305, 09-Jul-2012
1700,Revenue,CCHD,Bed Purchasing - Under 65s PWLD - South,Residential Homes,The Ann Coleman Centre,6046.48, 10-Jul-2012
1701,Revenue,CCHD,Southmead Hospital Purchasing,Residential Homes,The Beeches,671.73, 10-Jul-2012
1702,Revenue,CCHD,Southmead Hospital Purchasing,Residential Homes,The Beeches,1227.4, 10-Jul-2012
1703,Revenue,CCHD,Bed Purchasing - Elderly - South,Residential Homes,The Beeches,1314.29, 10-Jul-2012
1704,Revenue,CCHD,Bed Purchasing - Elderly - South,Residential Homes,The Beeches,525.71, 10-Jul-2012
1705,Revenue,CCHD,Southmead Hospital Purchasing,Residential Homes,The Beeches,1814.54, 10-Jul-2012
1706,Revenue,CCHD,Frenchay Hospital Purchasing,Residential Homes,The Beeches,1141.52, 10-Jul-2012
1707,Revenue,CCHD,Southmead Hospital Purchasing,Residential Homes,The Beeches,1239.2, 10-Jul-2012
1708,Revenue,CCHD,Younger MH non-res purchasing,Private & Voluntary Day Care,The Brandon Trust,1066.14, 06-Jul-2012
1709,Revenue,CCHD,Purchase of Non-Res Care - PS,Private & Voluntary Day Care,The Brandon Trust,3111.09, 13-Jul-2012
1710,Revenue,CCHD,Day Care - North,Private & Voluntary Day Care,The Brandon Trust,687.72, 03-Jul-2012
1711,Revenue,CCHD,Purchase of Non-Res Care - KD,Private & Voluntary Day Care,The Brandon Trust,765.87, 05-Jul-2012
1712,Revenue,CCHD,Purchase of Non-Res Care - KD,Private & Voluntary Day Care,The Brandon Trust,4084.64, 05-Jul-2012
1713,Revenue,CCHD,Purchase of Non-Res Care - KD,Private & Voluntary Day Care,The Brandon Trust,567.89, 05-Jul-2012
1714,Revenue,CCHD,Purchase of Non-Res Care - PS,Private & Voluntary Day Care,The Brandon Trust,506.16, 13-Jul-2012
1715,Revenue,CCHD,Purchase of Non-Res Care - KD,Private & Voluntary Day Care,The Brandon Trust,1172.25, 05-Jul-2012
1716,Revenue,CCHD,Purchase of Non-Res Care - KD,Private & Voluntary Day Care,The Brandon Trust,666.88, 06-Jul-2012
1717,Revenue,CCHD,Purchase of Non-Res Care - KD,Private & Voluntary Day Care,The Brandon Trust,729.4, 06-Jul-2012
1718,Revenue,CCHD,Purchase of Non-Res Care - KD,Private & Voluntary Day Care,The Brandon Trust,1094.1, 06-Jul-2012
1719,Revenue,CCHD,Day Care - South,Private & Voluntary Day Care,The Brandon Trust,632.7, 03-Jul-2012
1720,Revenue,CCHD,Purchase of Non-Res Care - PS,Private & Voluntary Day Care,The Brandon Trust,5147.48, 13-Jul-2012
1721,Revenue,CCHD,Purchase of Non-Res Care - KD,Private & Voluntary Day Care,The Brandon Trust,1042, 05-Jul-2012
1722,Revenue,CCHD,Purchase of Non-Res Care - PS,Private & Voluntary Day Care,The Brandon Trust,3438.6, 13-Jul-2012
1723,Revenue,CCHD,Purchase of Non-Res Care - KD,Private & Voluntary Day Care,The Brandon Trust,1099.31, 02-Jul-2012
1724,Revenue,CCHD,Purchase of Non-Res Care - PS,Private & Voluntary Day Care,The Brandon Trust,695.97, 24-Jul-2012
1725,Revenue,CCHD,Purchase of Non-Res Care - PS,Private & Voluntary Day Care,The Brandon Trust,949.05, 24-Jul-2012
1726,Revenue,CCHD,Purchase of Non-Res Care - KD,Private & Voluntary Day Care,The Brandon Trust,949.05, 16-Jul-2012
1727,Revenue,CCHD,Purchase of Non-Res Care - PS,Private & Voluntary Day Care,The Brandon Trust,885.79, 24-Jul-2012
1728,Revenue,CCHD,Purchase of Non-Res Care - PS,Private & Voluntary Day Care,The Brandon Trust,949.05, 26-Jul-2012
1729,Revenue,CCHD,Purchase of Non-Res Care - PS,Private & Voluntary Day Care,The Brandon Trust,949.05, 24-Jul-2012
1730,Revenue,CCHD,Purchase of Non-Res Care - KD,Private & Voluntary Day Care,The Brandon Trust,1354.6, 16-Jul-2012
1731,Revenue,CCHD,Supported Living - PS,Private & Voluntary Home Care,The Brandon Trust,759.24, 18-Jul-2012
1732,Revenue,CCHD,Purchase of Non-Res Care - PS,Private & Voluntary Day Care,The Brandon Trust,759.24, 18-Jul-2012
1733,Revenue,CCHD,Purchase of Non-Res Care - PS,Private & Voluntary Day Care,The Brandon Trust,1466.3, 24-Jul-2012
1734,Revenue,CCHD,Purchase of Non-Res Care - PS,Private & Voluntary Day Care,The Brandon Trust,506.16, 27-Jul-2012
1735,Revenue,CCHD,Younger MH non-res purchasing,Private & Voluntary Day Care,The Brandon Trust,506.16, 18-Jul-2012
1736,Revenue,CCHD,Purchase of Non-Res Care - PS,Private & Voluntary Day Care,The Brandon Trust,822.51, 27-Jul-2012
1737,Revenue,CCHD,Purchase of Non-Res Care - PS,Private & Voluntary Day Care,The Brandon Trust,708.56, 27-Jul-2012
1738,Revenue,CCHD,Day Care - North,Private & Voluntary Day Care,The Brandon Trust,687.72, 24-Jul-2012
1739,Revenue,CCHD,Purchase of Non-Res Care - PS,Private & Voluntary Day Care,The Brandon Trust,506.16, 27-Jul-2012
1740,Revenue,CCHD,Purchase of Non-Res Care - PS,Private & Voluntary Day Care,The Brandon Trust,695.97, 27-Jul-2012
1741,Revenue,CCHD,Purchase of Non-Res Care - KD,Private & Voluntary Day Care,The Brandon Trust,859.65, 20-Jul-2012
1742,Revenue,CCHD,Purchase of Non-Res Care - KD,Private & Voluntary Day Care,The Brandon Trust,4376.4, 20-Jul-2012
1743,Revenue,CCHD,Purchase of Non-Res Care - PS,Private & Voluntary Day Care,The Brandon Trust,885.78, 26-Jul-2012
1744,Revenue,CCHD,Purchase of Non-Res Care - KD,Private & Voluntary Day Care,The Brandon Trust,632.7, 23-Jul-2012
1745,Revenue,CCHD,Purchase of Non-Res Care - KD,Private & Voluntary Day Care,The Brandon Trust,510.58, 20-Jul-2012
1746,Revenue,CCHD,Younger MH non-res purchasing,Private & Voluntary Day Care,The Brandon Trust,1075.59, 30-Jul-2012
1747,Revenue,CCHD,Purchase of Non-Res Care - PS,Private & Voluntary Day Care,The Brandon Trust,2917.6, 26-Jul-2012
1748,Revenue,CCHD,Purchase of Non-Res Care - PS,Private & Voluntary Day Care,The Brandon Trust,949.05, 27-Jul-2012
1749,Revenue,CCHD,Purchase of Non-Res Care - KD,Private & Voluntary Day Care,The Brandon Trust,791.92, 20-Jul-2012
1750,Revenue,CCHD,Purchase of Non-Res Care - KD,Private & Voluntary Day Care,The Brandon Trust,1021.16, 20-Jul-2012
1751,Revenue,CCHD,Purchase of Non-Res Care - PS,Private & Voluntary Day Care,The Brandon Trust,885.78, 27-Jul-2012
1752,Revenue,CCHD,Purchase of Non-Res Care - PS,Private & Voluntary Day Care,The Brandon Trust,885.78, 27-Jul-2012
1753,Revenue,CCHD,Purchase of Non-Res Care - KD,Private & Voluntary Day Care,The Brandon Trust,969.06, 23-Jul-2012
1754,Revenue,CCHD,Supported Living - PS,Private & Voluntary Home Care,The Brandon Trust,506.16, 27-Jul-2012
1755,Revenue,CCHD,Day Care - South,Private & Voluntary Day Care,The Brandon Trust,601.07, 24-Jul-2012
1756,Revenue,CCHD,Purchase of Non-Res Care - PS,Private & Voluntary Day Care,The Brandon Trust,759.24, 26-Jul-2012
1757,Revenue,CCHD,Purchase of Non-Res Care - PS,Private & Voluntary Day Care,The Brandon Trust,5251.68, 27-Jul-2012
1758,Revenue,CCHD,Purchase of Non-Res Care - KD,Private & Voluntary Day Care,The Brandon Trust,1146.2, 20-Jul-2012
1759,Revenue,CCHD,Supported Living - PS,Private & Voluntary Home Care,The Brandon Trust,854.44, 26-Jul-2012
1760,Revenue,CCHD,Purchase of Non-Res Care - PS,Private & Voluntary Day Care,The Brandon Trust,3386.5, 27-Jul-2012
1761,Revenue,CCHD,Purchase of Non-Res Care - PS,Private & Voluntary Day Care,The Brandon Trust,1499.06, 26-Jul-2012
1762,Revenue,CCHD,Purchase of Non-Res Care - PS,Private & Voluntary Day Care,The Brandon Trust,822.51, 27-Jul-2012
1763,Revenue,CCHD,Purchase of Non-Res Care - KD,Private & Voluntary Day Care,The Brandon Trust,541.84, 20-Jul-2012
1764,Revenue,CCHD,Supported Living - KD,Private & Voluntary Home Care,The Brandon Trust,9005.03, 20-Jul-2012
1765,Revenue,CCHD,Bed Purchasing - Under 65s PWLD - South,Nursing Homes,The Brandon Trust  Olympus House,5724.32, 10-Jul-2012
1766,Revenue,CCHD,Bed Purchasing - S28A - Over 65- North,Residential Homes,The Brandon Trust  Olympus House,3587.32, 10-Jul-2012
1767,Revenue,CCHD,Bed Purchasing - Under 65s PWLD - South,Residential Homes,The Brandon Trust  Olympus House,11325.76, 10-Jul-2012
1768,Revenue,CCHD,Bed Purchasing - Under 65s PWLD - South,Residential Homes,The Brandon Trust  Olympus House,3270.6, 10-Jul-2012
1769,Revenue,CCHD,Bed purchasing - Under 65s PWLD - North,Residential Homes,The Brandon Trust  Olympus House,5182.6, 10-Jul-2012
1770,Revenue,CCHD,Bed purchasing - Elderly PWLD - South,Residential Homes,The Brandon Trust  Olympus House,3384.16, 10-Jul-2012
1771,Revenue,CCHD,Bed Purchasing - LD S28A- Over 65- South,Residential Homes,The Brandon Trust  Olympus House,3835.12, 10-Jul-2012
1772,Revenue,CCHD,Bed Purchasing - Under 65s PWLD - South,Nursing Homes,The Brandon Trust  Olympus House,5127.6, 10-Jul-2012
1773,Revenue,CCHD,Bed purchasing - S28A Under 65 - South,Residential Homes,The Brandon Trust  Olympus House,6032.96, 10-Jul-2012
1774,Revenue,CCHD,Bed purchasing - S28A Under 65 - South,Residential Homes,The Brandon Trust  Olympus House,4996.72, 10-Jul-2012
1775,Revenue,CCHD,Bed purchasing - S28A Under 65 - South,Residential Homes,The Brandon Trust  Olympus House,6032.96, 10-Jul-2012
1776,Revenue,CCHD,Bed purchasing - S28A Under 65 - South,Residential Homes,The Brandon Trust  Olympus House,5867.56, 10-Jul-2012
1777,Revenue,CCHD,Bed Purchasing - LD S28A- Over 65- South,Nursing Homes,The Brandon Trust  Olympus House,5454.32, 10-Jul-2012
1778,Revenue,CCHD,Bed Purchasing - S28A - Over 65- North,Nursing Homes,The Brandon Trust  Olympus House,5806.76, 10-Jul-2012
1779,Revenue,CCHD,Bed purchasing - S28A Under 65 - South,Residential Homes,The Brandon Trust  Olympus House,5265.24, 10-Jul-2012
1780,Revenue,CCHD,Bed purchasing - S28A Under 65 - South,Residential Homes,The Brandon Trust  Olympus House,5339, 10-Jul-2012
1781,Revenue,CCHD,Bed Purchasing - S28A - Over 65- North,Residential Homes,The Brandon Trust  Olympus House,7213.64, 10-Jul-2012
1782,Revenue,CCHD,Bed purchasing - S28A Under 65 - South,Residential Homes,The Brandon Trust  Olympus House,6032.96, 10-Jul-2012
1783,Revenue,CCHD,Bed purchasing - S28A Under 65 - South,Residential Homes,The Brandon Trust  Olympus House,6032.92, 10-Jul-2012
1784,Revenue,CCHD,Bed purchasing -S28A  Under 65 - North,Residential Homes,The Brandon Trust  Olympus House,4668.96, 10-Jul-2012
1785,Revenue,CCHD,Bed purchasing - S28A Under 65 - South,Residential Homes,The Brandon Trust  Olympus House,5339.04, 10-Jul-2012
